Organisation Name,Organisation Code,Unique Ref No,Effective Date,Directorate  where expenditure incurred,Supplier Name,Payment Date,Net Amount,Purpose of Spend,Procurement Classification (Higher Level),Procurement Classification (Lower Level),Capital/Revenue
Walsall Council,http://opendatacommunities.org/id/metropolitan-district-council/walsall,WC83-1,31/08/2017,Economy & Environment,11KBW,01/08/2017,250,73014-LEGAL FEES-PRIV CONTRACTOR FEES,CEMETERIES CENTRAL ADMINISTRATION,Third Party Payments,Revenue
Walsall Council,http://opendatacommunities.org/id/metropolitan-district-council/walsall,WC83-2,31/08/2017,Economy & Environment,11KBW,04/08/2017,"9,180.00",73014-LEGAL FEES-PRIV CONTRACTOR FEES,CEMETERIES CENTRAL ADMINISTRATION,Third Party Payments,Revenue
Walsall Council,http://opendatacommunities.org/id/metropolitan-district-council/walsall,WC83-3,31/08/2017,Childrens,247 CARS (WILLENHALL) LIMITED,04/08/2017,"1,320.00",60500-GENERAL MATERIALS,PUPIL REFERAL UNIT EXCLUSIONS,Supplies & Services,Revenue
Walsall Council,http://opendatacommunities.org/id/metropolitan-district-council/walsall,WC83-4,31/08/2017,Change and Governance,2BM LIMITED,01/08/2017,"2,400.00",63820-RECHARGE FOR MAINTENANCE/APPLICATION COSTS-COMPUTER,DATA CENTRES,Supplies & Services,Revenue
Walsall Council,http://opendatacommunities.org/id/metropolitan-district-council/walsall,WC83-5,31/08/2017,Childrens,5 CARE SERVICES LTD,16/08/2017,552.5,63000-PROFESSIONAL FEES AND SERVICES,DIRECTLY COMMISSIONED NURSING SERVICES,Supplies & Services,Revenue
Walsall Council,http://opendatacommunities.org/id/metropolitan-district-council/walsall,WC83-6,31/08/2017,Childrens,5 CARE SERVICES LTD,16/08/2017,"1,495.00",63000-PROFESSIONAL FEES AND SERVICES,DIRECTLY COMMISSIONED NURSING SERVICES,Supplies & Services,Revenue
Walsall Council,http://opendatacommunities.org/id/metropolitan-district-council/walsall,WC83-7,31/08/2017,Childrens,5 CARE SERVICES LTD,16/08/2017,"1,703.00",63000-PROFESSIONAL FEES AND SERVICES,DIRECTLY COMMISSIONED NURSING SERVICES,Supplies & Services,Revenue
Walsall Council,http://opendatacommunities.org/id/metropolitan-district-council/walsall,WC83-8,31/08/2017,Adult Social Care,5 CARE SERVICES LTD,16/08/2017,"42,112.33",73372-DOMICILIARY CARE,OP COMMISSIONING,Third Party Payments,Revenue
Walsall Council,http://opendatacommunities.org/id/metropolitan-district-council/walsall,WC83-9,31/08/2017,Economy & Environment,A ASHTON,21/08/2017,285,60500-GENERAL MATERIALS,INFRASTRUCTURE MAINTENANCE,Supplies & Services,Revenue
Walsall Council,http://opendatacommunities.org/id/metropolitan-district-council/walsall,WC83-10,31/08/2017,Change and Governance,A D T FIRE AND SECURITY PLC,18/08/2017,257.46,73002-SECURITY-PRIV CONTRACTOR FEES,CENTRALISED MAINTENANCE,Third Party Payments,Revenue
Walsall Council,http://opendatacommunities.org/id/metropolitan-district-council/walsall,WC83-11,31/08/2017,Economy & Environment,A D T FIRE AND SECURITY PLC,21/08/2017,616.87,"40000-REPAIRS,ALTERATIONS & MAINTENANCE-PREM",ARBORETUM HLF,Premises,Revenue
Walsall Council,http://opendatacommunities.org/id/metropolitan-district-council/walsall,WC83-12,31/08/2017,Change and Governance,A D T FIRE AND SECURITY PLC,18/08/2017,900,73002-SECURITY-PRIV CONTRACTOR FEES,CENTRALISED MAINTENANCE,Third Party Payments,Revenue
Walsall Council,http://opendatacommunities.org/id/metropolitan-district-council/walsall,WC83-13,31/08/2017,Change and Governance,A D T FIRE AND SECURITY PLC,03/08/2017,"1,088.74",73002-SECURITY-PRIV CONTRACTOR FEES,CENTRALISED MAINTENANCE,Third Party Payments,Revenue
Walsall Council,http://opendatacommunities.org/id/metropolitan-district-council/walsall,WC83-14,31/08/2017,Economy & Environment,A F BLAKEMORE & SON LTD,14/08/2017,246.41,61018-DRINKS-PROVISIONS,OAK PARK,Supplies & Services,Revenue
Walsall Council,http://opendatacommunities.org/id/metropolitan-district-council/walsall,WC83-15,31/08/2017,Economy & Environment,A F BLAKEMORE & SON LTD,03/08/2017,293.71,61018-DRINKS-PROVISIONS,OAK PARK,Supplies & Services,Revenue
Walsall Council,http://opendatacommunities.org/id/metropolitan-district-council/walsall,WC83-16,31/08/2017,Adult Social Care,A F BLAKEMORE & SON LTD,09/08/2017,294.39,61016-FOOD AND BEVERAGES-PROVISIONS,GOSCOTE,Supplies & Services,Revenue
Walsall Council,http://opendatacommunities.org/id/metropolitan-district-council/walsall,WC83-17,31/08/2017,Economy & Environment,A F BLAKEMORE & SON LTD,25/08/2017,299.9,61002-DRY FOODS-PROVISIONS,BLOXWICH LEISURE CENTRE,Supplies & Services,Revenue
Walsall Council,http://opendatacommunities.org/id/metropolitan-district-council/walsall,WC83-18,31/08/2017,Economy & Environment,A F BLAKEMORE & SON LTD,01/08/2017,315.65,61018-DRINKS-PROVISIONS,OAK PARK,Supplies & Services,Revenue
Walsall Council,http://opendatacommunities.org/id/metropolitan-district-council/walsall,WC83-19,31/08/2017,Economy & Environment,A F BLAKEMORE & SON LTD,14/08/2017,319.19,61018-DRINKS-PROVISIONS,OAK PARK,Supplies & Services,Revenue
Walsall Council,http://opendatacommunities.org/id/metropolitan-district-council/walsall,WC83-20,31/08/2017,Change and Governance,A F BLAKEMORE & SON LTD,01/08/2017,361.66,61016-FOOD AND BEVERAGES-PROVISIONS,WALSALL TOWN HALL,Supplies & Services,Revenue
Walsall Council,http://opendatacommunities.org/id/metropolitan-district-council/walsall,WC83-21,31/08/2017,Economy & Environment,A F BLAKEMORE & SON LTD,25/08/2017,368.88,61008-CONFECTIONERY/SNACKS-PROVISIONS,DARLASTON LEISURE CENTRE,Supplies & Services,Revenue
Walsall Council,http://opendatacommunities.org/id/metropolitan-district-council/walsall,WC83-22,31/08/2017,Adult Social Care,A F BLAKEMORE & SON LTD,17/08/2017,378.76,61016-FOOD AND BEVERAGES-PROVISIONS,GOSCOTE,Supplies & Services,Revenue
Walsall Council,http://opendatacommunities.org/id/metropolitan-district-council/walsall,WC83-23,31/08/2017,Change and Governance,A F BLAKEMORE & SON LTD,30/08/2017,385.27,61016-FOOD AND BEVERAGES-PROVISIONS,WALSALL TOWN HALL,Supplies & Services,Revenue
Walsall Council,http://opendatacommunities.org/id/metropolitan-district-council/walsall,WC83-24,31/08/2017,Adult Social Care,A F BLAKEMORE & SON LTD,09/08/2017,434.22,61016-FOOD AND BEVERAGES-PROVISIONS,GOSCOTE,Supplies & Services,Revenue
Walsall Council,http://opendatacommunities.org/id/metropolitan-district-council/walsall,WC83-25,31/08/2017,Adult Social Care,A F BLAKEMORE & SON LTD,30/08/2017,446.72,61016-FOOD AND BEVERAGES-PROVISIONS,GOSCOTE,Supplies & Services,Revenue
Walsall Council,http://opendatacommunities.org/id/metropolitan-district-council/walsall,WC83-26,31/08/2017,Economy & Environment,A F BLAKEMORE & SON LTD,24/08/2017,451.65,61008-CONFECTIONERY/SNACKS-PROVISIONS,OAK PARK,Supplies & Services,Revenue
Walsall Council,http://opendatacommunities.org/id/metropolitan-district-council/walsall,WC83-27,31/08/2017,Adult Social Care,A F BLAKEMORE & SON LTD,24/08/2017,497.6,61016-FOOD AND BEVERAGES-PROVISIONS,REABLEMENT TEAM - HOLLY BANK,Supplies & Services,Revenue
Walsall Council,http://opendatacommunities.org/id/metropolitan-district-council/walsall,WC83-28,31/08/2017,Adult Social Care,A F BLAKEMORE & SON LTD,25/08/2017,503.93,61016-FOOD AND BEVERAGES-PROVISIONS,REABLEMENT TEAM - HOLLY BANK,Supplies & Services,Revenue
Walsall Council,http://opendatacommunities.org/id/metropolitan-district-council/walsall,WC83-29,31/08/2017,Adult Social Care,A F BLAKEMORE & SON LTD,02/08/2017,532.7,61016-FOOD AND BEVERAGES-PROVISIONS,REABLEMENT TEAM - HOLLY BANK,Supplies & Services,Revenue
Walsall Council,http://opendatacommunities.org/id/metropolitan-district-council/walsall,WC83-30,31/08/2017,Economy & Environment,A F BLAKEMORE & SON LTD,24/08/2017,584.92,61008-CONFECTIONERY/SNACKS-PROVISIONS,OAK PARK,Supplies & Services,Revenue
Walsall Council,http://opendatacommunities.org/id/metropolitan-district-council/walsall,WC83-31,31/08/2017,Adult Social Care,A F BLAKEMORE & SON LTD,01/08/2017,595.38,61016-FOOD AND BEVERAGES-PROVISIONS,GOSCOTE,Supplies & Services,Revenue
Walsall Council,http://opendatacommunities.org/id/metropolitan-district-council/walsall,WC83-32,31/08/2017,Economy & Environment,A F BLAKEMORE & SON LTD,03/08/2017,597.25,61002-DRY FOODS-PROVISIONS,OAK PARK,Supplies & Services,Revenue
Walsall Council,http://opendatacommunities.org/id/metropolitan-district-council/walsall,WC83-33,31/08/2017,Economy & Environment,A F BLAKEMORE & SON LTD,07/08/2017,714.02,61002-DRY FOODS-PROVISIONS,BLOXWICH LEISURE CENTRE,Supplies & Services,Revenue
Walsall Council,http://opendatacommunities.org/id/metropolitan-district-council/walsall,WC83-34,31/08/2017,Economy & Environment,A F BLAKEMORE & SON LTD,14/08/2017,"1,169.98",61008-CONFECTIONERY/SNACKS-PROVISIONS,OAK PARK,Supplies & Services,Revenue
Walsall Council,http://opendatacommunities.org/id/metropolitan-district-council/walsall,WC83-35,31/08/2017,Childrens,REDACTED,07/08/2017,378,76422-DIRECT PAYMENTS TO SOCIAL SERVICES CLIENTS,FAMILY SUPPORT - DIRECT PAYMENTS,Transfer Payments,Revenue
Walsall Council,http://opendatacommunities.org/id/metropolitan-district-council/walsall,WC83-36,31/08/2017,Childrens,ABACUS FOSTERING LTD,14/08/2017,"3,651.43",74037-INDEPENDENT FOSTER CARE-OTH AGENCY PROVISION,EXTERNAL FOSTER CARE PROVISION,Third Party Payments,Revenue
Walsall Council,http://opendatacommunities.org/id/metropolitan-district-council/walsall,WC83-37,31/08/2017,Adult Social Care,ABBEY COURT NURSING & RESIDEN,14/08/2017,"1,786.40",73373-RESIDENTIAL & NURSING CARE PLACEMENTS,OP COMMISSIONING,Third Party Payments,Revenue
Walsall Council,http://opendatacommunities.org/id/metropolitan-district-council/walsall,WC83-38,31/08/2017,Adult Social Care,ABBEY COURT NURSING & RESIDEN,14/08/2017,"1,878.91",73373-RESIDENTIAL & NURSING CARE PLACEMENTS,OP COMMISSIONING,Third Party Payments,Revenue
Walsall Council,http://opendatacommunities.org/id/metropolitan-district-council/walsall,WC83-39,31/08/2017,Adult Social Care,ABBEY COURT NURSING & RESIDEN,14/08/2017,"2,144.62",73373-RESIDENTIAL & NURSING CARE PLACEMENTS,OP COMMISSIONING,Third Party Payments,Revenue
Walsall Council,http://opendatacommunities.org/id/metropolitan-district-council/walsall,WC83-40,31/08/2017,Childrens,ABC FOSTERING,14/08/2017,"2,635.20",74037-INDEPENDENT FOSTER CARE-OTH AGENCY PROVISION,EXTERNAL FOSTER CARE PROVISION,Third Party Payments,Revenue
Walsall Council,http://opendatacommunities.org/id/metropolitan-district-council/walsall,WC83-41,31/08/2017,Childrens,ABC FOSTERING,14/08/2017,"2,859.48",74037-INDEPENDENT FOSTER CARE-OTH AGENCY PROVISION,EXTERNAL FOSTER CARE PROVISION,Third Party Payments,Revenue
Walsall Council,http://opendatacommunities.org/id/metropolitan-district-council/walsall,WC83-42,31/08/2017,Childrens,ABC FOSTERING,14/08/2017,"2,880.00",74037-INDEPENDENT FOSTER CARE-OTH AGENCY PROVISION,EXTERNAL FOSTER CARE PROVISION,Third Party Payments,Revenue
Walsall Council,http://opendatacommunities.org/id/metropolitan-district-council/walsall,WC83-43,31/08/2017,Childrens,ABC FOSTERING,14/08/2017,"3,042.00",74037-INDEPENDENT FOSTER CARE-OTH AGENCY PROVISION,EXTERNAL FOSTER CARE PROVISION,Third Party Payments,Revenue
Walsall Council,http://opendatacommunities.org/id/metropolitan-district-council/walsall,WC83-44,31/08/2017,Childrens,ABC FOSTERING,14/08/2017,"3,182.40",74037-INDEPENDENT FOSTER CARE-OTH AGENCY PROVISION,EXTERNAL FOSTER CARE PROVISION,Third Party Payments,Revenue
Walsall Council,http://opendatacommunities.org/id/metropolitan-district-council/walsall,WC83-45,31/08/2017,Adult Social Care,REDACTED,07/08/2017,"1,557.68",76422-DIRECT PAYMENTS TO SOCIAL SERVICES CLIENTS,LD COMMISSIONING,Transfer Payments,Revenue
Walsall Council,http://opendatacommunities.org/id/metropolitan-district-council/walsall,WC83-46,31/08/2017,Adult Social Care,REDACTED,07/08/2017,"2,357.99",76422-DIRECT PAYMENTS TO SOCIAL SERVICES CLIENTS,LD COMMISSIONING,Transfer Payments,Revenue
Walsall Council,http://opendatacommunities.org/id/metropolitan-district-council/walsall,WC83-47,31/08/2017,Childrens,ABLEWELL CARS,02/08/2017,901,52000-WITH DRIVER-HIRE OF VEHICLES,SCHOOL TRANSPORT,Transport,Revenue
Walsall Council,http://opendatacommunities.org/id/metropolitan-district-council/walsall,WC83-48,31/08/2017,Economy & Environment,AC COACHING & SPORTS DEVELOPMENT LIMITED,01/08/2017,487.5,63000-PROFESSIONAL FEES AND SERVICES,INSPIRED GENERATIONS (CSAF),Supplies & Services,Revenue
Walsall Council,http://opendatacommunities.org/id/metropolitan-district-council/walsall,WC83-49,31/08/2017,Adult Social Care,ACCORD HOUSING ASSOCIATION LTD#135,18/08/2017,326.48,73374-SUPPORTED & OTHER ACCOMMODATION,MH COMMISSIONING,Third Party Payments,Revenue
Walsall Council,http://opendatacommunities.org/id/metropolitan-district-council/walsall,WC83-50,31/08/2017,Adult Social Care,ACCORD HOUSING ASSOCIATION LTD#135,18/08/2017,368.35,73374-SUPPORTED & OTHER ACCOMMODATION,MH COMMISSIONING,Third Party Payments,Revenue
Walsall Council,http://opendatacommunities.org/id/metropolitan-district-council/walsall,WC83-51,31/08/2017,Childrens,ACCORD HOUSING ASSOCIATION LTD#135,21/08/2017,458.75,43000-RENTS,SAFEGUARDING & FAMILY SUPPORT,Premises,Revenue
Walsall Council,http://opendatacommunities.org/id/metropolitan-district-council/walsall,WC83-52,31/08/2017,Childrens,ACCORD HOUSING ASSOCIATION LTD#135,23/08/2017,458.75,43000-RENTS,SAFEGUARDING & FAMILY SUPPORT,Premises,Revenue
Walsall Council,http://opendatacommunities.org/id/metropolitan-district-council/walsall,WC83-53,31/08/2017,Adult Social Care,ACCORD HOUSING ASSOCIATION LTD#135,18/08/2017,578.25,73374-SUPPORTED & OTHER ACCOMMODATION,LD COMMISSIONING,Third Party Payments,Revenue
Walsall Council,http://opendatacommunities.org/id/metropolitan-district-council/walsall,WC83-54,31/08/2017,Adult Social Care,ACCORD HOUSING ASSOCIATION LTD#135,18/08/2017,598.2,73374-SUPPORTED & OTHER ACCOMMODATION,MH COMMISSIONING,Third Party Payments,Revenue
Walsall Council,http://opendatacommunities.org/id/metropolitan-district-council/walsall,WC83-55,31/08/2017,Adult Social Care,ACCORD HOUSING ASSOCIATION LTD#135,18/08/2017,604.48,73374-SUPPORTED & OTHER ACCOMMODATION,MH COMMISSIONING,Third Party Payments,Revenue
Walsall Council,http://opendatacommunities.org/id/metropolitan-district-council/walsall,WC83-56,31/08/2017,Adult Social Care,ACCORD HOUSING ASSOCIATION LTD#135,18/08/2017,608.44,73374-SUPPORTED & OTHER ACCOMMODATION,OP COMMISSIONING,Third Party Payments,Revenue
Walsall Council,http://opendatacommunities.org/id/metropolitan-district-council/walsall,WC83-57,31/08/2017,Adult Social Care,ACCORD HOUSING ASSOCIATION LTD#135,18/08/2017,661.12,73374-SUPPORTED & OTHER ACCOMMODATION,MH COMMISSIONING,Third Party Payments,Revenue
Walsall Council,http://opendatacommunities.org/id/metropolitan-district-council/walsall,WC83-58,31/08/2017,Adult Social Care,ACCORD HOUSING ASSOCIATION LTD#135,18/08/2017,690,73374-SUPPORTED & OTHER ACCOMMODATION,LD COMMISSIONING,Third Party Payments,Revenue
Walsall Council,http://opendatacommunities.org/id/metropolitan-district-council/walsall,WC83-59,31/08/2017,Adult Social Care,ACCORD HOUSING ASSOCIATION LTD#135,18/08/2017,793.36,73374-SUPPORTED & OTHER ACCOMMODATION,MH COMMISSIONING,Third Party Payments,Revenue
Walsall Council,http://opendatacommunities.org/id/metropolitan-district-council/walsall,WC83-60,31/08/2017,Adult Social Care,ACCORD HOUSING ASSOCIATION LTD#135,18/08/2017,793.36,73374-SUPPORTED & OTHER ACCOMMODATION,MH COMMISSIONING,Third Party Payments,Revenue
Walsall Council,http://opendatacommunities.org/id/metropolitan-district-council/walsall,WC83-61,31/08/2017,Adult Social Care,ACCORD HOUSING ASSOCIATION LTD#135,18/08/2017,868.96,73374-SUPPORTED & OTHER ACCOMMODATION,MH COMMISSIONING,Third Party Payments,Revenue
Walsall Council,http://opendatacommunities.org/id/metropolitan-district-council/walsall,WC83-62,31/08/2017,Adult Social Care,ACCORD HOUSING ASSOCIATION LTD#135,01/08/2017,991.7,73374-SUPPORTED & OTHER ACCOMMODATION,MH COMMISSIONING,Third Party Payments,Revenue
Walsall Council,http://opendatacommunities.org/id/metropolitan-district-council/walsall,WC83-63,31/08/2017,Adult Social Care,ACCORD HOUSING ASSOCIATION LTD#135,18/08/2017,"1,133.40",73374-SUPPORTED & OTHER ACCOMMODATION,MH COMMISSIONING,Third Party Payments,Revenue
Walsall Council,http://opendatacommunities.org/id/metropolitan-district-council/walsall,WC83-64,31/08/2017,Adult Social Care,ACCORD HOUSING ASSOCIATION LTD#135,29/08/2017,"1,227.85",73374-SUPPORTED & OTHER ACCOMMODATION,MH COMMISSIONING,Third Party Payments,Revenue
Walsall Council,http://opendatacommunities.org/id/metropolitan-district-council/walsall,WC83-65,31/08/2017,Adult Social Care,ACCORD HOUSING ASSOCIATION LTD#135,18/08/2017,"1,322.28",73374-SUPPORTED & OTHER ACCOMMODATION,MH COMMISSIONING,Third Party Payments,Revenue
Walsall Council,http://opendatacommunities.org/id/metropolitan-district-council/walsall,WC83-66,31/08/2017,Adult Social Care,ACCORD HOUSING ASSOCIATION LTD#135,18/08/2017,"1,341.16",73374-SUPPORTED & OTHER ACCOMMODATION,MH COMMISSIONING,Third Party Payments,Revenue
Walsall Council,http://opendatacommunities.org/id/metropolitan-district-council/walsall,WC83-67,31/08/2017,Adult Social Care,ACCORD HOUSING ASSOCIATION LTD#135,30/08/2017,"1,534.81",73374-SUPPORTED & OTHER ACCOMMODATION,MH COMMISSIONING,Third Party Payments,Revenue
Walsall Council,http://opendatacommunities.org/id/metropolitan-district-council/walsall,WC83-68,31/08/2017,Adult Social Care,ACCORD HOUSING ASSOCIATION LTD#135,18/08/2017,"1,567.84",73374-SUPPORTED & OTHER ACCOMMODATION,MH COMMISSIONING,Third Party Payments,Revenue
Walsall Council,http://opendatacommunities.org/id/metropolitan-district-council/walsall,WC83-69,31/08/2017,Adult Social Care,ACCORD HOUSING ASSOCIATION LTD#135,21/08/2017,"4,284.72",73373-RESIDENTIAL & NURSING CARE PLACEMENTS,LD COMMISSIONING,Third Party Payments,Revenue
Walsall Council,http://opendatacommunities.org/id/metropolitan-district-council/walsall,WC83-70,31/08/2017,Adult Social Care,ACCORD HOUSING ASSOCIATION LTD#135,29/08/2017,"4,284.72",73373-RESIDENTIAL & NURSING CARE PLACEMENTS,LD COMMISSIONING,Third Party Payments,Revenue
Walsall Council,http://opendatacommunities.org/id/metropolitan-district-council/walsall,WC83-71,31/08/2017,Adult Social Care,ACCORD HOUSING ASSOCIATION LTD#135,21/08/2017,"5,981.48",73373-RESIDENTIAL & NURSING CARE PLACEMENTS,LD COMMISSIONING,Third Party Payments,Revenue
Walsall Council,http://opendatacommunities.org/id/metropolitan-district-council/walsall,WC83-72,31/08/2017,Adult Social Care,ACCORD HOUSING ASSOCIATION LTD#135,21/08/2017,"5,981.48",73373-RESIDENTIAL & NURSING CARE PLACEMENTS,LD COMMISSIONING,Third Party Payments,Revenue
Walsall Council,http://opendatacommunities.org/id/metropolitan-district-council/walsall,WC83-73,31/08/2017,Adult Social Care,ACCORD HOUSING ASSOCIATION LTD#135,21/08/2017,"5,981.48",73373-RESIDENTIAL & NURSING CARE PLACEMENTS,LD COMMISSIONING,Third Party Payments,Revenue
Walsall Council,http://opendatacommunities.org/id/metropolitan-district-council/walsall,WC83-74,31/08/2017,Adult Social Care,ACCORD HOUSING ASSOCIATION LTD#135,29/08/2017,"5,981.48",73373-RESIDENTIAL & NURSING CARE PLACEMENTS,LD COMMISSIONING,Third Party Payments,Revenue
Walsall Council,http://opendatacommunities.org/id/metropolitan-district-council/walsall,WC83-75,31/08/2017,Adult Social Care,ACCORD HOUSING ASSOCIATION LTD#135,29/08/2017,"5,981.48",73373-RESIDENTIAL & NURSING CARE PLACEMENTS,LD COMMISSIONING,Third Party Payments,Revenue
Walsall Council,http://opendatacommunities.org/id/metropolitan-district-council/walsall,WC83-76,31/08/2017,Adult Social Care,ACCORD HOUSING ASSOCIATION LTD#135,29/08/2017,"5,981.48",73373-RESIDENTIAL & NURSING CARE PLACEMENTS,LD COMMISSIONING,Third Party Payments,Revenue
Walsall Council,http://opendatacommunities.org/id/metropolitan-district-council/walsall,WC83-77,31/08/2017,Adult Social Care,ACCORD HOUSING ASSOCIATION LTD#135,16/08/2017,"30,740.16",73372-DOMICILIARY CARE,OP COMMISSIONING,Third Party Payments,Revenue
Walsall Council,http://opendatacommunities.org/id/metropolitan-district-council/walsall,WC83-78,31/08/2017,Adult Social Care,ACCORD HOUSING ASSOCIATION LTD#135,16/08/2017,"31,637.02",73372-DOMICILIARY CARE,OP COMMISSIONING,Third Party Payments,Revenue
Walsall Council,http://opendatacommunities.org/id/metropolitan-district-council/walsall,WC83-79,31/08/2017,Adult Social Care,ACE CARE AGENCY,03/08/2017,384.47,73372-DOMICILIARY CARE,OP COMMISSIONING,Third Party Payments,Revenue
Walsall Council,http://opendatacommunities.org/id/metropolitan-district-council/walsall,WC83-80,31/08/2017,Adult Social Care,ACE CARE AGENCY,03/08/2017,455,73372-DOMICILIARY CARE,OP COMMISSIONING,Third Party Payments,Revenue
Walsall Council,http://opendatacommunities.org/id/metropolitan-district-council/walsall,WC83-81,31/08/2017,Adult Social Care,ACE CARE AGENCY,18/08/2017,576.17,73372-DOMICILIARY CARE,OP COMMISSIONING,Third Party Payments,Revenue
Walsall Council,http://opendatacommunities.org/id/metropolitan-district-council/walsall,WC83-82,31/08/2017,Adult Social Care,ACE CARE AGENCY,03/08/2017,577.25,73372-DOMICILIARY CARE,OP COMMISSIONING,Third Party Payments,Revenue
Walsall Council,http://opendatacommunities.org/id/metropolitan-district-council/walsall,WC83-83,31/08/2017,Adult Social Care,ACE CARE AGENCY,03/08/2017,647.52,73372-DOMICILIARY CARE,MH COMMISSIONING,Third Party Payments,Revenue
Walsall Council,http://opendatacommunities.org/id/metropolitan-district-council/walsall,WC83-84,31/08/2017,Adult Social Care,ACE CARE AGENCY,18/08/2017,647.52,73372-DOMICILIARY CARE,MH COMMISSIONING,Third Party Payments,Revenue
Walsall Council,http://opendatacommunities.org/id/metropolitan-district-council/walsall,WC83-85,31/08/2017,Adult Social Care,ACE CARE AGENCY,03/08/2017,819,73372-DOMICILIARY CARE,OP COMMISSIONING,Third Party Payments,Revenue
Walsall Council,http://opendatacommunities.org/id/metropolitan-district-council/walsall,WC83-86,31/08/2017,Adult Social Care,ACE CARE AGENCY,18/08/2017,819,73372-DOMICILIARY CARE,OP COMMISSIONING,Third Party Payments,Revenue
Walsall Council,http://opendatacommunities.org/id/metropolitan-district-council/walsall,WC83-87,31/08/2017,Childrens,ACE RADIO CARS,04/08/2017,"1,659.54",52000-WITH DRIVER-HIRE OF VEHICLES,SCHOOL TRANSPORT,Transport,Revenue
Walsall Council,http://opendatacommunities.org/id/metropolitan-district-council/walsall,WC83-88,31/08/2017,Childrens,ACE RADIO CARS,14/08/2017,"1,854.78",52000-WITH DRIVER-HIRE OF VEHICLES,SCHOOL TRANSPORT,Transport,Revenue
Walsall Council,http://opendatacommunities.org/id/metropolitan-district-council/walsall,WC83-89,31/08/2017,Adult Social Care,ACEPAY LTD (COTTAGE NUR HOME),14/08/2017,"1,216.08",73373-RESIDENTIAL & NURSING CARE PLACEMENTS,OP COMMISSIONING,Third Party Payments,Revenue
Walsall Council,http://opendatacommunities.org/id/metropolitan-district-council/walsall,WC83-90,31/08/2017,Adult Social Care,ACEPAY LTD (COTTAGE NUR HOME),14/08/2017,"1,702.50",73373-RESIDENTIAL & NURSING CARE PLACEMENTS,OP COMMISSIONING,Third Party Payments,Revenue
Walsall Council,http://opendatacommunities.org/id/metropolitan-district-council/walsall,WC83-91,31/08/2017,Adult Social Care,ACEPAY LTD (COTTAGE NUR HOME),14/08/2017,"1,737.00",73373-RESIDENTIAL & NURSING CARE PLACEMENTS,OP COMMISSIONING,Third Party Payments,Revenue
Walsall Council,http://opendatacommunities.org/id/metropolitan-district-council/walsall,WC83-92,31/08/2017,Adult Social Care,ACEPAY LTD (COTTAGE NUR HOME),14/08/2017,"1,737.00",73373-RESIDENTIAL & NURSING CARE PLACEMENTS,OP COMMISSIONING,Third Party Payments,Revenue
Walsall Council,http://opendatacommunities.org/id/metropolitan-district-council/walsall,WC83-93,31/08/2017,Adult Social Care,ACORN REST HOME,08/08/2017,"1,620.01",73373-RESIDENTIAL & NURSING CARE PLACEMENTS,OP COMMISSIONING,Third Party Payments,Revenue
Walsall Council,http://opendatacommunities.org/id/metropolitan-district-council/walsall,WC83-94,31/08/2017,Adult Social Care,ACORN REST HOME,29/08/2017,"1,656.00",73373-RESIDENTIAL & NURSING CARE PLACEMENTS,OP COMMISSIONING,Third Party Payments,Revenue
Walsall Council,http://opendatacommunities.org/id/metropolitan-district-council/walsall,WC83-95,31/08/2017,Childrens,ACORNS CHILDRENS HOSPICE TRUST,02/08/2017,750,63000-PROFESSIONAL FEES AND SERVICES,DIRECTLY COMMISSIONED NURSING SERVICES,Supplies & Services,Revenue
Walsall Council,http://opendatacommunities.org/id/metropolitan-district-council/walsall,WC83-96,31/08/2017,Childrens,ACORNS CHILDRENS HOSPICE TRUST,21/08/2017,750,63000-PROFESSIONAL FEES AND SERVICES,DIRECTLY COMMISSIONED NURSING SERVICES,Supplies & Services,Revenue
Walsall Council,http://opendatacommunities.org/id/metropolitan-district-council/walsall,WC83-97,31/08/2017,Childrens,ACTION FOR CHILDREN,21/08/2017,"19,800.00",73025-PROFESSIONAL SERVICES-PRIV CONTRACTOR & OTHER AGENCIES,ADOPTION TEAM,Third Party Payments,Revenue
Walsall Council,http://opendatacommunities.org/id/metropolitan-district-council/walsall,WC83-98,31/08/2017,Economy & Environment,ACTION MIDLANDS LTD,18/08/2017,150,63000-PROFESSIONAL FEES AND SERVICES,YEI (IMPACT) PROGRAMME,Supplies & Services,Revenue
Walsall Council,http://opendatacommunities.org/id/metropolitan-district-council/walsall,WC83-99,31/08/2017,Economy & Environment,ACTION MIDLANDS LTD,18/08/2017,150,63000-PROFESSIONAL FEES AND SERVICES,YEI ESF FUNDING,Supplies & Services,Revenue
Walsall Council,http://opendatacommunities.org/id/metropolitan-district-council/walsall,WC83-100,31/08/2017,Adult Social Care,ACTION ON HEARING LOSS,11/08/2017,985.88,73374-SUPPORTED & OTHER ACCOMMODATION,MH COMMISSIONING,Third Party Payments,Revenue
Walsall Council,http://opendatacommunities.org/id/metropolitan-district-council/walsall,WC83-101,31/08/2017,Adult Social Care,ACTION ON HEARING LOSS,11/08/2017,"1,080.75",73374-SUPPORTED & OTHER ACCOMMODATION,MH COMMISSIONING,Third Party Payments,Revenue
Walsall Council,http://opendatacommunities.org/id/metropolitan-district-council/walsall,WC83-102,31/08/2017,Adult Social Care,ACTION ON HEARING LOSS,14/08/2017,"1,084.88",73374-SUPPORTED & OTHER ACCOMMODATION,MH COMMISSIONING,Third Party Payments,Revenue
Walsall Council,http://opendatacommunities.org/id/metropolitan-district-council/walsall,WC83-103,31/08/2017,Adult Social Care,ACTION ON HEARING LOSS,11/08/2017,"1,113.75",73374-SUPPORTED & OTHER ACCOMMODATION,MH COMMISSIONING,Third Party Payments,Revenue
Walsall Council,http://opendatacommunities.org/id/metropolitan-district-council/walsall,WC83-104,31/08/2017,Adult Social Care,ACTION ON HEARING LOSS,29/08/2017,"4,392.00",73374-SUPPORTED & OTHER ACCOMMODATION,MH COMMISSIONING,Third Party Payments,Revenue
Walsall Council,http://opendatacommunities.org/id/metropolitan-district-council/walsall,WC83-105,31/08/2017,Childrens,ACTIVATING CREATIVE TALENT CIC,16/08/2017,"2,496.43",66500-GRANTS TO OTHER ORGS,TARGETED YOUTH WORK - COMMISSIONED,Third Party Payments,Revenue
Walsall Council,http://opendatacommunities.org/id/metropolitan-district-council/walsall,WC83-106,31/08/2017,Adult Social Care,ACTON BANKS LTD,29/08/2017,676.14,34305-AGENCY STAFF-EMPLOYEES,GOSCOTE,Employees,Revenue
Walsall Council,http://opendatacommunities.org/id/metropolitan-district-council/walsall,WC83-107,31/08/2017,Adult Social Care,ACTON BANKS LTD,01/08/2017,773.55,34305-AGENCY STAFF-EMPLOYEES,GOSCOTE,Employees,Revenue
Walsall Council,http://opendatacommunities.org/id/metropolitan-district-council/walsall,WC83-108,31/08/2017,Adult Social Care,ACTON BANKS LTD,11/08/2017,810.8,34305-AGENCY STAFF-EMPLOYEES,GOSCOTE,Employees,Revenue
Walsall Council,http://opendatacommunities.org/id/metropolitan-district-council/walsall,WC83-109,31/08/2017,Adult Social Care,ACTON BANKS LTD,24/08/2017,819.39,34305-AGENCY STAFF-EMPLOYEES,GOSCOTE,Employees,Revenue
Walsall Council,http://opendatacommunities.org/id/metropolitan-district-council/walsall,WC83-110,31/08/2017,Adult Social Care,ACTON BANKS LTD,30/08/2017,829.93,34305-AGENCY STAFF-EMPLOYEES,GOSCOTE,Employees,Revenue
Walsall Council,http://opendatacommunities.org/id/metropolitan-district-council/walsall,WC83-111,31/08/2017,Adult Social Care,ACTON BANKS LTD,04/08/2017,830.87,34305-AGENCY STAFF-EMPLOYEES,GOSCOTE,Employees,Revenue
Walsall Council,http://opendatacommunities.org/id/metropolitan-district-council/walsall,WC83-112,31/08/2017,Adult Social Care,ACTON BANKS LTD,17/08/2017,853.77,34305-AGENCY STAFF-EMPLOYEES,GOSCOTE,Employees,Revenue
Walsall Council,http://opendatacommunities.org/id/metropolitan-district-council/walsall,WC83-113,31/08/2017,Adult Social Care,ACTON BANKS LTD,01/08/2017,"2,193.09",73025-PROFESSIONAL SERVICES-PRIV CONTRACTOR & OTHER AGENCIES,REABLEMENT TEAM - HOLLY BANK,Third Party Payments,Revenue
Walsall Council,http://opendatacommunities.org/id/metropolitan-district-council/walsall,WC83-114,31/08/2017,Adult Social Care,ACTON BANKS LTD,02/08/2017,"2,302.23",73025-PROFESSIONAL SERVICES-PRIV CONTRACTOR & OTHER AGENCIES,REABLEMENT TEAM - HOLLY BANK,Third Party Payments,Revenue
Walsall Council,http://opendatacommunities.org/id/metropolitan-district-council/walsall,WC83-115,31/08/2017,Adult Social Care,ACTON BANKS LTD,11/08/2017,"3,140.27",73025-PROFESSIONAL SERVICES-PRIV CONTRACTOR & OTHER AGENCIES,REABLEMENT TEAM - HOLLY BANK,Third Party Payments,Revenue
Walsall Council,http://opendatacommunities.org/id/metropolitan-district-council/walsall,WC83-116,31/08/2017,Adult Social Care,ACTON BANKS LTD,17/08/2017,"3,252.39",73025-PROFESSIONAL SERVICES-PRIV CONTRACTOR & OTHER AGENCIES,REABLEMENT TEAM - HOLLY BANK,Third Party Payments,Revenue
Walsall Council,http://opendatacommunities.org/id/metropolitan-district-council/walsall,WC83-117,31/08/2017,Adult Social Care,ACTON BANKS LTD,24/08/2017,"3,703.47",73025-PROFESSIONAL SERVICES-PRIV CONTRACTOR & OTHER AGENCIES,REABLEMENT TEAM - HOLLY BANK,Third Party Payments,Revenue
Walsall Council,http://opendatacommunities.org/id/metropolitan-district-council/walsall,WC83-118,31/08/2017,Adult Social Care,ACTON BANKS LTD,24/08/2017,"4,093.17",73025-PROFESSIONAL SERVICES-PRIV CONTRACTOR & OTHER AGENCIES,REABLEMENT TEAM - HOLLY BANK,Third Party Payments,Revenue
Walsall Council,http://opendatacommunities.org/id/metropolitan-district-council/walsall,WC83-119,31/08/2017,Adult Social Care,REDACTED,07/08/2017,485.24,76422-DIRECT PAYMENTS TO SOCIAL SERVICES CLIENTS,OP COMMISSIONING,Transfer Payments,Revenue
Walsall Council,http://opendatacommunities.org/id/metropolitan-district-council/walsall,WC83-120,31/08/2017,Economy & Environment,REDACTED,01/08/2017,"1,403.00",63239-EXTERNAL WORKS-PAYMENT TO CONTRACTOR,NAG - TEMPORARY EXHIBITIONS,Third Party Payments,Revenue
Walsall Council,http://opendatacommunities.org/id/metropolitan-district-council/walsall,WC83-121,31/08/2017,Adult Social Care,REDACTED,31/08/2017,936,76422-DIRECT PAYMENTS TO SOCIAL SERVICES CLIENTS,OP COMMISSIONING,Transfer Payments,Revenue
Walsall Council,http://opendatacommunities.org/id/metropolitan-district-council/walsall,WC83-122,31/08/2017,Adult Social Care,REDACTED,07/08/2017,486,76422-DIRECT PAYMENTS TO SOCIAL SERVICES CLIENTS,LD COMMISSIONING,Transfer Payments,Revenue
Walsall Council,http://opendatacommunities.org/id/metropolitan-district-council/walsall,WC83-123,31/08/2017,Adult Social Care,ADASS,01/08/2017,"1,748.00",63000-PROFESSIONAL FEES AND SERVICES,SENIOR MANAGEMENT TEAM,Supplies & Services,Revenue
Walsall Council,http://opendatacommunities.org/id/metropolitan-district-council/walsall,WC83-124,31/08/2017,Adult Social Care,REDACTED,07/08/2017,964,76422-DIRECT PAYMENTS TO SOCIAL SERVICES CLIENTS,OP COMMISSIONING,Transfer Payments,Revenue
Walsall Council,http://opendatacommunities.org/id/metropolitan-district-council/walsall,WC83-125,31/08/2017,Childrens,ADMIRAL SELF STORAGE LTD,16/08/2017,"1,303.57",63000-PROFESSIONAL FEES AND SERVICES,EDUCATION BUSINESS PARTNERSHIP (EBP),Supplies & Services,Revenue
Walsall Council,http://opendatacommunities.org/id/metropolitan-district-council/walsall,WC83-126,31/08/2017,Childrens,REDACTED,01/08/2017,333.12,74510-RESIDENTS ORDERS,ADOPTION ALLOWANCES,Third Party Payments,Revenue
Walsall Council,http://opendatacommunities.org/id/metropolitan-district-council/walsall,WC83-127,31/08/2017,Childrens,REDACTED,29/08/2017,333.12,74510-RESIDENTS ORDERS,ADOPTION ALLOWANCES,Third Party Payments,Revenue
Walsall Council,http://opendatacommunities.org/id/metropolitan-district-council/walsall,WC83-128,31/08/2017,Childrens,REDACTED,01/08/2017,361.12,74510-RESIDENTS ORDERS,ADOPTION ALLOWANCES,Third Party Payments,Revenue
Walsall Council,http://opendatacommunities.org/id/metropolitan-district-council/walsall,WC83-129,31/08/2017,Childrens,REDACTED,29/08/2017,361.12,74510-RESIDENTS ORDERS,ADOPTION ALLOWANCES,Third Party Payments,Revenue
Walsall Council,http://opendatacommunities.org/id/metropolitan-district-council/walsall,WC83-130,31/08/2017,Adult Social Care,ADVANCE HEALTH CARE (UK) LTD,14/08/2017,255.29,73025-PROFESSIONAL SERVICES-PRIV CONTRACTOR & OTHER AGENCIES,COMMUNITY INTERMEDIATE CARE,Third Party Payments,Revenue
Walsall Council,http://opendatacommunities.org/id/metropolitan-district-council/walsall,WC83-131,31/08/2017,Adult Social Care,ADVANCE HEALTH CARE (UK) LTD,14/08/2017,256.59,73025-PROFESSIONAL SERVICES-PRIV CONTRACTOR & OTHER AGENCIES,COMMUNITY INTERMEDIATE CARE,Third Party Payments,Revenue
Walsall Council,http://opendatacommunities.org/id/metropolitan-district-council/walsall,WC83-132,31/08/2017,Adult Social Care,ADVANCE HEALTH CARE (UK) LTD,14/08/2017,265.69,73025-PROFESSIONAL SERVICES-PRIV CONTRACTOR & OTHER AGENCIES,COMMUNITY INTERMEDIATE CARE,Third Party Payments,Revenue
Walsall Council,http://opendatacommunities.org/id/metropolitan-district-council/walsall,WC83-133,31/08/2017,Adult Social Care,ADVANCE HEALTH CARE (UK) LTD,14/08/2017,265.69,73025-PROFESSIONAL SERVICES-PRIV CONTRACTOR & OTHER AGENCIES,COMMUNITY INTERMEDIATE CARE,Third Party Payments,Revenue
Walsall Council,http://opendatacommunities.org/id/metropolitan-district-council/walsall,WC83-134,31/08/2017,Adult Social Care,ADVANCE HEALTH CARE (UK) LTD,14/08/2017,271.54,73025-PROFESSIONAL SERVICES-PRIV CONTRACTOR & OTHER AGENCIES,COMMUNITY INTERMEDIATE CARE,Third Party Payments,Revenue
Walsall Council,http://opendatacommunities.org/id/metropolitan-district-council/walsall,WC83-135,31/08/2017,Adult Social Care,ADVANCE HEALTH CARE (UK) LTD,01/08/2017,273,73019-PSE'S-PRIV CONTRACTOR FEES,TRANSITIONAL CARE SUPPORT TEAM,Third Party Payments,Revenue
Walsall Council,http://opendatacommunities.org/id/metropolitan-district-council/walsall,WC83-136,31/08/2017,Adult Social Care,ADVANCE HEALTH CARE (UK) LTD,02/08/2017,273,73019-PSE'S-PRIV CONTRACTOR FEES,TRANSITIONAL CARE SUPPORT TEAM,Third Party Payments,Revenue
Walsall Council,http://opendatacommunities.org/id/metropolitan-district-council/walsall,WC83-137,31/08/2017,Adult Social Care,ADVANCE HEALTH CARE (UK) LTD,02/08/2017,273,73019-PSE'S-PRIV CONTRACTOR FEES,TRANSITIONAL CARE SUPPORT TEAM,Third Party Payments,Revenue
Walsall Council,http://opendatacommunities.org/id/metropolitan-district-council/walsall,WC83-138,31/08/2017,Adult Social Care,ADVANCE HEALTH CARE (UK) LTD,11/08/2017,273,73019-PSE'S-PRIV CONTRACTOR FEES,TRANSITIONAL CARE SUPPORT TEAM,Third Party Payments,Revenue
Walsall Council,http://opendatacommunities.org/id/metropolitan-district-council/walsall,WC83-139,31/08/2017,Adult Social Care,ADVANCE HEALTH CARE (UK) LTD,25/08/2017,273,73019-PSE'S-PRIV CONTRACTOR FEES,TRANSITIONAL CARE SUPPORT TEAM,Third Party Payments,Revenue
Walsall Council,http://opendatacommunities.org/id/metropolitan-district-council/walsall,WC83-140,31/08/2017,Adult Social Care,ADVANCE HEALTH CARE (UK) LTD,14/08/2017,275.93,73025-PROFESSIONAL SERVICES-PRIV CONTRACTOR & OTHER AGENCIES,COMMUNITY INTERMEDIATE CARE,Third Party Payments,Revenue
Walsall Council,http://opendatacommunities.org/id/metropolitan-district-council/walsall,WC83-141,31/08/2017,Adult Social Care,ADVANCE HEALTH CARE (UK) LTD,14/08/2017,287.46,73025-PROFESSIONAL SERVICES-PRIV CONTRACTOR & OTHER AGENCIES,COMMUNITY INTERMEDIATE CARE,Third Party Payments,Revenue
Walsall Council,http://opendatacommunities.org/id/metropolitan-district-council/walsall,WC83-142,31/08/2017,Adult Social Care,ADVANCE HEALTH CARE (UK) LTD,16/08/2017,288.2,73025-PROFESSIONAL SERVICES-PRIV CONTRACTOR & OTHER AGENCIES,ACM MANAGEMENT TEAM,Third Party Payments,Revenue
Walsall Council,http://opendatacommunities.org/id/metropolitan-district-council/walsall,WC83-143,31/08/2017,Adult Social Care,ADVANCE HEALTH CARE (UK) LTD,07/08/2017,290.39,73025-PROFESSIONAL SERVICES-PRIV CONTRACTOR & OTHER AGENCIES,COMMUNITY INTERMEDIATE CARE,Third Party Payments,Revenue
Walsall Council,http://opendatacommunities.org/id/metropolitan-district-council/walsall,WC83-144,31/08/2017,Adult Social Care,ADVANCE HEALTH CARE (UK) LTD,18/08/2017,314.4,73025-PROFESSIONAL SERVICES-PRIV CONTRACTOR & OTHER AGENCIES,ACM MANAGEMENT TEAM,Third Party Payments,Revenue
Walsall Council,http://opendatacommunities.org/id/metropolitan-district-council/walsall,WC83-145,31/08/2017,Adult Social Care,ADVANCE HEALTH CARE (UK) LTD,18/08/2017,314.4,73025-PROFESSIONAL SERVICES-PRIV CONTRACTOR & OTHER AGENCIES,ACM MANAGEMENT TEAM,Third Party Payments,Revenue
Walsall Council,http://opendatacommunities.org/id/metropolitan-district-council/walsall,WC83-146,31/08/2017,Adult Social Care,ADVANCE HEALTH CARE (UK) LTD,16/08/2017,576.4,73025-PROFESSIONAL SERVICES-PRIV CONTRACTOR & OTHER AGENCIES,ACM MANAGEMENT TEAM,Third Party Payments,Revenue
Walsall Council,http://opendatacommunities.org/id/metropolitan-district-council/walsall,WC83-147,31/08/2017,Adult Social Care,ADVANCE HEALTH CARE (UK) LTD,02/08/2017,"3,753.15",73025-PROFESSIONAL SERVICES-PRIV CONTRACTOR & OTHER AGENCIES,COMMUNITY INTERMEDIATE CARE,Third Party Payments,Revenue
Walsall Council,http://opendatacommunities.org/id/metropolitan-district-council/walsall,WC83-148,31/08/2017,Adult Social Care,ADVANCE HEALTH CARE (UK) LTD,11/08/2017,"3,874.33",73025-PROFESSIONAL SERVICES-PRIV CONTRACTOR & OTHER AGENCIES,COMMUNITY INTERMEDIATE CARE,Third Party Payments,Revenue
Walsall Council,http://opendatacommunities.org/id/metropolitan-district-council/walsall,WC83-149,31/08/2017,Adult Social Care,ADVANCE HEALTH CARE (UK) LTD,16/08/2017,"3,979.13",73025-PROFESSIONAL SERVICES-PRIV CONTRACTOR & OTHER AGENCIES,COMMUNITY INTERMEDIATE CARE,Third Party Payments,Revenue
Walsall Council,http://opendatacommunities.org/id/metropolitan-district-council/walsall,WC83-150,31/08/2017,Adult Social Care,ADVANCE HEALTH CARE (UK) LTD,02/08/2017,"4,106.85",73025-PROFESSIONAL SERVICES-PRIV CONTRACTOR & OTHER AGENCIES,COMMUNITY INTERMEDIATE CARE,Third Party Payments,Revenue
Walsall Council,http://opendatacommunities.org/id/metropolitan-district-council/walsall,WC83-151,31/08/2017,Adult Social Care,ADVANCE HEALTH CARE (UK) LTD,03/08/2017,"4,434.35",73025-PROFESSIONAL SERVICES-PRIV CONTRACTOR & OTHER AGENCIES,COMMUNITY INTERMEDIATE CARE,Third Party Payments,Revenue
Walsall Council,http://opendatacommunities.org/id/metropolitan-district-council/walsall,WC83-152,31/08/2017,Adult Social Care,ADVANCE HEALTH CARE (UK) LTD,16/08/2017,"74,996.11",73372-DOMICILIARY CARE,OP COMMISSIONING,Third Party Payments,Revenue
Walsall Council,http://opendatacommunities.org/id/metropolitan-district-council/walsall,WC83-153,31/08/2017,Change and Governance,ADVANCED DIGITAL IMAGING,07/08/2017,344,62008-OUTWORK-PRINT ROOM,PRINTING SERVICES,Supplies & Services,Revenue
Walsall Council,http://opendatacommunities.org/id/metropolitan-district-council/walsall,WC83-154,31/08/2017,Change and Governance,ADVANCED DIGITAL IMAGING,07/08/2017,"1,660.00",62008-OUTWORK-PRINT ROOM,PRINTING SERVICES,Supplies & Services,Revenue
Walsall Council,http://opendatacommunities.org/id/metropolitan-district-council/walsall,WC83-155,31/08/2017,Change and Governance,ADVANCED DIGITAL IMAGING,07/08/2017,"8,100.00",62008-OUTWORK-PRINT ROOM,PRINTING SERVICES,Supplies & Services,Revenue
Walsall Council,http://opendatacommunities.org/id/metropolitan-district-council/walsall,WC83-156,31/08/2017,Economy & Environment,AEBI SCHMIDT UK LIMITED,21/08/2017,272.76,60514-MATERIALS TO STORES,FLEET PARTS STOCK ACCOUNT,Supplies & Services,Revenue
Walsall Council,http://opendatacommunities.org/id/metropolitan-district-council/walsall,WC83-157,31/08/2017,Adult Social Care,AGE UK WALSALL,18/08/2017,"7,056.00",76423-DIRECT PAYMENTS SUPPORT,DIRECT PAYMENT SUPPORT ORGANISATIONS,Transfer Payments,Revenue
Walsall Council,http://opendatacommunities.org/id/metropolitan-district-council/walsall,WC83-158,31/08/2017,Adult Social Care,REDACTED,07/08/2017,"1,882.00",76422-DIRECT PAYMENTS TO SOCIAL SERVICES CLIENTS,LD COMMISSIONING,Transfer Payments,Revenue
Walsall Council,http://opendatacommunities.org/id/metropolitan-district-council/walsall,WC83-159,31/08/2017,Change and Governance,AIREY CONSULTANCY SERVICES LTD,08/08/2017,650,63102-CONSULTANTS FEES - CORPORATE,REVENUES,Supplies & Services,Revenue
Walsall Council,http://opendatacommunities.org/id/metropolitan-district-council/walsall,WC83-160,31/08/2017,Adult Social Care,REDACTED,07/08/2017,914.2,76422-DIRECT PAYMENTS TO SOCIAL SERVICES CLIENTS,OP COMMISSIONING,Transfer Payments,Revenue
Walsall Council,http://opendatacommunities.org/id/metropolitan-district-council/walsall,WC83-161,31/08/2017,Childrens,AJK TRAVEL,10/08/2017,"21,677.88",52000-WITH DRIVER-HIRE OF VEHICLES,SCHOOL TRANSPORT,Transport,Revenue
Walsall Council,http://opendatacommunities.org/id/metropolitan-district-council/walsall,WC83-162,31/08/2017,Adult Social Care,REDACTED,10/08/2017,"1,742.00",76422-DIRECT PAYMENTS TO SOCIAL SERVICES CLIENTS,OP COMMISSIONING,Transfer Payments,Revenue
Walsall Council,http://opendatacommunities.org/id/metropolitan-district-council/walsall,WC83-163,31/08/2017,Childrens,ALBERT PRITCHARD INFANT AND WOOD GREEN JUNIOR FEDERATED SCHOOLS,01/08/2017,600,77300-ISB-FORMULA ALLOCATION,OUT OF BOROUGH SCHOOLS,Transfer Payments,Revenue
Walsall Council,http://opendatacommunities.org/id/metropolitan-district-council/walsall,WC83-164,31/08/2017,Childrens,ALBRIGHTON CARE LTD,14/08/2017,"9,980.00",74036-EXTERNAL RESIDENTIAL CARE-OTH AGENCY PROVISION,INDEPENDENT RESIDENTIAL HOMES,Third Party Payments,Revenue
Walsall Council,http://opendatacommunities.org/id/metropolitan-district-council/walsall,WC83-165,31/08/2017,Childrens,ALBRIGHTON CARE LTD,14/08/2017,"22,748.57",74036-EXTERNAL RESIDENTIAL CARE-OTH AGENCY PROVISION,INDEPENDENT RESIDENTIAL HOMES,Third Party Payments,Revenue
Walsall Council,http://opendatacommunities.org/id/metropolitan-district-council/walsall,WC83-166,31/08/2017,Childrens,ALDER COPPICE PRIMARY SCHOOL,01/08/2017,600,77300-ISB-FORMULA ALLOCATION,OUT OF BOROUGH SCHOOLS,Transfer Payments,Revenue
Walsall Council,http://opendatacommunities.org/id/metropolitan-district-council/walsall,WC83-167,31/08/2017,Adult Social Care,ALDERGROVE MANOR LTD,02/08/2017,"1,839.68",73373-RESIDENTIAL & NURSING CARE PLACEMENTS,MH COMMISSIONING,Third Party Payments,Revenue
Walsall Council,http://opendatacommunities.org/id/metropolitan-district-council/walsall,WC83-168,31/08/2017,Adult Social Care,ALDERGROVE MANOR LTD,29/08/2017,"1,839.68",73373-RESIDENTIAL & NURSING CARE PLACEMENTS,MH COMMISSIONING,Third Party Payments,Revenue
Walsall Council,http://opendatacommunities.org/id/metropolitan-district-council/walsall,WC83-169,31/08/2017,Adult Social Care,ALDERGROVE MANOR LTD,29/08/2017,"3,232.32",73373-RESIDENTIAL & NURSING CARE PLACEMENTS,OP COMMISSIONING,Third Party Payments,Revenue
Walsall Council,http://opendatacommunities.org/id/metropolitan-district-council/walsall,WC83-170,31/08/2017,Childrens,ALDRIDGE & BARONS LIMITED,10/08/2017,"6,686.75",52000-WITH DRIVER-HIRE OF VEHICLES,SCHOOL TRANSPORT,Transport,Revenue
Walsall Council,http://opendatacommunities.org/id/metropolitan-district-council/walsall,WC83-171,31/08/2017,Childrens,ALDRIDGE & BARONS LIMITED,02/08/2017,"20,846.65",52000-WITH DRIVER-HIRE OF VEHICLES,SCHOOL TRANSPORT,Transport,Revenue
Walsall Council,http://opendatacommunities.org/id/metropolitan-district-council/walsall,WC83-172,31/08/2017,Childrens,ALDRIDGE & BARONS LIMITED,02/08/2017,"23,504.70",52000-WITH DRIVER-HIRE OF VEHICLES,SCHOOL TRANSPORT,Transport,Revenue
Walsall Council,http://opendatacommunities.org/id/metropolitan-district-council/walsall,WC83-173,31/08/2017,Childrens,ALDRIDGE SCHOOL A SCIENCE COLLEGE.,30/08/2017,500,73025-PROFESSIONAL SERVICES-PRIV CONTRACTOR & OTHER AGENCIES,ADMISSIONS & PUPIL PLACE PLANNING,Third Party Payments,Revenue
Walsall Council,http://opendatacommunities.org/id/metropolitan-district-council/walsall,WC83-174,31/08/2017,Childrens,ALDRIDGE SCHOOL A SCIENCE COLLEGE.,01/08/2017,"2,100.00",77300-ISB-FORMULA ALLOCATION,ALDRIDGE SCHOOL SCIENCE COLLEGE (ACADEMY),Transfer Payments,Revenue
Walsall Council,http://opendatacommunities.org/id/metropolitan-district-council/walsall,WC83-175,31/08/2017,Adult Social Care,REDACTED,07/08/2017,"1,204.00",76422-DIRECT PAYMENTS TO SOCIAL SERVICES CLIENTS,PD COMMISSIONING,Transfer Payments,Revenue
Walsall Council,http://opendatacommunities.org/id/metropolitan-district-council/walsall,WC83-176,31/08/2017,Adult Social Care,ALEXANDRA HOUSE CARE SERVICES LTD T/A STONEBRIDGE NURSING HOME,14/08/2017,"7,117.44",73373-RESIDENTIAL & NURSING CARE PLACEMENTS,LD COMMISSIONING,Third Party Payments,Revenue
Walsall Council,http://opendatacommunities.org/id/metropolitan-district-council/walsall,WC83-177,31/08/2017,Childrens,REDACTED,07/08/2017,582.66,76422-DIRECT PAYMENTS TO SOCIAL SERVICES CLIENTS,FAMILY SUPPORT - DIRECT PAYMENTS,Transfer Payments,Revenue
Walsall Council,http://opendatacommunities.org/id/metropolitan-district-council/walsall,WC83-178,31/08/2017,Childrens,REDACTED,07/08/2017,"1,616.00",76422-DIRECT PAYMENTS TO SOCIAL SERVICES CLIENTS,FAMILY SUPPORT - DIRECT PAYMENTS,Transfer Payments,Revenue
Walsall Council,http://opendatacommunities.org/id/metropolitan-district-council/walsall,WC83-179,31/08/2017,Adult Social Care,REDACTED,07/08/2017,898,76422-DIRECT PAYMENTS TO SOCIAL SERVICES CLIENTS,PD COMMISSIONING,Transfer Payments,Revenue
Walsall Council,http://opendatacommunities.org/id/metropolitan-district-council/walsall,WC83-180,31/08/2017,Change and Governance,ALIGNED ASSETS LTD,01/08/2017,"6,919.80",63820-RECHARGE FOR MAINTENANCE/APPLICATION COSTS-COMPUTER,APPLICATIONS,Supplies & Services,Revenue
Walsall Council,http://opendatacommunities.org/id/metropolitan-district-council/walsall,WC83-181,31/08/2017,Adult Social Care,REDACTED,07/08/2017,612,76422-DIRECT PAYMENTS TO SOCIAL SERVICES CLIENTS,OP COMMISSIONING,Transfer Payments,Revenue
Walsall Council,http://opendatacommunities.org/id/metropolitan-district-council/walsall,WC83-182,31/08/2017,Adult Social Care,REDACTED,01/08/2017,"1,251.64",73374-SUPPORTED & OTHER ACCOMMODATION,LD COMMISSIONING,Third Party Payments,Revenue
Walsall Council,http://opendatacommunities.org/id/metropolitan-district-council/walsall,WC83-183,31/08/2017,Adult Social Care,REDACTED,24/08/2017,"1,251.64",73374-SUPPORTED & OTHER ACCOMMODATION,LD COMMISSIONING,Third Party Payments,Revenue
Walsall Council,http://opendatacommunities.org/id/metropolitan-district-council/walsall,WC83-184,31/08/2017,Childrens,REDACTED,01/08/2017,488.64,74509-SPECIAL GUARDIANSHIP ORDERS,ADOPTION ALLOWANCES,Transfer Payments,Revenue
Walsall Council,http://opendatacommunities.org/id/metropolitan-district-council/walsall,WC83-185,31/08/2017,Childrens,REDACTED,29/08/2017,488.64,74509-SPECIAL GUARDIANSHIP ORDERS,ADOPTION ALLOWANCES,Transfer Payments,Revenue
Walsall Council,http://opendatacommunities.org/id/metropolitan-district-council/walsall,WC83-186,31/08/2017,Childrens,REDACTED,01/08/2017,552.96,74510-RESIDENTS ORDERS,ADOPTION ALLOWANCES,Third Party Payments,Revenue
Walsall Council,http://opendatacommunities.org/id/metropolitan-district-council/walsall,WC83-187,31/08/2017,Childrens,REDACTED,29/08/2017,552.96,74510-RESIDENTS ORDERS,ADOPTION ALLOWANCES,Third Party Payments,Revenue
Walsall Council,http://opendatacommunities.org/id/metropolitan-district-council/walsall,WC83-188,31/08/2017,Change and Governance,ALLSORTS OFFICE SUPPLIES LTD,11/08/2017,"2,550.00",63800-COMPUTER EQUIPMENT AND SUPPLIES,RECHARGEABLE EQUIPMENT,Supplies & Services,Revenue
Walsall Council,http://opendatacommunities.org/id/metropolitan-district-council/walsall,WC83-189,31/08/2017,Adult Social Care,ALMA COURT,14/08/2017,"6,316.87",73373-RESIDENTIAL & NURSING CARE PLACEMENTS,MH COMMISSIONING,Third Party Payments,Revenue
Walsall Council,http://opendatacommunities.org/id/metropolitan-district-council/walsall,WC83-190,31/08/2017,Adult Social Care,ALPHA HEALTH CARE LTD,29/08/2017,532.14,73373-RESIDENTIAL & NURSING CARE PLACEMENTS,MH COMMISSIONING,Third Party Payments,Revenue
Walsall Council,http://opendatacommunities.org/id/metropolitan-district-council/walsall,WC83-191,31/08/2017,Adult Social Care,ALPHA HEALTH CARE LTD,29/08/2017,957.86,73373-RESIDENTIAL & NURSING CARE PLACEMENTS,MH COMMISSIONING,Third Party Payments,Revenue
Walsall Council,http://opendatacommunities.org/id/metropolitan-district-council/walsall,WC83-192,31/08/2017,Adult Social Care,ALPHA HEALTH CARE LTD,14/08/2017,"1,330.71",73373-RESIDENTIAL & NURSING CARE PLACEMENTS,OP COMMISSIONING,Third Party Payments,Revenue
Walsall Council,http://opendatacommunities.org/id/metropolitan-district-council/walsall,WC83-193,31/08/2017,Adult Social Care,ALPHA HEALTH CARE LTD,14/08/2017,"1,330.72",73373-RESIDENTIAL & NURSING CARE PLACEMENTS,OP COMMISSIONING,Third Party Payments,Revenue
Walsall Council,http://opendatacommunities.org/id/metropolitan-district-council/walsall,WC83-194,31/08/2017,Adult Social Care,ALPHA HEALTH CARE LTD,14/08/2017,"1,330.72",73373-RESIDENTIAL & NURSING CARE PLACEMENTS,OP COMMISSIONING,Third Party Payments,Revenue
Walsall Council,http://opendatacommunities.org/id/metropolitan-district-council/walsall,WC83-195,31/08/2017,Adult Social Care,ALPHA HEALTH CARE LTD,14/08/2017,"1,355.19",73373-RESIDENTIAL & NURSING CARE PLACEMENTS,OP COMMISSIONING,Third Party Payments,Revenue
Walsall Council,http://opendatacommunities.org/id/metropolitan-district-council/walsall,WC83-196,31/08/2017,Adult Social Care,ALPHA HEALTH CARE LTD,14/08/2017,"1,355.19",73373-RESIDENTIAL & NURSING CARE PLACEMENTS,MH COMMISSIONING,Third Party Payments,Revenue
Walsall Council,http://opendatacommunities.org/id/metropolitan-district-council/walsall,WC83-197,31/08/2017,Adult Social Care,ALPHA HEALTH CARE LTD,14/08/2017,"1,355.19",73373-RESIDENTIAL & NURSING CARE PLACEMENTS,OP COMMISSIONING,Third Party Payments,Revenue
Walsall Council,http://opendatacommunities.org/id/metropolitan-district-council/walsall,WC83-198,31/08/2017,Adult Social Care,ALPHA HEALTH CARE LTD,14/08/2017,"1,355.19",73373-RESIDENTIAL & NURSING CARE PLACEMENTS,OP COMMISSIONING,Third Party Payments,Revenue
Walsall Council,http://opendatacommunities.org/id/metropolitan-district-council/walsall,WC83-199,31/08/2017,Adult Social Care,ALPHA HEALTH CARE LTD,14/08/2017,"1,355.19",73373-RESIDENTIAL & NURSING CARE PLACEMENTS,MH COMMISSIONING,Third Party Payments,Revenue
Walsall Council,http://opendatacommunities.org/id/metropolitan-district-council/walsall,WC83-200,31/08/2017,Adult Social Care,ALPHA HEALTH CARE LTD,14/08/2017,"1,355.20",73373-RESIDENTIAL & NURSING CARE PLACEMENTS,OP COMMISSIONING,Third Party Payments,Revenue
Walsall Council,http://opendatacommunities.org/id/metropolitan-district-council/walsall,WC83-201,31/08/2017,Adult Social Care,ALPHA HEALTH CARE LTD,14/08/2017,"1,355.20",73373-RESIDENTIAL & NURSING CARE PLACEMENTS,OP COMMISSIONING,Third Party Payments,Revenue
Walsall Council,http://opendatacommunities.org/id/metropolitan-district-council/walsall,WC83-202,31/08/2017,Adult Social Care,ALPHA HEALTH CARE LTD,14/08/2017,"1,478.57",73373-RESIDENTIAL & NURSING CARE PLACEMENTS,OP COMMISSIONING,Third Party Payments,Revenue
Walsall Council,http://opendatacommunities.org/id/metropolitan-district-council/walsall,WC83-203,31/08/2017,Adult Social Care,ALPHA HEALTH CARE LTD,21/08/2017,"1,656.00",73373-RESIDENTIAL & NURSING CARE PLACEMENTS,OP COMMISSIONING,Third Party Payments,Revenue
Walsall Council,http://opendatacommunities.org/id/metropolitan-district-council/walsall,WC83-204,31/08/2017,Adult Social Care,ALPHA HEALTH CARE LTD,21/08/2017,"1,656.00",73373-RESIDENTIAL & NURSING CARE PLACEMENTS,OP COMMISSIONING,Third Party Payments,Revenue
Walsall Council,http://opendatacommunities.org/id/metropolitan-district-council/walsall,WC83-205,31/08/2017,Adult Social Care,ALPHA HEALTH CARE LTD,21/08/2017,"1,656.00",73373-RESIDENTIAL & NURSING CARE PLACEMENTS,OP COMMISSIONING,Third Party Payments,Revenue
Walsall Council,http://opendatacommunities.org/id/metropolitan-district-council/walsall,WC83-206,31/08/2017,Adult Social Care,ALPHA HEALTH CARE LTD,14/08/2017,"1,720.89",73373-RESIDENTIAL & NURSING CARE PLACEMENTS,OP COMMISSIONING,Third Party Payments,Revenue
Walsall Council,http://opendatacommunities.org/id/metropolitan-district-council/walsall,WC83-207,31/08/2017,Adult Social Care,ALPHA HEALTH CARE LTD,14/08/2017,"1,720.89",73373-RESIDENTIAL & NURSING CARE PLACEMENTS,OP COMMISSIONING,Third Party Payments,Revenue
Walsall Council,http://opendatacommunities.org/id/metropolitan-district-council/walsall,WC83-208,31/08/2017,Adult Social Care,ALPHA HEALTH CARE LTD,14/08/2017,"1,786.61",73373-RESIDENTIAL & NURSING CARE PLACEMENTS,OP COMMISSIONING,Third Party Payments,Revenue
Walsall Council,http://opendatacommunities.org/id/metropolitan-district-council/walsall,WC83-209,31/08/2017,Adult Social Care,ALPHA HEALTH CARE LTD,14/08/2017,"1,786.61",73373-RESIDENTIAL & NURSING CARE PLACEMENTS,OP COMMISSIONING,Third Party Payments,Revenue
Walsall Council,http://opendatacommunities.org/id/metropolitan-district-council/walsall,WC83-210,31/08/2017,Adult Social Care,ALPHA HEALTH CARE LTD,29/08/2017,"1,840.00",73373-RESIDENTIAL & NURSING CARE PLACEMENTS,OP COMMISSIONING,Third Party Payments,Revenue
Walsall Council,http://opendatacommunities.org/id/metropolitan-district-council/walsall,WC83-211,31/08/2017,Adult Social Care,ALPHA HEALTH CARE LTD,21/08/2017,"1,910.64",73373-RESIDENTIAL & NURSING CARE PLACEMENTS,MH COMMISSIONING,Third Party Payments,Revenue
Walsall Council,http://opendatacommunities.org/id/metropolitan-district-council/walsall,WC83-212,31/08/2017,Adult Social Care,ALPHA HEALTH CARE LTD,21/08/2017,"2,239.28",73373-RESIDENTIAL & NURSING CARE PLACEMENTS,MH COMMISSIONING,Third Party Payments,Revenue
Walsall Council,http://opendatacommunities.org/id/metropolitan-district-council/walsall,WC83-213,31/08/2017,Adult Social Care,ALPHA HEALTH CARE LTD,14/08/2017,"2,348.86",73373-RESIDENTIAL & NURSING CARE PLACEMENTS,MH COMMISSIONING,Third Party Payments,Revenue
Walsall Council,http://opendatacommunities.org/id/metropolitan-district-council/walsall,WC83-214,31/08/2017,Adult Social Care,ALPHA HEALTH CARE LTD,29/08/2017,"3,192.86",73373-RESIDENTIAL & NURSING CARE PLACEMENTS,MH COMMISSIONING,Third Party Payments,Revenue
Walsall Council,http://opendatacommunities.org/id/metropolitan-district-council/walsall,WC83-215,31/08/2017,Adult Social Care,ALPHA HEALTH CARE LTD,29/08/2017,"3,299.29",73373-RESIDENTIAL & NURSING CARE PLACEMENTS,MH COMMISSIONING,Third Party Payments,Revenue
Walsall Council,http://opendatacommunities.org/id/metropolitan-district-council/walsall,WC83-216,31/08/2017,Adult Social Care,ALPHA HEALTH CARE LTD,29/08/2017,"3,299.29",73373-RESIDENTIAL & NURSING CARE PLACEMENTS,MH COMMISSIONING,Third Party Payments,Revenue
Walsall Council,http://opendatacommunities.org/id/metropolitan-district-council/walsall,WC83-217,31/08/2017,Adult Social Care,ALPHA HEALTH CARE LTD,29/08/2017,"3,299.29",73373-RESIDENTIAL & NURSING CARE PLACEMENTS,MH COMMISSIONING,Third Party Payments,Revenue
Walsall Council,http://opendatacommunities.org/id/metropolitan-district-council/walsall,WC83-218,31/08/2017,Adult Social Care,ALPHA HEALTH CARE LTD,21/08/2017,"4,472.39",73373-RESIDENTIAL & NURSING CARE PLACEMENTS,MH COMMISSIONING,Third Party Payments,Revenue
Walsall Council,http://opendatacommunities.org/id/metropolitan-district-council/walsall,WC83-219,31/08/2017,Adult Social Care,ALPHA HEALTH CARE LTD,14/08/2017,"4,764.29",73373-RESIDENTIAL & NURSING CARE PLACEMENTS,MH COMMISSIONING,Third Party Payments,Revenue
Walsall Council,http://opendatacommunities.org/id/metropolitan-district-council/walsall,WC83-220,31/08/2017,Childrens,ALPHABIOLABS,03/08/2017,435,63000-PROFESSIONAL FEES AND SERVICES,SAFEGUARDING & FAMILY SUPPORT,Supplies & Services,Revenue
Walsall Council,http://opendatacommunities.org/id/metropolitan-district-council/walsall,WC83-221,31/08/2017,Childrens,ALPHABIOLABS,24/08/2017,851.5,73025-PROFESSIONAL SERVICES-PRIV CONTRACTOR & OTHER AGENCIES,SAFEGUARDING & FAMILY SUPPORT,Third Party Payments,Revenue
Walsall Council,http://opendatacommunities.org/id/metropolitan-district-council/walsall,WC83-222,31/08/2017,Childrens,ALPHABIOLABS,03/08/2017,"1,560.00",63000-PROFESSIONAL FEES AND SERVICES,SAFEGUARDING & FAMILY SUPPORT,Supplies & Services,Revenue
Walsall Council,http://opendatacommunities.org/id/metropolitan-district-council/walsall,WC83-223,31/08/2017,Childrens,REDACTED,01/08/2017,808.04,74009-ADOPTION ALLOWANCE,ADOPTION ALLOWANCES,Transfer Payments,Revenue
Walsall Council,http://opendatacommunities.org/id/metropolitan-district-council/walsall,WC83-224,31/08/2017,Childrens,REDACTED,29/08/2017,808.04,74009-ADOPTION ALLOWANCE,ADOPTION ALLOWANCES,Transfer Payments,Revenue
Walsall Council,http://opendatacommunities.org/id/metropolitan-district-council/walsall,WC83-225,31/08/2017,Childrens,REDACTED,14/08/2017,9.24,60006-NEW-FURNITURE & EQUIPMENT,INTERNAL FOSTER CARE PROVISION,Supplies & Services,Revenue
Walsall Council,http://opendatacommunities.org/id/metropolitan-district-council/walsall,WC83-226,31/08/2017,Childrens,REDACTED,14/08/2017,111.07,74506-TRAVEL-FOSTER CARERS,INTERNAL FOSTER CARE PROVISION,Transfer Payments,Revenue
Walsall Council,http://opendatacommunities.org/id/metropolitan-district-council/walsall,WC83-227,31/08/2017,Childrens,REDACTED,14/08/2017,535.46,74508-INTERNAL FOSTER CARERS-CARER FEES,INTERNAL FOSTER CARE PROVISION,Transfer Payments,Revenue
Walsall Council,http://opendatacommunities.org/id/metropolitan-district-council/walsall,WC83-228,31/08/2017,Childrens,REDACTED,14/08/2017,650.92,74501-MAINTENANCE ALLOWANCE-FOSTER CARERS,INTERNAL FOSTER CARE PROVISION,Transfer Payments,Revenue
Walsall Council,http://opendatacommunities.org/id/metropolitan-district-council/walsall,WC83-229,31/08/2017,Childrens,REDACTED,07/08/2017,336.92,76422-DIRECT PAYMENTS TO SOCIAL SERVICES CLIENTS,FAMILY SUPPORT - DIRECT PAYMENTS,Transfer Payments,Revenue
Walsall Council,http://opendatacommunities.org/id/metropolitan-district-council/walsall,WC83-230,31/08/2017,Economy & Environment,AMEY LG LIMITED,14/08/2017,238.06,73002-SECURITY-PRIV CONTRACTOR FEES,TRAFFIC CONTROL,Third Party Payments,Revenue
Walsall Council,http://opendatacommunities.org/id/metropolitan-district-council/walsall,WC83-231,31/08/2017,Economy & Environment,AMEY LG LIMITED,30/08/2017,254.95,01002-PROJECT FEES,CFR 1228 A461 NATIONAL PRODUCTIVITY INVESTMENT FUND (NPIF),Capital,Capital
Walsall Council,http://opendatacommunities.org/id/metropolitan-district-council/walsall,WC83-232,31/08/2017,Economy & Environment,AMEY LG LIMITED,14/08/2017,377.58,73002-SECURITY-PRIV CONTRACTOR FEES,TRAFFIC CONTROL,Third Party Payments,Revenue
Walsall Council,http://opendatacommunities.org/id/metropolitan-district-council/walsall,WC83-233,31/08/2017,Economy & Environment,AMEY LG LIMITED,14/08/2017,806.79,64002-OTHER EXPENSES-EXPENSES,STREET LIGHTING PFI PROJECT,Supplies & Services,Revenue
Walsall Council,http://opendatacommunities.org/id/metropolitan-district-council/walsall,WC83-234,31/08/2017,Economy & Environment,AMEY LG LIMITED,16/08/2017,"3,202.24",01006-SITE WORKS MAIN CONTRACTORS,CFR 1198 BLACK COUNTRY ROUTE/KEYWAY ROUNDABOUT,Capital,Capital
Walsall Council,http://opendatacommunities.org/id/metropolitan-district-council/walsall,WC83-235,31/08/2017,Economy & Environment,AMEY LG LIMITED,15/08/2017,"6,756.84",01006-SITE WORKS MAIN CONTRACTORS,CFR 1198 WEST BROMWICH ROAD (GREENSIDE WAY TO WALSTEAD ROAD),Capital,Capital
Walsall Council,http://opendatacommunities.org/id/metropolitan-district-council/walsall,WC83-236,31/08/2017,Economy & Environment,AMEY LG LIMITED,14/08/2017,"8,259.00",73025-PROFESSIONAL SERVICES-PRIV CONTRACTOR & OTHER AGENCIES,STREET LIGHTING PFI PROJECT,Third Party Payments,Revenue
Walsall Council,http://opendatacommunities.org/id/metropolitan-district-council/walsall,WC83-237,31/08/2017,Childrens,AMG NURSING CARE SERVICES,16/08/2017,"1,110.72",63000-PROFESSIONAL FEES AND SERVICES,DIRECTLY COMMISSIONED NURSING SERVICES,Supplies & Services,Revenue
Walsall Council,http://opendatacommunities.org/id/metropolitan-district-council/walsall,WC83-238,31/08/2017,Childrens,AMG NURSING CARE SERVICES,21/08/2017,"1,110.72",63000-PROFESSIONAL FEES AND SERVICES,DIRECTLY COMMISSIONED NURSING SERVICES,Supplies & Services,Revenue
Walsall Council,http://opendatacommunities.org/id/metropolitan-district-council/walsall,WC83-239,31/08/2017,Childrens,AMG NURSING CARE SERVICES,29/08/2017,"1,904.24",63000-PROFESSIONAL FEES AND SERVICES,DIRECTLY COMMISSIONED NURSING SERVICES,Supplies & Services,Revenue
Walsall Council,http://opendatacommunities.org/id/metropolitan-district-council/walsall,WC83-240,31/08/2017,Childrens,AMG NURSING CARE SERVICES,21/08/2017,"2,274.48",63000-PROFESSIONAL FEES AND SERVICES,DIRECTLY COMMISSIONED NURSING SERVICES,Supplies & Services,Revenue
Walsall Council,http://opendatacommunities.org/id/metropolitan-district-council/walsall,WC83-241,31/08/2017,Childrens,AMG NURSING CARE SERVICES,09/08/2017,"2,644.72",63000-PROFESSIONAL FEES AND SERVICES,DIRECTLY COMMISSIONED NURSING SERVICES,Supplies & Services,Revenue
Walsall Council,http://opendatacommunities.org/id/metropolitan-district-council/walsall,WC83-242,31/08/2017,Adult Social Care,AMG NURSING CARE SERVICES,17/08/2017,"3,640.00",73374-SUPPORTED & OTHER ACCOMMODATION,LD COMMISSIONING,Third Party Payments,Revenue
Walsall Council,http://opendatacommunities.org/id/metropolitan-district-council/walsall,WC83-243,31/08/2017,Adult Social Care,AMG NURSING CARE SERVICES,17/08/2017,"3,640.00",73374-SUPPORTED & OTHER ACCOMMODATION,LD COMMISSIONING,Third Party Payments,Revenue
Walsall Council,http://opendatacommunities.org/id/metropolitan-district-council/walsall,WC83-244,31/08/2017,Adult Social Care,AMG NURSING CARE SERVICES,17/08/2017,"3,640.00",73374-SUPPORTED & OTHER ACCOMMODATION,LD COMMISSIONING,Third Party Payments,Revenue
Walsall Council,http://opendatacommunities.org/id/metropolitan-district-council/walsall,WC83-245,31/08/2017,Adult Social Care,AMG NURSING CARE SERVICES,17/08/2017,"3,640.00",73374-SUPPORTED & OTHER ACCOMMODATION,PD COMMISSIONING,Third Party Payments,Revenue
Walsall Council,http://opendatacommunities.org/id/metropolitan-district-council/walsall,WC83-246,31/08/2017,Adult Social Care,AMG NURSING CARE SERVICES,24/08/2017,"3,640.00",73374-SUPPORTED & OTHER ACCOMMODATION,PD COMMISSIONING,Third Party Payments,Revenue
Walsall Council,http://opendatacommunities.org/id/metropolitan-district-council/walsall,WC83-247,31/08/2017,Adult Social Care,AMG NURSING CARE SERVICES,18/08/2017,"10,711.68",73374-SUPPORTED & OTHER ACCOMMODATION,OP COMMISSIONING,Third Party Payments,Revenue
Walsall Council,http://opendatacommunities.org/id/metropolitan-district-council/walsall,WC83-248,31/08/2017,Adult Social Care,AMG NURSING CARE SERVICES,18/08/2017,"10,711.68",73374-SUPPORTED & OTHER ACCOMMODATION,OP COMMISSIONING,Third Party Payments,Revenue
Walsall Council,http://opendatacommunities.org/id/metropolitan-district-council/walsall,WC83-249,31/08/2017,Childrens,REDACTED,01/08/2017,9.24,60006-NEW-FURNITURE & EQUIPMENT,FAMILY & FRIENDS FOSTER CARE PROVISION,Supplies & Services,Revenue
Walsall Council,http://opendatacommunities.org/id/metropolitan-district-council/walsall,WC83-250,31/08/2017,Childrens,REDACTED,29/08/2017,9.24,60006-NEW-FURNITURE & EQUIPMENT,FAMILY & FRIENDS FOSTER CARE PROVISION,Supplies & Services,Revenue
Walsall Council,http://opendatacommunities.org/id/metropolitan-district-council/walsall,WC83-251,31/08/2017,Childrens,REDACTED,01/08/2017,345.24,74508-INTERNAL FOSTER CARERS-CARER FEES,FAMILY & FRIENDS FOSTER CARE PROVISION,Transfer Payments,Revenue
Walsall Council,http://opendatacommunities.org/id/metropolitan-district-council/walsall,WC83-252,31/08/2017,Childrens,REDACTED,29/08/2017,345.24,74508-INTERNAL FOSTER CARERS-CARER FEES,FAMILY & FRIENDS FOSTER CARE PROVISION,Transfer Payments,Revenue
Walsall Council,http://opendatacommunities.org/id/metropolitan-district-council/walsall,WC83-253,31/08/2017,Childrens,REDACTED,29/08/2017,516.6,74506-TRAVEL-FOSTER CARERS,FAMILY & FRIENDS FOSTER CARE PROVISION,Transfer Payments,Revenue
Walsall Council,http://opendatacommunities.org/id/metropolitan-district-council/walsall,WC83-254,31/08/2017,Childrens,REDACTED,01/08/2017,571.44,74501-MAINTENANCE ALLOWANCE-FOSTER CARERS,FAMILY & FRIENDS FOSTER CARE PROVISION,Transfer Payments,Revenue
Walsall Council,http://opendatacommunities.org/id/metropolitan-district-council/walsall,WC83-255,31/08/2017,Childrens,REDACTED,29/08/2017,571.44,74501-MAINTENANCE ALLOWANCE-FOSTER CARERS,FAMILY & FRIENDS FOSTER CARE PROVISION,Transfer Payments,Revenue
Walsall Council,http://opendatacommunities.org/id/metropolitan-district-council/walsall,WC83-256,31/08/2017,Childrens,REDACTED,01/08/2017,425.08,74510-RESIDENTS ORDERS,ADOPTION ALLOWANCES,Third Party Payments,Revenue
Walsall Council,http://opendatacommunities.org/id/metropolitan-district-council/walsall,WC83-257,31/08/2017,Childrens,REDACTED,29/08/2017,425.08,74510-RESIDENTS ORDERS,ADOPTION ALLOWANCES,Third Party Payments,Revenue
Walsall Council,http://opendatacommunities.org/id/metropolitan-district-council/walsall,WC83-258,31/08/2017,Adult Social Care,REDACTED,07/08/2017,270,76422-DIRECT PAYMENTS TO SOCIAL SERVICES CLIENTS,OP COMMISSIONING,Transfer Payments,Revenue
Walsall Council,http://opendatacommunities.org/id/metropolitan-district-council/walsall,WC83-259,31/08/2017,Adult Social Care,ANCHOR,29/08/2017,"-1,414.29",73373-RESIDENTIAL & NURSING CARE PLACEMENTS,OP COMMISSIONING,Third Party Payments,Revenue
Walsall Council,http://opendatacommunities.org/id/metropolitan-district-council/walsall,WC83-260,31/08/2017,Adult Social Care,ANCHOR,14/08/2017,900,73373-RESIDENTIAL & NURSING CARE PLACEMENTS,OP COMMISSIONING,Third Party Payments,Revenue
Walsall Council,http://opendatacommunities.org/id/metropolitan-district-council/walsall,WC83-261,31/08/2017,Adult Social Care,ANCHOR,14/08/2017,"1,157.14",73373-RESIDENTIAL & NURSING CARE PLACEMENTS,OP COMMISSIONING,Third Party Payments,Revenue
Walsall Council,http://opendatacommunities.org/id/metropolitan-district-council/walsall,WC83-262,31/08/2017,Adult Social Care,ANCHOR,02/08/2017,"1,620.00",73373-RESIDENTIAL & NURSING CARE PLACEMENTS,OP COMMISSIONING,Third Party Payments,Revenue
Walsall Council,http://opendatacommunities.org/id/metropolitan-district-council/walsall,WC83-263,31/08/2017,Adult Social Care,ANCHOR,02/08/2017,"1,620.00",73373-RESIDENTIAL & NURSING CARE PLACEMENTS,OP COMMISSIONING,Third Party Payments,Revenue
Walsall Council,http://opendatacommunities.org/id/metropolitan-district-council/walsall,WC83-264,31/08/2017,Adult Social Care,ANCHOR,02/08/2017,"1,800.00",73373-RESIDENTIAL & NURSING CARE PLACEMENTS,OP COMMISSIONING,Third Party Payments,Revenue
Walsall Council,http://opendatacommunities.org/id/metropolitan-district-council/walsall,WC83-265,31/08/2017,Adult Social Care,ANCHOR,02/08/2017,"1,800.00",73373-RESIDENTIAL & NURSING CARE PLACEMENTS,OP COMMISSIONING,Third Party Payments,Revenue
Walsall Council,http://opendatacommunities.org/id/metropolitan-district-council/walsall,WC83-266,31/08/2017,Adult Social Care,ANCHOR,02/08/2017,"1,800.00",73373-RESIDENTIAL & NURSING CARE PLACEMENTS,OP COMMISSIONING,Third Party Payments,Revenue
Walsall Council,http://opendatacommunities.org/id/metropolitan-district-council/walsall,WC83-267,31/08/2017,Adult Social Care,ANCHOR,02/08/2017,"1,800.00",73373-RESIDENTIAL & NURSING CARE PLACEMENTS,OP COMMISSIONING,Third Party Payments,Revenue
Walsall Council,http://opendatacommunities.org/id/metropolitan-district-council/walsall,WC83-268,31/08/2017,Adult Social Care,ANCHOR,02/08/2017,"1,800.00",73373-RESIDENTIAL & NURSING CARE PLACEMENTS,OP COMMISSIONING,Third Party Payments,Revenue
Walsall Council,http://opendatacommunities.org/id/metropolitan-district-council/walsall,WC83-269,31/08/2017,Adult Social Care,ANCHOR,02/08/2017,"1,800.00",73373-RESIDENTIAL & NURSING CARE PLACEMENTS,OP COMMISSIONING,Third Party Payments,Revenue
Walsall Council,http://opendatacommunities.org/id/metropolitan-district-council/walsall,WC83-270,31/08/2017,Adult Social Care,ANCHOR,02/08/2017,"1,800.00",73373-RESIDENTIAL & NURSING CARE PLACEMENTS,OP COMMISSIONING,Third Party Payments,Revenue
Walsall Council,http://opendatacommunities.org/id/metropolitan-district-council/walsall,WC83-271,31/08/2017,Adult Social Care,ANCHOR,02/08/2017,"1,800.00",73373-RESIDENTIAL & NURSING CARE PLACEMENTS,OP COMMISSIONING,Third Party Payments,Revenue
Walsall Council,http://opendatacommunities.org/id/metropolitan-district-council/walsall,WC83-272,31/08/2017,Adult Social Care,ANCHOR,02/08/2017,"1,800.00",73373-RESIDENTIAL & NURSING CARE PLACEMENTS,OP COMMISSIONING,Third Party Payments,Revenue
Walsall Council,http://opendatacommunities.org/id/metropolitan-district-council/walsall,WC83-273,31/08/2017,Adult Social Care,ANCHOR,02/08/2017,"1,800.00",73373-RESIDENTIAL & NURSING CARE PLACEMENTS,OP COMMISSIONING,Third Party Payments,Revenue
Walsall Council,http://opendatacommunities.org/id/metropolitan-district-council/walsall,WC83-274,31/08/2017,Adult Social Care,ANCHOR,02/08/2017,"1,800.00",73373-RESIDENTIAL & NURSING CARE PLACEMENTS,OP COMMISSIONING,Third Party Payments,Revenue
Walsall Council,http://opendatacommunities.org/id/metropolitan-district-council/walsall,WC83-275,31/08/2017,Adult Social Care,ANCHOR,14/08/2017,"1,800.00",73373-RESIDENTIAL & NURSING CARE PLACEMENTS,OP COMMISSIONING,Third Party Payments,Revenue
Walsall Council,http://opendatacommunities.org/id/metropolitan-district-council/walsall,WC83-276,31/08/2017,Adult Social Care,ANCHOR,14/08/2017,"1,800.00",73373-RESIDENTIAL & NURSING CARE PLACEMENTS,MH COMMISSIONING,Third Party Payments,Revenue
Walsall Council,http://opendatacommunities.org/id/metropolitan-district-council/walsall,WC83-277,31/08/2017,Adult Social Care,ANCHOR,14/08/2017,"1,800.00",73373-RESIDENTIAL & NURSING CARE PLACEMENTS,OP COMMISSIONING,Third Party Payments,Revenue
Walsall Council,http://opendatacommunities.org/id/metropolitan-district-council/walsall,WC83-278,31/08/2017,Adult Social Care,ANCHOR,14/08/2017,"1,800.00",73373-RESIDENTIAL & NURSING CARE PLACEMENTS,OP COMMISSIONING,Third Party Payments,Revenue
Walsall Council,http://opendatacommunities.org/id/metropolitan-district-council/walsall,WC83-279,31/08/2017,Adult Social Care,ANCHOR,14/08/2017,"1,800.00",73373-RESIDENTIAL & NURSING CARE PLACEMENTS,OP COMMISSIONING,Third Party Payments,Revenue
Walsall Council,http://opendatacommunities.org/id/metropolitan-district-council/walsall,WC83-280,31/08/2017,Adult Social Care,ANCHOR,14/08/2017,"1,800.00",73373-RESIDENTIAL & NURSING CARE PLACEMENTS,OP COMMISSIONING,Third Party Payments,Revenue
Walsall Council,http://opendatacommunities.org/id/metropolitan-district-council/walsall,WC83-281,31/08/2017,Adult Social Care,ANCHOR,14/08/2017,"1,800.00",73373-RESIDENTIAL & NURSING CARE PLACEMENTS,OP COMMISSIONING,Third Party Payments,Revenue
Walsall Council,http://opendatacommunities.org/id/metropolitan-district-council/walsall,WC83-282,31/08/2017,Adult Social Care,ANCHOR,14/08/2017,"1,800.00",73373-RESIDENTIAL & NURSING CARE PLACEMENTS,OP COMMISSIONING,Third Party Payments,Revenue
Walsall Council,http://opendatacommunities.org/id/metropolitan-district-council/walsall,WC83-283,31/08/2017,Adult Social Care,ANCHOR,14/08/2017,"1,800.00",73373-RESIDENTIAL & NURSING CARE PLACEMENTS,OP COMMISSIONING,Third Party Payments,Revenue
Walsall Council,http://opendatacommunities.org/id/metropolitan-district-council/walsall,WC83-284,31/08/2017,Adult Social Care,ANCHOR,14/08/2017,"2,080.00",73373-RESIDENTIAL & NURSING CARE PLACEMENTS,MH COMMISSIONING,Third Party Payments,Revenue
Walsall Council,http://opendatacommunities.org/id/metropolitan-district-council/walsall,WC83-285,31/08/2017,Childrens,REDACTED,14/08/2017,9.24,60006-NEW-FURNITURE & EQUIPMENT,INTERNAL FOSTER CARE PROVISION,Supplies & Services,Revenue
Walsall Council,http://opendatacommunities.org/id/metropolitan-district-council/walsall,WC83-286,31/08/2017,Childrens,REDACTED,14/08/2017,250.92,74506-TRAVEL-FOSTER CARERS,INTERNAL FOSTER CARE PROVISION,Transfer Payments,Revenue
Walsall Council,http://opendatacommunities.org/id/metropolitan-district-council/walsall,WC83-287,31/08/2017,Childrens,REDACTED,14/08/2017,810.32,74501-MAINTENANCE ALLOWANCE-FOSTER CARERS,INTERNAL FOSTER CARE PROVISION,Transfer Payments,Revenue
Walsall Council,http://opendatacommunities.org/id/metropolitan-district-council/walsall,WC83-288,31/08/2017,Childrens,REDACTED,14/08/2017,897.52,74508-INTERNAL FOSTER CARERS-CARER FEES,INTERNAL FOSTER CARE PROVISION,Transfer Payments,Revenue
Walsall Council,http://opendatacommunities.org/id/metropolitan-district-council/walsall,WC83-289,31/08/2017,Adult Social Care,ANGEL COURT RESIDENTIAL CARE HOME,14/08/2017,"2,073.86",73373-RESIDENTIAL & NURSING CARE PLACEMENTS,OP COMMISSIONING,Third Party Payments,Revenue
Walsall Council,http://opendatacommunities.org/id/metropolitan-district-council/walsall,WC83-290,31/08/2017,Adult Social Care,ANGEL COURT RESIDENTIAL CARE HOME,14/08/2017,"2,073.86",73373-RESIDENTIAL & NURSING CARE PLACEMENTS,OP COMMISSIONING,Third Party Payments,Revenue
Walsall Council,http://opendatacommunities.org/id/metropolitan-district-council/walsall,WC83-291,31/08/2017,Adult Social Care,ANGEL COURT RESIDENTIAL CARE HOME,14/08/2017,"2,150.07",73373-RESIDENTIAL & NURSING CARE PLACEMENTS,OP COMMISSIONING,Third Party Payments,Revenue
Walsall Council,http://opendatacommunities.org/id/metropolitan-district-council/walsall,WC83-292,31/08/2017,Adult Social Care,ANGEL COURT RESIDENTIAL CARE HOME,14/08/2017,"2,150.07",73373-RESIDENTIAL & NURSING CARE PLACEMENTS,OP COMMISSIONING,Third Party Payments,Revenue
Walsall Council,http://opendatacommunities.org/id/metropolitan-district-council/walsall,WC83-293,31/08/2017,Childrens,REDACTED,01/08/2017,368.76,74509-SPECIAL GUARDIANSHIP ORDERS,ADOPTION ALLOWANCES,Transfer Payments,Revenue
Walsall Council,http://opendatacommunities.org/id/metropolitan-district-council/walsall,WC83-294,31/08/2017,Childrens,REDACTED,01/08/2017,368.76,74509-SPECIAL GUARDIANSHIP ORDERS,ADOPTION ALLOWANCES,Transfer Payments,Revenue
Walsall Council,http://opendatacommunities.org/id/metropolitan-district-council/walsall,WC83-295,31/08/2017,Childrens,REDACTED,29/08/2017,368.76,74509-SPECIAL GUARDIANSHIP ORDERS,ADOPTION ALLOWANCES,Transfer Payments,Revenue
Walsall Council,http://opendatacommunities.org/id/metropolitan-district-council/walsall,WC83-296,31/08/2017,Childrens,REDACTED,29/08/2017,368.76,74509-SPECIAL GUARDIANSHIP ORDERS,ADOPTION ALLOWANCES,Transfer Payments,Revenue
Walsall Council,http://opendatacommunities.org/id/metropolitan-district-council/walsall,WC83-297,31/08/2017,Childrens,REDACTED,01/08/2017,500.16,74509-SPECIAL GUARDIANSHIP ORDERS,ADOPTION ALLOWANCES,Transfer Payments,Revenue
Walsall Council,http://opendatacommunities.org/id/metropolitan-district-council/walsall,WC83-298,31/08/2017,Childrens,REDACTED,29/08/2017,500.16,74509-SPECIAL GUARDIANSHIP ORDERS,ADOPTION ALLOWANCES,Transfer Payments,Revenue
Walsall Council,http://opendatacommunities.org/id/metropolitan-district-council/walsall,WC83-299,31/08/2017,Childrens,REDACTED,01/08/2017,312.04,74509-SPECIAL GUARDIANSHIP ORDERS,ADOPTION ALLOWANCES,Transfer Payments,Revenue
Walsall Council,http://opendatacommunities.org/id/metropolitan-district-council/walsall,WC83-300,31/08/2017,Childrens,REDACTED,29/08/2017,312.04,74509-SPECIAL GUARDIANSHIP ORDERS,ADOPTION ALLOWANCES,Transfer Payments,Revenue
Walsall Council,http://opendatacommunities.org/id/metropolitan-district-council/walsall,WC83-301,31/08/2017,Adult Social Care,REDACTED,07/08/2017,"2,795.36",76422-DIRECT PAYMENTS TO SOCIAL SERVICES CLIENTS,LD COMMISSIONING,Transfer Payments,Revenue
Walsall Council,http://opendatacommunities.org/id/metropolitan-district-council/walsall,WC83-302,31/08/2017,Adult Social Care,ANITA STONE COURT,08/08/2017,"1,591.19",73373-RESIDENTIAL & NURSING CARE PLACEMENTS,OP COMMISSIONING,Third Party Payments,Revenue
Walsall Council,http://opendatacommunities.org/id/metropolitan-district-council/walsall,WC83-303,31/08/2017,Adult Social Care,ANITA STONE COURT,08/08/2017,"1,709.05",73373-RESIDENTIAL & NURSING CARE PLACEMENTS,OP COMMISSIONING,Third Party Payments,Revenue
Walsall Council,http://opendatacommunities.org/id/metropolitan-district-council/walsall,WC83-304,31/08/2017,Adult Social Care,ANITA STONE COURT,08/08/2017,"1,767.99",73373-RESIDENTIAL & NURSING CARE PLACEMENTS,OP COMMISSIONING,Third Party Payments,Revenue
Walsall Council,http://opendatacommunities.org/id/metropolitan-district-council/walsall,WC83-305,31/08/2017,Adult Social Care,ANITA STONE COURT,08/08/2017,"1,767.99",73373-RESIDENTIAL & NURSING CARE PLACEMENTS,OP COMMISSIONING,Third Party Payments,Revenue
Walsall Council,http://opendatacommunities.org/id/metropolitan-district-council/walsall,WC83-306,31/08/2017,Adult Social Care,ANITA STONE COURT,08/08/2017,"1,826.92",73373-RESIDENTIAL & NURSING CARE PLACEMENTS,OP COMMISSIONING,Third Party Payments,Revenue
Walsall Council,http://opendatacommunities.org/id/metropolitan-district-council/walsall,WC83-307,31/08/2017,Adult Social Care,REDACTED,25/08/2017,304.4,73374-SUPPORTED & OTHER ACCOMMODATION,LD COMMISSIONING,Third Party Payments,Revenue
Walsall Council,http://opendatacommunities.org/id/metropolitan-district-council/walsall,WC83-308,31/08/2017,Adult Social Care,ANSON COURT RESIDENTIAL HOME,08/08/2017,285.71,73373-RESIDENTIAL & NURSING CARE PLACEMENTS,OP COMMISSIONING,Third Party Payments,Revenue
Walsall Council,http://opendatacommunities.org/id/metropolitan-district-council/walsall,WC83-309,31/08/2017,Adult Social Care,ANSON COURT RESIDENTIAL HOME,29/08/2017,328.57,73373-RESIDENTIAL & NURSING CARE PLACEMENTS,OP COMMISSIONING,Third Party Payments,Revenue
Walsall Council,http://opendatacommunities.org/id/metropolitan-district-council/walsall,WC83-310,31/08/2017,Adult Social Care,ANSON COURT RESIDENTIAL HOME,29/08/2017,328.57,73373-RESIDENTIAL & NURSING CARE PLACEMENTS,MH COMMISSIONING,Third Party Payments,Revenue
Walsall Council,http://opendatacommunities.org/id/metropolitan-district-council/walsall,WC83-311,31/08/2017,Adult Social Care,ANSON COURT RESIDENTIAL HOME,29/08/2017,328.57,73373-RESIDENTIAL & NURSING CARE PLACEMENTS,MH COMMISSIONING,Third Party Payments,Revenue
Walsall Council,http://opendatacommunities.org/id/metropolitan-district-council/walsall,WC83-312,31/08/2017,Adult Social Care,ANSON COURT RESIDENTIAL HOME,29/08/2017,328.57,73373-RESIDENTIAL & NURSING CARE PLACEMENTS,MH COMMISSIONING,Third Party Payments,Revenue
Walsall Council,http://opendatacommunities.org/id/metropolitan-district-council/walsall,WC83-313,31/08/2017,Adult Social Care,ANSON COURT RESIDENTIAL HOME,29/08/2017,328.57,73373-RESIDENTIAL & NURSING CARE PLACEMENTS,OP COMMISSIONING,Third Party Payments,Revenue
Walsall Council,http://opendatacommunities.org/id/metropolitan-district-council/walsall,WC83-314,31/08/2017,Adult Social Care,ANSON COURT RESIDENTIAL HOME,02/08/2017,"1,478.57",73373-RESIDENTIAL & NURSING CARE PLACEMENTS,OP COMMISSIONING,Third Party Payments,Revenue
Walsall Council,http://opendatacommunities.org/id/metropolitan-district-council/walsall,WC83-315,31/08/2017,Adult Social Care,ANSON COURT RESIDENTIAL HOME,02/08/2017,"1,478.57",73373-RESIDENTIAL & NURSING CARE PLACEMENTS,OP COMMISSIONING,Third Party Payments,Revenue
Walsall Council,http://opendatacommunities.org/id/metropolitan-district-council/walsall,WC83-316,31/08/2017,Adult Social Care,ANSON COURT RESIDENTIAL HOME,02/08/2017,"1,478.57",73373-RESIDENTIAL & NURSING CARE PLACEMENTS,MH COMMISSIONING,Third Party Payments,Revenue
Walsall Council,http://opendatacommunities.org/id/metropolitan-district-council/walsall,WC83-317,31/08/2017,Adult Social Care,ANSON COURT RESIDENTIAL HOME,02/08/2017,"1,478.57",73373-RESIDENTIAL & NURSING CARE PLACEMENTS,OP COMMISSIONING,Third Party Payments,Revenue
Walsall Council,http://opendatacommunities.org/id/metropolitan-district-council/walsall,WC83-318,31/08/2017,Adult Social Care,ANSON COURT RESIDENTIAL HOME,02/08/2017,"1,478.57",73373-RESIDENTIAL & NURSING CARE PLACEMENTS,OP COMMISSIONING,Third Party Payments,Revenue
Walsall Council,http://opendatacommunities.org/id/metropolitan-district-council/walsall,WC83-319,31/08/2017,Adult Social Care,ANSON COURT RESIDENTIAL HOME,02/08/2017,"1,478.57",73373-RESIDENTIAL & NURSING CARE PLACEMENTS,OP COMMISSIONING,Third Party Payments,Revenue
Walsall Council,http://opendatacommunities.org/id/metropolitan-district-council/walsall,WC83-320,31/08/2017,Adult Social Care,ANSON COURT RESIDENTIAL HOME,02/08/2017,"1,478.57",73373-RESIDENTIAL & NURSING CARE PLACEMENTS,OP COMMISSIONING,Third Party Payments,Revenue
Walsall Council,http://opendatacommunities.org/id/metropolitan-district-council/walsall,WC83-321,31/08/2017,Adult Social Care,ANSON COURT RESIDENTIAL HOME,02/08/2017,"1,478.57",73373-RESIDENTIAL & NURSING CARE PLACEMENTS,OP COMMISSIONING,Third Party Payments,Revenue
Walsall Council,http://opendatacommunities.org/id/metropolitan-district-council/walsall,WC83-322,31/08/2017,Adult Social Care,ANSON COURT RESIDENTIAL HOME,02/08/2017,"1,478.57",73373-RESIDENTIAL & NURSING CARE PLACEMENTS,MH COMMISSIONING,Third Party Payments,Revenue
Walsall Council,http://opendatacommunities.org/id/metropolitan-district-council/walsall,WC83-323,31/08/2017,Adult Social Care,ANSON COURT RESIDENTIAL HOME,02/08/2017,"1,478.57",73373-RESIDENTIAL & NURSING CARE PLACEMENTS,OP COMMISSIONING,Third Party Payments,Revenue
Walsall Council,http://opendatacommunities.org/id/metropolitan-district-council/walsall,WC83-324,31/08/2017,Adult Social Care,ANSON COURT RESIDENTIAL HOME,02/08/2017,"1,478.57",73373-RESIDENTIAL & NURSING CARE PLACEMENTS,MH COMMISSIONING,Third Party Payments,Revenue
Walsall Council,http://opendatacommunities.org/id/metropolitan-district-council/walsall,WC83-325,31/08/2017,Adult Social Care,ANSON COURT RESIDENTIAL HOME,02/08/2017,"1,478.57",73373-RESIDENTIAL & NURSING CARE PLACEMENTS,MH COMMISSIONING,Third Party Payments,Revenue
Walsall Council,http://opendatacommunities.org/id/metropolitan-district-council/walsall,WC83-326,31/08/2017,Adult Social Care,ANSON COURT RESIDENTIAL HOME,02/08/2017,"1,478.57",73373-RESIDENTIAL & NURSING CARE PLACEMENTS,OP COMMISSIONING,Third Party Payments,Revenue
Walsall Council,http://opendatacommunities.org/id/metropolitan-district-council/walsall,WC83-327,31/08/2017,Adult Social Care,ANSON COURT RESIDENTIAL HOME,02/08/2017,"1,478.57",73373-RESIDENTIAL & NURSING CARE PLACEMENTS,OP COMMISSIONING,Third Party Payments,Revenue
Walsall Council,http://opendatacommunities.org/id/metropolitan-district-council/walsall,WC83-328,31/08/2017,Adult Social Care,ANSON COURT RESIDENTIAL HOME,02/08/2017,"1,478.57",73373-RESIDENTIAL & NURSING CARE PLACEMENTS,OP COMMISSIONING,Third Party Payments,Revenue
Walsall Council,http://opendatacommunities.org/id/metropolitan-district-council/walsall,WC83-329,31/08/2017,Adult Social Care,ANSON COURT RESIDENTIAL HOME,02/08/2017,"1,478.57",73373-RESIDENTIAL & NURSING CARE PLACEMENTS,OP COMMISSIONING,Third Party Payments,Revenue
Walsall Council,http://opendatacommunities.org/id/metropolitan-district-council/walsall,WC83-330,31/08/2017,Adult Social Care,ANSON COURT RESIDENTIAL HOME,02/08/2017,"1,478.57",73373-RESIDENTIAL & NURSING CARE PLACEMENTS,OP COMMISSIONING,Third Party Payments,Revenue
Walsall Council,http://opendatacommunities.org/id/metropolitan-district-council/walsall,WC83-331,31/08/2017,Adult Social Care,ANSON COURT RESIDENTIAL HOME,02/08/2017,"1,478.57",73373-RESIDENTIAL & NURSING CARE PLACEMENTS,OP COMMISSIONING,Third Party Payments,Revenue
Walsall Council,http://opendatacommunities.org/id/metropolitan-district-council/walsall,WC83-332,31/08/2017,Adult Social Care,ANSON COURT RESIDENTIAL HOME,02/08/2017,"1,478.57",73373-RESIDENTIAL & NURSING CARE PLACEMENTS,OP COMMISSIONING,Third Party Payments,Revenue
Walsall Council,http://opendatacommunities.org/id/metropolitan-district-council/walsall,WC83-333,31/08/2017,Adult Social Care,ANSON COURT RESIDENTIAL HOME,02/08/2017,"1,478.57",73373-RESIDENTIAL & NURSING CARE PLACEMENTS,OP COMMISSIONING,Third Party Payments,Revenue
Walsall Council,http://opendatacommunities.org/id/metropolitan-district-council/walsall,WC83-334,31/08/2017,Adult Social Care,ANSON COURT RESIDENTIAL HOME,08/08/2017,"1,478.57",73373-RESIDENTIAL & NURSING CARE PLACEMENTS,OP COMMISSIONING,Third Party Payments,Revenue
Walsall Council,http://opendatacommunities.org/id/metropolitan-district-council/walsall,WC83-335,31/08/2017,Adult Social Care,ANSON COURT RESIDENTIAL HOME,02/08/2017,"1,478.58",73373-RESIDENTIAL & NURSING CARE PLACEMENTS,OP COMMISSIONING,Third Party Payments,Revenue
Walsall Council,http://opendatacommunities.org/id/metropolitan-district-council/walsall,WC83-336,31/08/2017,Adult Social Care,ANSON COURT RESIDENTIAL HOME,08/08/2017,"1,544.29",73373-RESIDENTIAL & NURSING CARE PLACEMENTS,OP COMMISSIONING,Third Party Payments,Revenue
Walsall Council,http://opendatacommunities.org/id/metropolitan-district-council/walsall,WC83-337,31/08/2017,Adult Social Care,ANSON COURT RESIDENTIAL HOME,08/08/2017,"1,544.29",73373-RESIDENTIAL & NURSING CARE PLACEMENTS,OP COMMISSIONING,Third Party Payments,Revenue
Walsall Council,http://opendatacommunities.org/id/metropolitan-district-council/walsall,WC83-338,31/08/2017,Adult Social Care,ANSON COURT RESIDENTIAL HOME,02/08/2017,"4,008.57",73373-RESIDENTIAL & NURSING CARE PLACEMENTS,MH COMMISSIONING,Third Party Payments,Revenue
Walsall Council,http://opendatacommunities.org/id/metropolitan-district-council/walsall,WC83-339,31/08/2017,Childrens,REDACTED,01/08/2017,604,74510-RESIDENTS ORDERS,ADOPTION ALLOWANCES,Third Party Payments,Revenue
Walsall Council,http://opendatacommunities.org/id/metropolitan-district-council/walsall,WC83-340,31/08/2017,Childrens,REDACTED,29/08/2017,604,74510-RESIDENTS ORDERS,ADOPTION ALLOWANCES,Third Party Payments,Revenue
Walsall Council,http://opendatacommunities.org/id/metropolitan-district-council/walsall,WC83-341,31/08/2017,Childrens,REDACTED,01/08/2017,333.12,74509-SPECIAL GUARDIANSHIP ORDERS,ADOPTION ALLOWANCES,Transfer Payments,Revenue
Walsall Council,http://opendatacommunities.org/id/metropolitan-district-council/walsall,WC83-342,31/08/2017,Childrens,REDACTED,29/08/2017,333.12,74509-SPECIAL GUARDIANSHIP ORDERS,ADOPTION ALLOWANCES,Transfer Payments,Revenue
Walsall Council,http://opendatacommunities.org/id/metropolitan-district-council/walsall,WC83-343,31/08/2017,Economy & Environment,APCOA PARKING SERVICES (UK) LTD,08/08/2017,"45,172.08",73025-PROFESSIONAL SERVICES-PRIV CONTRACTOR & OTHER AGENCIES,PARKING SERVICES OFF-STREET,Third Party Payments,Revenue
Walsall Council,http://opendatacommunities.org/id/metropolitan-district-council/walsall,WC83-344,31/08/2017,Adult Social Care,APNA HOUSE LTD,14/08/2017,598.6,73373-RESIDENTIAL & NURSING CARE PLACEMENTS,LD COMMISSIONING,Third Party Payments,Revenue
Walsall Council,http://opendatacommunities.org/id/metropolitan-district-council/walsall,WC83-345,31/08/2017,Adult Social Care,APNA HOUSE LTD,14/08/2017,"4,988.36",73373-RESIDENTIAL & NURSING CARE PLACEMENTS,LD COMMISSIONING,Third Party Payments,Revenue
Walsall Council,http://opendatacommunities.org/id/metropolitan-district-council/walsall,WC83-346,31/08/2017,Adult Social Care,APNA HOUSE LTD,14/08/2017,"5,586.96",73373-RESIDENTIAL & NURSING CARE PLACEMENTS,LD COMMISSIONING,Third Party Payments,Revenue
Walsall Council,http://opendatacommunities.org/id/metropolitan-district-council/walsall,WC83-347,31/08/2017,Adult Social Care,APNA HOUSE LTD,14/08/2017,"5,986.03",73373-RESIDENTIAL & NURSING CARE PLACEMENTS,LD COMMISSIONING,Third Party Payments,Revenue
Walsall Council,http://opendatacommunities.org/id/metropolitan-district-council/walsall,WC83-348,31/08/2017,Economy & Environment,APSE 001,09/08/2017,"7,709.00",63102-CONSULTANTS FEES - CORPORATE,DIRECTORATE SUPPORT,Supplies & Services,Revenue
Walsall Council,http://opendatacommunities.org/id/metropolitan-district-council/walsall,WC83-349,31/08/2017,Economy & Environment,AQUA FORCE SPECIAL WASTE LTD,14/08/2017,"3,115.00","40000-REPAIRS,ALTERATIONS & MAINTENANCE-PREM",RETAINED HOUSING-HIGHWAYS,Premises,Revenue
Walsall Council,http://opendatacommunities.org/id/metropolitan-district-council/walsall,WC83-350,31/08/2017,Economy & Environment,AQUALYMPIC,04/08/2017,405,34305-AGENCY STAFF-EMPLOYEES,BLOXWICH LEISURE CENTRE,Employees,Revenue
Walsall Council,http://opendatacommunities.org/id/metropolitan-district-council/walsall,WC83-351,31/08/2017,Economy & Environment,AQUALYMPIC,04/08/2017,510,34305-AGENCY STAFF-EMPLOYEES,BLOXWICH LEISURE CENTRE,Employees,Revenue
Walsall Council,http://opendatacommunities.org/id/metropolitan-district-council/walsall,WC83-352,31/08/2017,Economy & Environment,AQUALYMPIC,02/08/2017,840,34305-AGENCY STAFF-EMPLOYEES,OAK PARK,Employees,Revenue
Walsall Council,http://opendatacommunities.org/id/metropolitan-district-council/walsall,WC83-353,31/08/2017,Economy & Environment,AQUALYMPIC,04/08/2017,847.5,34305-AGENCY STAFF-EMPLOYEES,BLOXWICH LEISURE CENTRE,Employees,Revenue
Walsall Council,http://opendatacommunities.org/id/metropolitan-district-council/walsall,WC83-354,31/08/2017,Economy & Environment,AQUALYMPIC,01/08/2017,"1,267.50",34305-AGENCY STAFF-EMPLOYEES,OAK PARK,Employees,Revenue
Walsall Council,http://opendatacommunities.org/id/metropolitan-district-council/walsall,WC83-355,31/08/2017,Economy & Environment,AQUALYMPIC,14/08/2017,"1,500.00",34305-AGENCY STAFF-EMPLOYEES,OAK PARK,Employees,Revenue
Walsall Council,http://opendatacommunities.org/id/metropolitan-district-council/walsall,WC83-356,31/08/2017,Economy & Environment,AQUALYMPIC,01/08/2017,"1,515.00",34305-AGENCY STAFF-EMPLOYEES,OAK PARK,Employees,Revenue
Walsall Council,http://opendatacommunities.org/id/metropolitan-district-council/walsall,WC83-357,31/08/2017,Economy & Environment,AQUALYMPIC,24/08/2017,"1,515.00",34305-AGENCY STAFF-EMPLOYEES,OAK PARK,Employees,Revenue
Walsall Council,http://opendatacommunities.org/id/metropolitan-district-council/walsall,WC83-358,31/08/2017,Economy & Environment,AQUALYMPIC,24/08/2017,"1,665.00",34305-AGENCY STAFF-EMPLOYEES,OAK PARK,Employees,Revenue
Walsall Council,http://opendatacommunities.org/id/metropolitan-district-council/walsall,WC83-359,31/08/2017,Economy & Environment,AQUALYMPIC,14/08/2017,"2,115.00",34305-AGENCY STAFF-EMPLOYEES,OAK PARK,Employees,Revenue
Walsall Council,http://opendatacommunities.org/id/metropolitan-district-council/walsall,WC83-360,31/08/2017,Economy & Environment,AQUILA TRAINING SERVICES LTD,11/08/2017,495,30030-EXTERNAL TRAINING,RESOURCE MANAGEMENT,Employees,Revenue
Walsall Council,http://opendatacommunities.org/id/metropolitan-district-council/walsall,WC83-361,31/08/2017,Adult Social Care,ARBORETUM NURSING HOME.,02/08/2017,"-2,392.50",73373-RESIDENTIAL & NURSING CARE PLACEMENTS,OP COMMISSIONING,Third Party Payments,Revenue
Walsall Council,http://opendatacommunities.org/id/metropolitan-district-council/walsall,WC83-362,31/08/2017,Adult Social Care,ARBORETUM NURSING HOME.,14/08/2017,"2,374.80",73373-RESIDENTIAL & NURSING CARE PLACEMENTS,OP COMMISSIONING,Third Party Payments,Revenue
Walsall Council,http://opendatacommunities.org/id/metropolitan-district-council/walsall,WC83-363,31/08/2017,Adult Social Care,ARBORETUM NURSING HOME.,11/08/2017,"14,900.00",73019-PSE'S-PRIV CONTRACTOR FEES,TRANSITIONAL CARE SUPPORT TEAM,Third Party Payments,Revenue
Walsall Council,http://opendatacommunities.org/id/metropolitan-district-council/walsall,WC83-364,31/08/2017,Childrens,ARCHWAY ACADEMY,17/08/2017,"2,281.77",66502-TOP UP FUNDING -GRANTS TO SCHOOLS,INDEPENDENT PROVIDERS - SPECIAL & AP,Third Party Payments,Revenue
Walsall Council,http://opendatacommunities.org/id/metropolitan-district-council/walsall,WC83-365,31/08/2017,Economy & Environment,ARCHWAY TCS LTD,07/08/2017,330.23,73025-PROFESSIONAL SERVICES-PRIV CONTRACTOR & OTHER AGENCIES,DEPOT,Third Party Payments,Revenue
Walsall Council,http://opendatacommunities.org/id/metropolitan-district-council/walsall,WC83-366,31/08/2017,Economy & Environment,ARCHWAY TCS LTD,18/08/2017,707.5,60537-VEHICLE WASH PLANT-MATERIALS,DEPOT,Supplies & Services,Revenue
Walsall Council,http://opendatacommunities.org/id/metropolitan-district-council/walsall,WC83-367,31/08/2017,Economy & Environment,ARCHWAY TCS LTD,25/08/2017,727.5,60537-VEHICLE WASH PLANT-MATERIALS,DEPOT,Supplies & Services,Revenue
Walsall Council,http://opendatacommunities.org/id/metropolitan-district-council/walsall,WC83-368,31/08/2017,Economy & Environment,ARCO GROUP,16/08/2017,222,60514-MATERIALS TO STORES,FLEET PARTS STOCK ACCOUNT,Supplies & Services,Revenue
Walsall Council,http://opendatacommunities.org/id/metropolitan-district-council/walsall,WC83-369,31/08/2017,Economy & Environment,ARCO GROUP,16/08/2017,288,60514-MATERIALS TO STORES,FLEET PARTS STOCK ACCOUNT,Supplies & Services,Revenue
Walsall Council,http://opendatacommunities.org/id/metropolitan-district-council/walsall,WC83-370,31/08/2017,Economy & Environment,AREMCO PRODUCTS,01/08/2017,"1,750.00",73025-PROFESSIONAL SERVICES-PRIV CONTRACTOR & OTHER AGENCIES,PARKING SERVICES OFF-STREET,Third Party Payments,Revenue
Walsall Council,http://opendatacommunities.org/id/metropolitan-district-council/walsall,WC83-371,31/08/2017,Adult Social Care,ARK HOME HEALTHCARE LIMITED,16/08/2017,"36,525.19",73372-DOMICILIARY CARE,OP COMMISSIONING,Third Party Payments,Revenue
Walsall Council,http://opendatacommunities.org/id/metropolitan-district-council/walsall,WC83-372,31/08/2017,Adult Social Care,ARK HOME HEALTHCARE LIMITED,16/08/2017,"42,243.44",73372-DOMICILIARY CARE,OP COMMISSIONING,Third Party Payments,Revenue
Walsall Council,http://opendatacommunities.org/id/metropolitan-district-council/walsall,WC83-373,31/08/2017,Childrens,ARNFIELD CARE LIMITED,14/08/2017,"15,616.00",74036-EXTERNAL RESIDENTIAL CARE-OTH AGENCY PROVISION,INDEPENDENT RESIDENTIAL HOMES,Third Party Payments,Revenue
Walsall Council,http://opendatacommunities.org/id/metropolitan-district-council/walsall,WC83-374,31/08/2017,Childrens,ARTHUR M GRIFFITHS & SON LTD,25/08/2017,"30,612.08",01006-SITE WORKS MAIN CONTRACTORS,CFR 929 KING CHARLES PRIMARY SIGNIFICANT ENLARGEMENT,Capital,Capital
Walsall Council,http://opendatacommunities.org/id/metropolitan-district-council/walsall,WC83-375,31/08/2017,Childrens,ARTHUR M GRIFFITHS & SON LTD,10/08/2017,"199,528.28",01006-SITE WORKS MAIN CONTRACTORS,CFR 929 FIBBERSLEY PRIMARY SIGNIFICANT ENLARGEMENT,Capital,Capital
Walsall Council,http://opendatacommunities.org/id/metropolitan-district-council/walsall,WC83-376,31/08/2017,Adult Social Care,ASH GRANGE CARE HOME,08/08/2017,424.11,73373-RESIDENTIAL & NURSING CARE PLACEMENTS,OP COMMISSIONING,Third Party Payments,Revenue
Walsall Council,http://opendatacommunities.org/id/metropolitan-district-council/walsall,WC83-377,31/08/2017,Adult Social Care,ASH GRANGE CARE HOME,02/08/2017,637.5,73373-RESIDENTIAL & NURSING CARE PLACEMENTS,OP COMMISSIONING,Third Party Payments,Revenue
Walsall Council,http://opendatacommunities.org/id/metropolitan-district-council/walsall,WC83-378,31/08/2017,Adult Social Care,ASH GRANGE CARE HOME,02/08/2017,"1,275.00",73373-RESIDENTIAL & NURSING CARE PLACEMENTS,OP COMMISSIONING,Third Party Payments,Revenue
Walsall Council,http://opendatacommunities.org/id/metropolitan-district-council/walsall,WC83-379,31/08/2017,Adult Social Care,ASH GRANGE CARE HOME,14/08/2017,"1,584.82",73373-RESIDENTIAL & NURSING CARE PLACEMENTS,OP COMMISSIONING,Third Party Payments,Revenue
Walsall Council,http://opendatacommunities.org/id/metropolitan-district-council/walsall,WC83-380,31/08/2017,Adult Social Care,ASH GRANGE CARE HOME,02/08/2017,"1,912.50",73373-RESIDENTIAL & NURSING CARE PLACEMENTS,OP COMMISSIONING,Third Party Payments,Revenue
Walsall Council,http://opendatacommunities.org/id/metropolitan-district-council/walsall,WC83-381,31/08/2017,Adult Social Care,ASH GRANGE CARE HOME,08/08/2017,"1,929.80",73373-RESIDENTIAL & NURSING CARE PLACEMENTS,OP COMMISSIONING,Third Party Payments,Revenue
Walsall Council,http://opendatacommunities.org/id/metropolitan-district-council/walsall,WC83-382,31/08/2017,Adult Social Care,ASH GRANGE CARE HOME,08/08/2017,"2,270.00",73373-RESIDENTIAL & NURSING CARE PLACEMENTS,OP COMMISSIONING,Third Party Payments,Revenue
Walsall Council,http://opendatacommunities.org/id/metropolitan-district-council/walsall,WC83-383,31/08/2017,Adult Social Care,ASH GRANGE CARE HOME,02/08/2017,"2,483.60",73373-RESIDENTIAL & NURSING CARE PLACEMENTS,OP COMMISSIONING,Third Party Payments,Revenue
Walsall Council,http://opendatacommunities.org/id/metropolitan-district-council/walsall,WC83-384,31/08/2017,Adult Social Care,ASH GRANGE CARE HOME,02/08/2017,"2,550.00",73373-RESIDENTIAL & NURSING CARE PLACEMENTS,OP COMMISSIONING,Third Party Payments,Revenue
Walsall Council,http://opendatacommunities.org/id/metropolitan-district-council/walsall,WC83-385,31/08/2017,Adult Social Care,ASH GRANGE CARE HOME,02/08/2017,"2,550.00",73373-RESIDENTIAL & NURSING CARE PLACEMENTS,OP COMMISSIONING,Third Party Payments,Revenue
Walsall Council,http://opendatacommunities.org/id/metropolitan-district-council/walsall,WC83-386,31/08/2017,Adult Social Care,ASH GRANGE CARE HOME,14/08/2017,"2,702.30",73373-RESIDENTIAL & NURSING CARE PLACEMENTS,OP COMMISSIONING,Third Party Payments,Revenue
Walsall Council,http://opendatacommunities.org/id/metropolitan-district-council/walsall,WC83-387,31/08/2017,Adult Social Care,ASH GRANGE CARE HOME,08/08/2017,"2,823.21",73373-RESIDENTIAL & NURSING CARE PLACEMENTS,OP COMMISSIONING,Third Party Payments,Revenue
Walsall Council,http://opendatacommunities.org/id/metropolitan-district-council/walsall,WC83-388,31/08/2017,Adult Social Care,ASHBOURNE LODGE,14/08/2017,"2,173.99",73373-RESIDENTIAL & NURSING CARE PLACEMENTS,OP COMMISSIONING,Third Party Payments,Revenue
Walsall Council,http://opendatacommunities.org/id/metropolitan-district-council/walsall,WC83-389,31/08/2017,Economy & Environment,ASHCROFT MEMORIALS,25/08/2017,360,01023-TECHNICAL ASSISTANTS TIME,CFR 818 MANAGING MEMORIAL SAFETY,Capital,Capital
Walsall Council,http://opendatacommunities.org/id/metropolitan-district-council/walsall,WC83-390,31/08/2017,Economy & Environment,ASHDOWN SUPPLIES,04/08/2017,422.58,60500-GENERAL MATERIALS,STREETLY CREMATORIUM,Supplies & Services,Revenue
Walsall Council,http://opendatacommunities.org/id/metropolitan-district-council/walsall,WC83-391,31/08/2017,Economy & Environment,ASIA CONTINENTAL STORE,11/08/2017,440,60501-LIBRARY BOOKS,LIBRARY STOCK AND PERFORMANCE,Supplies & Services,Revenue
Walsall Council,http://opendatacommunities.org/id/metropolitan-district-council/walsall,WC83-392,31/08/2017,Economy & Environment,ASKEWS AND HOLTS LIBRARY SERVICES LTD,21/08/2017,297.34,60501-LIBRARY BOOKS,LIBRARY STOCK AND PERFORMANCE,Supplies & Services,Revenue
Walsall Council,http://opendatacommunities.org/id/metropolitan-district-council/walsall,WC83-393,31/08/2017,Economy & Environment,ASKEWS AND HOLTS LIBRARY SERVICES LTD,21/08/2017,337.64,60501-LIBRARY BOOKS,LIBRARY STOCK AND PERFORMANCE,Supplies & Services,Revenue
Walsall Council,http://opendatacommunities.org/id/metropolitan-district-council/walsall,WC83-394,31/08/2017,Economy & Environment,ASKEWS AND HOLTS LIBRARY SERVICES LTD,21/08/2017,930,60501-LIBRARY BOOKS,LIBRARY STOCK AND PERFORMANCE,Supplies & Services,Revenue
Walsall Council,http://opendatacommunities.org/id/metropolitan-district-council/walsall,WC83-395,31/08/2017,Adult Social Care,REDACTED,07/08/2017,756,76422-DIRECT PAYMENTS TO SOCIAL SERVICES CLIENTS,OP COMMISSIONING,Transfer Payments,Revenue
Walsall Council,http://opendatacommunities.org/id/metropolitan-district-council/walsall,WC83-396,31/08/2017,Economy & Environment,ASSOCIATION OF DIRECTORS OF PUBLIC HEALTH,22/08/2017,"2,800.00",64500-PUBLICATIONS/ORGANISATIONS-SUBSCRIPTIONS,PUBLIC HEALTH BUSINESS SUPPORT,Supplies & Services,Revenue
Walsall Council,http://opendatacommunities.org/id/metropolitan-district-council/walsall,WC83-397,31/08/2017,Childrens,ATG CONTRACT SERVICES LIMITED,04/08/2017,"5,174.55",52000-WITH DRIVER-HIRE OF VEHICLES,SCHOOL TRANSPORT,Transport,Revenue
Walsall Council,http://opendatacommunities.org/id/metropolitan-district-council/walsall,WC83-398,31/08/2017,Childrens,ATG CONTRACT SERVICES LIMITED,04/08/2017,"8,145.61",52000-WITH DRIVER-HIRE OF VEHICLES,SCHOOL TRANSPORT,Transport,Revenue
Walsall Council,http://opendatacommunities.org/id/metropolitan-district-council/walsall,WC83-399,31/08/2017,Childrens,ATG CONTRACT SERVICES LIMITED,24/08/2017,"13,529.56",52000-WITH DRIVER-HIRE OF VEHICLES,SCHOOL TRANSPORT,Transport,Revenue
Walsall Council,http://opendatacommunities.org/id/metropolitan-district-council/walsall,WC83-400,31/08/2017,Economy & Environment,ATHWAL NEWS LTD,21/08/2017,275.2,60501-LIBRARY BOOKS,LIBRARY STOCK AND PERFORMANCE,Supplies & Services,Revenue
Walsall Council,http://opendatacommunities.org/id/metropolitan-district-council/walsall,WC83-401,31/08/2017,Economy & Environment,ATHWAL NEWS LTD,01/08/2017,275.28,60501-LIBRARY BOOKS,LIBRARY STOCK AND PERFORMANCE,Supplies & Services,Revenue
Walsall Council,http://opendatacommunities.org/id/metropolitan-district-council/walsall,WC83-402,31/08/2017,Change and Governance,AURORA GRAPHICS & DISPLAYS LTD,23/08/2017,220.72,62008-OUTWORK-PRINT ROOM,PRINTING SERVICES,Supplies & Services,Revenue
Walsall Council,http://opendatacommunities.org/id/metropolitan-district-council/walsall,WC83-403,31/08/2017,Change and Governance,AURORA GRAPHICS & DISPLAYS LTD,02/08/2017,288,62008-OUTWORK-PRINT ROOM,PRINTING SERVICES,Supplies & Services,Revenue
Walsall Council,http://opendatacommunities.org/id/metropolitan-district-council/walsall,WC83-404,31/08/2017,Change and Governance,AURORA GRAPHICS & DISPLAYS LTD,16/08/2017,356.49,62008-OUTWORK-PRINT ROOM,PRINTING SERVICES,Supplies & Services,Revenue
Walsall Council,http://opendatacommunities.org/id/metropolitan-district-council/walsall,WC83-405,31/08/2017,Economy & Environment,AUTORITE INDUSTRIES (WILLENHALL)LTD,09/08/2017,227.5,73025-PROFESSIONAL SERVICES-PRIV CONTRACTOR & OTHER AGENCIES,FLEET,Third Party Payments,Revenue
Walsall Council,http://opendatacommunities.org/id/metropolitan-district-council/walsall,WC83-406,31/08/2017,Economy & Environment,AVIDITY TRAINING LIMITED,04/08/2017,375,66500-GRANTS TO OTHER ORGS,RES-WALSALL WORKS,Third Party Payments,Revenue
Walsall Council,http://opendatacommunities.org/id/metropolitan-district-council/walsall,WC83-407,31/08/2017,Economy & Environment,AVIDITY TRAINING LIMITED,04/08/2017,"1,125.00",66500-GRANTS TO OTHER ORGS,RES-WALSALL WORKS,Third Party Payments,Revenue
Walsall Council,http://opendatacommunities.org/id/metropolitan-district-council/walsall,WC83-408,31/08/2017,Adult Social Care,REDACTED,07/08/2017,989.04,76422-DIRECT PAYMENTS TO SOCIAL SERVICES CLIENTS,OP COMMISSIONING,Transfer Payments,Revenue
Walsall Council,http://opendatacommunities.org/id/metropolitan-district-council/walsall,WC83-409,31/08/2017,Childrens,AXCIS EDUCATION RECRUITMENT,17/08/2017,490,66502-TOP UP FUNDING -GRANTS TO SCHOOLS,INDEPENDENT PROVIDERS - SPECIAL & AP,Third Party Payments,Revenue
Walsall Council,http://opendatacommunities.org/id/metropolitan-district-council/walsall,WC83-410,31/08/2017,Childrens,AXCIS EDUCATION RECRUITMENT,03/08/2017,996,66502-TOP UP FUNDING -GRANTS TO SCHOOLS,INDEPENDENT PROVIDERS - SPECIAL & AP,Third Party Payments,Revenue
Walsall Council,http://opendatacommunities.org/id/metropolitan-district-council/walsall,WC83-411,31/08/2017,Childrens,AXCIS EDUCATION RECRUITMENT,03/08/2017,"1,129.00",66502-TOP UP FUNDING -GRANTS TO SCHOOLS,INDEPENDENT PROVIDERS - SPECIAL & AP,Third Party Payments,Revenue
Walsall Council,http://opendatacommunities.org/id/metropolitan-district-council/walsall,WC83-412,31/08/2017,Childrens,AXCIS EDUCATION RECRUITMENT,17/08/2017,"1,192.00",66502-TOP UP FUNDING -GRANTS TO SCHOOLS,INDEPENDENT PROVIDERS - SPECIAL & AP,Third Party Payments,Revenue
Walsall Council,http://opendatacommunities.org/id/metropolitan-district-council/walsall,WC83-413,31/08/2017,Childrens,REDACTED,07/08/2017,"1,284.00",76422-DIRECT PAYMENTS TO SOCIAL SERVICES CLIENTS,FAMILY SUPPORT - DIRECT PAYMENTS,Transfer Payments,Revenue
Walsall Council,http://opendatacommunities.org/id/metropolitan-district-council/walsall,WC83-414,31/08/2017,Adult Social Care,REDACTED,07/08/2017,"2,808.00",76422-DIRECT PAYMENTS TO SOCIAL SERVICES CLIENTS,LD COMMISSIONING,Transfer Payments,Revenue
Walsall Council,http://opendatacommunities.org/id/metropolitan-district-council/walsall,WC83-415,31/08/2017,Childrens,REDACTED,21/08/2017,"1,334.00",60500-GENERAL MATERIALS,PRIMARY CONSULTATIVE GROUP,Supplies & Services,Revenue
Walsall Council,http://opendatacommunities.org/id/metropolitan-district-council/walsall,WC83-416,31/08/2017,Childrens,REDACTED,29/08/2017,527.67,74506-TRAVEL-FOSTER CARERS,FAMILY & FRIENDS FOSTER CARE PROVISION,Transfer Payments,Revenue
Walsall Council,http://opendatacommunities.org/id/metropolitan-district-council/walsall,WC83-417,31/08/2017,Childrens,REDACTED,01/08/2017,985.76,74501-MAINTENANCE ALLOWANCE-FOSTER CARERS,FAMILY & FRIENDS FOSTER CARE PROVISION,Transfer Payments,Revenue
Walsall Council,http://opendatacommunities.org/id/metropolitan-district-council/walsall,WC83-418,31/08/2017,Childrens,REDACTED,29/08/2017,985.76,74501-MAINTENANCE ALLOWANCE-FOSTER CARERS,FAMILY & FRIENDS FOSTER CARE PROVISION,Transfer Payments,Revenue
Walsall Council,http://opendatacommunities.org/id/metropolitan-district-council/walsall,WC83-419,31/08/2017,Childrens,REDACTED,01/08/2017,464,76000-TRANSFER PAYMENTS - SOCIAL SERVICES CLIENTS,TRANSITION AND LEAVING CARE,Transfer Payments,Revenue
Walsall Council,http://opendatacommunities.org/id/metropolitan-district-council/walsall,WC83-420,31/08/2017,Childrens,REDACTED,01/08/2017,464,76000-TRANSFER PAYMENTS - SOCIAL SERVICES CLIENTS,TRANSITION AND LEAVING CARE,Transfer Payments,Revenue
Walsall Council,http://opendatacommunities.org/id/metropolitan-district-council/walsall,WC83-421,31/08/2017,Childrens,REDACTED,15/08/2017,464,76000-TRANSFER PAYMENTS - SOCIAL SERVICES CLIENTS,TRANSITION AND LEAVING CARE,Transfer Payments,Revenue
Walsall Council,http://opendatacommunities.org/id/metropolitan-district-council/walsall,WC83-422,31/08/2017,Childrens,REDACTED,15/08/2017,464,76000-TRANSFER PAYMENTS - SOCIAL SERVICES CLIENTS,TRANSITION AND LEAVING CARE,Transfer Payments,Revenue
Walsall Council,http://opendatacommunities.org/id/metropolitan-district-council/walsall,WC83-423,31/08/2017,Childrens,REDACTED,30/08/2017,464,76000-TRANSFER PAYMENTS - SOCIAL SERVICES CLIENTS,TRANSITION AND LEAVING CARE,Transfer Payments,Revenue
Walsall Council,http://opendatacommunities.org/id/metropolitan-district-council/walsall,WC83-424,31/08/2017,Childrens,REDACTED,30/08/2017,464,76000-TRANSFER PAYMENTS - SOCIAL SERVICES CLIENTS,TRANSITION AND LEAVING CARE,Transfer Payments,Revenue
Walsall Council,http://opendatacommunities.org/id/metropolitan-district-council/walsall,WC83-425,31/08/2017,Change and Governance,BADENOCH & CLARK 002,01/08/2017,"4,678.25",34305-AGENCY STAFF-EMPLOYEES,CORPORATE MANAGEMENT TEAM,Employees,Revenue
Walsall Council,http://opendatacommunities.org/id/metropolitan-district-council/walsall,WC83-426,31/08/2017,Change and Governance,BADENOCH & CLARK 002,11/08/2017,"4,678.25",34305-AGENCY STAFF-EMPLOYEES,CORPORATE MANAGEMENT TEAM,Employees,Revenue
Walsall Council,http://opendatacommunities.org/id/metropolitan-district-council/walsall,WC83-427,31/08/2017,Change and Governance,BADENOCH & CLARK 002,11/08/2017,"4,678.25",34305-AGENCY STAFF-EMPLOYEES,CORPORATE MANAGEMENT TEAM,Employees,Revenue
Walsall Council,http://opendatacommunities.org/id/metropolitan-district-council/walsall,WC83-428,31/08/2017,Change and Governance,BADENOCH & CLARK 002,16/08/2017,"4,678.25",34305-AGENCY STAFF-EMPLOYEES,CORPORATE MANAGEMENT TEAM,Employees,Revenue
Walsall Council,http://opendatacommunities.org/id/metropolitan-district-council/walsall,WC83-429,31/08/2017,Change and Governance,BADENOCH & CLARK 002,24/08/2017,"4,678.25",34305-AGENCY STAFF-EMPLOYEES,CORPORATE MANAGEMENT TEAM,Employees,Revenue
Walsall Council,http://opendatacommunities.org/id/metropolitan-district-council/walsall,WC83-430,31/08/2017,Change and Governance,BADENOCH & CLARK 002,04/08/2017,"5,613.90",34305-AGENCY STAFF-EMPLOYEES,CORPORATE MANAGEMENT TEAM,Employees,Revenue
Walsall Council,http://opendatacommunities.org/id/metropolitan-district-council/walsall,WC83-431,31/08/2017,Change and Governance,BADENOCH & CLARK 002,30/08/2017,"5,613.90",34305-AGENCY STAFF-EMPLOYEES,CORPORATE MANAGEMENT TEAM,Employees,Revenue
Walsall Council,http://opendatacommunities.org/id/metropolitan-district-council/walsall,WC83-432,31/08/2017,Economy & Environment,BAKER HALL PARTNERSHIP,24/08/2017,"1,133.75",63000-PROFESSIONAL FEES AND SERVICES,BUILDING CONTROL REVENUE FUNDED,Supplies & Services,Revenue
Walsall Council,http://opendatacommunities.org/id/metropolitan-district-council/walsall,WC83-433,31/08/2017,Economy & Environment,BAKER HALL PARTNERSHIP,18/08/2017,"2,947.75",63000-PROFESSIONAL FEES AND SERVICES,BUILDING CONTROL REVENUE FUNDED,Supplies & Services,Revenue
Walsall Council,http://opendatacommunities.org/id/metropolitan-district-council/walsall,WC83-434,31/08/2017,Adult Social Care,REDACTED,07/08/2017,480,76422-DIRECT PAYMENTS TO SOCIAL SERVICES CLIENTS,MH COMMISSIONING,Transfer Payments,Revenue
Walsall Council,http://opendatacommunities.org/id/metropolitan-district-council/walsall,WC83-435,31/08/2017,Adult Social Care,REDACTED,07/08/2017,324,76422-DIRECT PAYMENTS TO SOCIAL SERVICES CLIENTS,LD COMMISSIONING,Transfer Payments,Revenue
Walsall Council,http://opendatacommunities.org/id/metropolitan-district-council/walsall,WC83-436,31/08/2017,Adult Social Care,REDACTED,07/08/2017,"3,258.96",76422-DIRECT PAYMENTS TO SOCIAL SERVICES CLIENTS,LD COMMISSIONING,Transfer Payments,Revenue
Walsall Council,http://opendatacommunities.org/id/metropolitan-district-council/walsall,WC83-437,31/08/2017,Adult Social Care,REDACTED,07/08/2017,800,76422-DIRECT PAYMENTS TO SOCIAL SERVICES CLIENTS,OP COMMISSIONING,Transfer Payments,Revenue
Walsall Council,http://opendatacommunities.org/id/metropolitan-district-council/walsall,WC83-438,31/08/2017,Adult Social Care,REDACTED,07/08/2017,"1,582.86",76422-DIRECT PAYMENTS TO SOCIAL SERVICES CLIENTS,OP COMMISSIONING,Transfer Payments,Revenue
Walsall Council,http://opendatacommunities.org/id/metropolitan-district-council/walsall,WC83-439,31/08/2017,Childrens,REDACTED,01/08/2017,9.24,60006-NEW-FURNITURE & EQUIPMENT,FAMILY & FRIENDS FOSTER CARE PROVISION,Supplies & Services,Revenue
Walsall Council,http://opendatacommunities.org/id/metropolitan-district-council/walsall,WC83-440,31/08/2017,Childrens,REDACTED,29/08/2017,9.24,60006-NEW-FURNITURE & EQUIPMENT,FAMILY & FRIENDS FOSTER CARE PROVISION,Supplies & Services,Revenue
Walsall Council,http://opendatacommunities.org/id/metropolitan-district-council/walsall,WC83-441,31/08/2017,Childrens,REDACTED,29/08/2017,345.24,74508-INTERNAL FOSTER CARERS-CARER FEES,FAMILY & FRIENDS FOSTER CARE PROVISION,Transfer Payments,Revenue
Walsall Council,http://opendatacommunities.org/id/metropolitan-district-council/walsall,WC83-442,31/08/2017,Childrens,REDACTED,01/08/2017,364.38,74508-INTERNAL FOSTER CARERS-CARER FEES,FAMILY & FRIENDS FOSTER CARE PROVISION,Transfer Payments,Revenue
Walsall Council,http://opendatacommunities.org/id/metropolitan-district-council/walsall,WC83-443,31/08/2017,Childrens,REDACTED,01/08/2017,571.44,74501-MAINTENANCE ALLOWANCE-FOSTER CARERS,FAMILY & FRIENDS FOSTER CARE PROVISION,Transfer Payments,Revenue
Walsall Council,http://opendatacommunities.org/id/metropolitan-district-council/walsall,WC83-444,31/08/2017,Childrens,REDACTED,29/08/2017,571.44,74501-MAINTENANCE ALLOWANCE-FOSTER CARERS,FAMILY & FRIENDS FOSTER CARE PROVISION,Transfer Payments,Revenue
Walsall Council,http://opendatacommunities.org/id/metropolitan-district-council/walsall,WC83-445,31/08/2017,Adult Social Care,REDACTED,07/08/2017,849.64,76422-DIRECT PAYMENTS TO SOCIAL SERVICES CLIENTS,OP COMMISSIONING,Transfer Payments,Revenue
Walsall Council,http://opendatacommunities.org/id/metropolitan-district-council/walsall,WC83-446,31/08/2017,Childrens,BARNARDOS SERVICES LTD,14/08/2017,"3,034.50",74037-INDEPENDENT FOSTER CARE-OTH AGENCY PROVISION,EXTERNAL FOSTER CARE PROVISION,Third Party Payments,Revenue
Walsall Council,http://opendatacommunities.org/id/metropolitan-district-council/walsall,WC83-447,31/08/2017,Change and Governance,BARNBOROUGH LTD,14/08/2017,383.7,60007-REPAIR OF EQUIPMENT-EQUIPMENT,CL ADMIN,Supplies & Services,Revenue
Walsall Council,http://opendatacommunities.org/id/metropolitan-district-council/walsall,WC83-448,31/08/2017,Economy & Environment,BARR BEACON TRUST,04/08/2017,"26,448.00","40000-REPAIRS,ALTERATIONS & MAINTENANCE-PREM",BARR BEACON MANAGEMENT & EVENTS,Premises,Revenue
Walsall Council,http://opendatacommunities.org/id/metropolitan-district-council/walsall,WC83-449,31/08/2017,Adult Social Care,REDACTED,07/08/2017,490.4,76422-DIRECT PAYMENTS TO SOCIAL SERVICES CLIENTS,OP COMMISSIONING,Transfer Payments,Revenue
Walsall Council,http://opendatacommunities.org/id/metropolitan-district-council/walsall,WC83-450,31/08/2017,Economy & Environment,BAT FABRICATIONS LTD,02/08/2017,"1,350.00",60008-MAINTENANCE-FURNITURE & EQUIPMENT,SECTION 106,Supplies & Services,Revenue
Walsall Council,http://opendatacommunities.org/id/metropolitan-district-council/walsall,WC83-451,31/08/2017,Economy & Environment,BAT FABRICATIONS LTD,02/08/2017,"1,380.00",60006-NEW-FURNITURE & EQUIPMENT,INFRASTRUCTURE MAINTENANCE,Supplies & Services,Revenue
Walsall Council,http://opendatacommunities.org/id/metropolitan-district-council/walsall,WC83-452,31/08/2017,Economy & Environment,BEADEN POWERLEC LIMITED,25/08/2017,905,60008-MAINTENANCE-FURNITURE & EQUIPMENT,WALSALL GALA CENTRE,Supplies & Services,Revenue
Walsall Council,http://opendatacommunities.org/id/metropolitan-district-council/walsall,WC83-453,31/08/2017,Childrens,REDACTED,14/08/2017,9.24,60006-NEW-FURNITURE & EQUIPMENT,INTERNAL FOSTER CARE PROVISION,Supplies & Services,Revenue
Walsall Council,http://opendatacommunities.org/id/metropolitan-district-council/walsall,WC83-454,31/08/2017,Childrens,REDACTED,14/08/2017,271.58,74506-TRAVEL-FOSTER CARERS,INTERNAL FOSTER CARE PROVISION,Transfer Payments,Revenue
Walsall Council,http://opendatacommunities.org/id/metropolitan-district-council/walsall,WC83-455,31/08/2017,Childrens,REDACTED,14/08/2017,325.46,74504-HOLIDAY/CHRISTMAS ALLOWANCE-FOSTER CARERS,INTERNAL FOSTER CARE PROVISION,Transfer Payments,Revenue
Walsall Council,http://opendatacommunities.org/id/metropolitan-district-council/walsall,WC83-456,31/08/2017,Childrens,REDACTED,14/08/2017,530.96,74508-INTERNAL FOSTER CARERS-CARER FEES,INTERNAL FOSTER CARE PROVISION,Transfer Payments,Revenue
Walsall Council,http://opendatacommunities.org/id/metropolitan-district-council/walsall,WC83-457,31/08/2017,Childrens,REDACTED,14/08/2017,650.92,74501-MAINTENANCE ALLOWANCE-FOSTER CARERS,INTERNAL FOSTER CARE PROVISION,Transfer Payments,Revenue
Walsall Council,http://opendatacommunities.org/id/metropolitan-district-council/walsall,WC83-458,31/08/2017,Childrens,REDACTED,14/08/2017,9.24,60006-NEW-FURNITURE & EQUIPMENT,INTERNAL FOSTER CARE PROVISION,Supplies & Services,Revenue
Walsall Council,http://opendatacommunities.org/id/metropolitan-district-council/walsall,WC83-459,31/08/2017,Childrens,REDACTED,14/08/2017,530.96,74508-INTERNAL FOSTER CARERS-CARER FEES,INTERNAL FOSTER CARE PROVISION,Transfer Payments,Revenue
Walsall Council,http://opendatacommunities.org/id/metropolitan-district-council/walsall,WC83-460,31/08/2017,Adult Social Care,BELVIDERE COURT,08/08/2017,"1,826.56",73373-RESIDENTIAL & NURSING CARE PLACEMENTS,OP COMMISSIONING,Third Party Payments,Revenue
Walsall Council,http://opendatacommunities.org/id/metropolitan-district-council/walsall,WC83-461,31/08/2017,Adult Social Care,BELVIDERE COURT,14/08/2017,"1,826.56",73373-RESIDENTIAL & NURSING CARE PLACEMENTS,OP COMMISSIONING,Third Party Payments,Revenue
Walsall Council,http://opendatacommunities.org/id/metropolitan-district-council/walsall,WC83-462,31/08/2017,Adult Social Care,BELVIDERE COURT,08/08/2017,"1,886.26",73373-RESIDENTIAL & NURSING CARE PLACEMENTS,MH COMMISSIONING,Third Party Payments,Revenue
Walsall Council,http://opendatacommunities.org/id/metropolitan-district-council/walsall,WC83-463,31/08/2017,Adult Social Care,BELVIDERE COURT,14/08/2017,"1,886.26",73373-RESIDENTIAL & NURSING CARE PLACEMENTS,MH COMMISSIONING,Third Party Payments,Revenue
Walsall Council,http://opendatacommunities.org/id/metropolitan-district-council/walsall,WC83-464,31/08/2017,Adult Social Care,BELVIDERE COURT,08/08/2017,"3,764.29",73373-RESIDENTIAL & NURSING CARE PLACEMENTS,MH COMMISSIONING,Third Party Payments,Revenue
Walsall Council,http://opendatacommunities.org/id/metropolitan-district-council/walsall,WC83-465,31/08/2017,Adult Social Care,BELVIDERE COURT,14/08/2017,"3,764.29",73373-RESIDENTIAL & NURSING CARE PLACEMENTS,MH COMMISSIONING,Third Party Payments,Revenue
Walsall Council,http://opendatacommunities.org/id/metropolitan-district-council/walsall,WC83-466,31/08/2017,Adult Social Care,REDACTED,07/08/2017,"2,310.00",76422-DIRECT PAYMENTS TO SOCIAL SERVICES CLIENTS,LD COMMISSIONING,Transfer Payments,Revenue
Walsall Council,http://opendatacommunities.org/id/metropolitan-district-council/walsall,WC83-467,31/08/2017,Adult Social Care,BENTLEY COURT PRIORY,08/08/2017,"1,414.11",73373-RESIDENTIAL & NURSING CARE PLACEMENTS,OP COMMISSIONING,Third Party Payments,Revenue
Walsall Council,http://opendatacommunities.org/id/metropolitan-district-council/walsall,WC83-468,31/08/2017,Adult Social Care,BENTLEY COURT PRIORY,08/08/2017,"1,767.64",73373-RESIDENTIAL & NURSING CARE PLACEMENTS,OP COMMISSIONING,Third Party Payments,Revenue
Walsall Council,http://opendatacommunities.org/id/metropolitan-district-council/walsall,WC83-469,31/08/2017,Adult Social Care,BENTLEY COURT PRIORY,08/08/2017,"1,826.56",73373-RESIDENTIAL & NURSING CARE PLACEMENTS,OP COMMISSIONING,Third Party Payments,Revenue
Walsall Council,http://opendatacommunities.org/id/metropolitan-district-council/walsall,WC83-470,31/08/2017,Adult Social Care,BENTLEY COURT PRIORY,08/08/2017,"1,826.56",73373-RESIDENTIAL & NURSING CARE PLACEMENTS,OP COMMISSIONING,Third Party Payments,Revenue
Walsall Council,http://opendatacommunities.org/id/metropolitan-district-council/walsall,WC83-471,31/08/2017,Adult Social Care,BENTLEY COURT PRIORY,08/08/2017,"1,924.50",73373-RESIDENTIAL & NURSING CARE PLACEMENTS,OP COMMISSIONING,Third Party Payments,Revenue
Walsall Council,http://opendatacommunities.org/id/metropolitan-district-council/walsall,WC83-472,31/08/2017,Adult Social Care,BENTLEY COURT PRIORY,08/08/2017,"2,004.17",73373-RESIDENTIAL & NURSING CARE PLACEMENTS,OP COMMISSIONING,Third Party Payments,Revenue
Walsall Council,http://opendatacommunities.org/id/metropolitan-district-council/walsall,WC83-473,31/08/2017,Adult Social Care,BENTLEY COURT PRIORY,08/08/2017,"2,070.98",73373-RESIDENTIAL & NURSING CARE PLACEMENTS,OP COMMISSIONING,Third Party Payments,Revenue
Walsall Council,http://opendatacommunities.org/id/metropolitan-district-council/walsall,WC83-474,31/08/2017,Adult Social Care,BENTLEY COURT PRIORY,14/08/2017,"2,196.20",73373-RESIDENTIAL & NURSING CARE PLACEMENTS,OP COMMISSIONING,Third Party Payments,Revenue
Walsall Council,http://opendatacommunities.org/id/metropolitan-district-council/walsall,WC83-475,31/08/2017,Adult Social Care,BENTLEY COURT PRIORY,14/08/2017,"2,196.21",73373-RESIDENTIAL & NURSING CARE PLACEMENTS,OP COMMISSIONING,Third Party Payments,Revenue
Walsall Council,http://opendatacommunities.org/id/metropolitan-district-council/walsall,WC83-476,31/08/2017,Adult Social Care,BENTLEY COURT PRIORY,14/08/2017,"2,269.42",73373-RESIDENTIAL & NURSING CARE PLACEMENTS,OP COMMISSIONING,Third Party Payments,Revenue
Walsall Council,http://opendatacommunities.org/id/metropolitan-district-council/walsall,WC83-477,31/08/2017,Adult Social Care,BENTLEY COURT PRIORY,14/08/2017,"2,269.42",73373-RESIDENTIAL & NURSING CARE PLACEMENTS,OP COMMISSIONING,Third Party Payments,Revenue
Walsall Council,http://opendatacommunities.org/id/metropolitan-district-council/walsall,WC83-478,31/08/2017,Adult Social Care,BENTLEY COURT PRIORY,14/08/2017,"2,269.42",73373-RESIDENTIAL & NURSING CARE PLACEMENTS,OP COMMISSIONING,Third Party Payments,Revenue
Walsall Council,http://opendatacommunities.org/id/metropolitan-district-council/walsall,WC83-479,31/08/2017,Childrens,BERRY GIFFORD LTD,17/08/2017,814.3,76010-ACCOMMODATION AND RELATED COSTS-ASSISTANCE TO S/S CLIENTS,TRANSITION AND LEAVING CARE,Transfer Payments,Revenue
Walsall Council,http://opendatacommunities.org/id/metropolitan-district-council/walsall,WC83-480,31/08/2017,Adult Social Care,REDACTED,07/08/2017,"1,302.21",76422-DIRECT PAYMENTS TO SOCIAL SERVICES CLIENTS,OP COMMISSIONING,Transfer Payments,Revenue
Walsall Council,http://opendatacommunities.org/id/metropolitan-district-council/walsall,WC83-481,31/08/2017,Childrens,REDACTED,14/08/2017,9.24,60006-NEW-FURNITURE & EQUIPMENT,INTERNAL FOSTER CARE PROVISION,Supplies & Services,Revenue
Walsall Council,http://opendatacommunities.org/id/metropolitan-district-council/walsall,WC83-482,31/08/2017,Childrens,REDACTED,14/08/2017,571.44,74501-MAINTENANCE ALLOWANCE-FOSTER CARERS,INTERNAL FOSTER CARE PROVISION,Transfer Payments,Revenue
Walsall Council,http://opendatacommunities.org/id/metropolitan-district-council/walsall,WC83-483,31/08/2017,Childrens,REDACTED,14/08/2017,650.92,74501-MAINTENANCE ALLOWANCE-FOSTER CARERS,INTERNAL FOSTER CARE PROVISION,Transfer Payments,Revenue
Walsall Council,http://opendatacommunities.org/id/metropolitan-district-council/walsall,WC83-484,31/08/2017,Childrens,REDACTED,14/08/2017,"1,109.11",74508-INTERNAL FOSTER CARERS-CARER FEES,INTERNAL FOSTER CARE PROVISION,Transfer Payments,Revenue
Walsall Council,http://opendatacommunities.org/id/metropolitan-district-council/walsall,WC83-485,31/08/2017,Adult Social Care,REDACTED,07/08/2017,"1,354.08",76422-DIRECT PAYMENTS TO SOCIAL SERVICES CLIENTS,OP COMMISSIONING,Transfer Payments,Revenue
Walsall Council,http://opendatacommunities.org/id/metropolitan-district-council/walsall,WC83-486,31/08/2017,Adult Social Care,REDACTED,07/08/2017,968,76422-DIRECT PAYMENTS TO SOCIAL SERVICES CLIENTS,OP COMMISSIONING,Transfer Payments,Revenue
Walsall Council,http://opendatacommunities.org/id/metropolitan-district-council/walsall,WC83-487,31/08/2017,Adult Social Care,BESCOT LODGE RESIDENTIAL CARE HOME,14/08/2017,"1,793.57",73373-RESIDENTIAL & NURSING CARE PLACEMENTS,OP COMMISSIONING,Third Party Payments,Revenue
Walsall Council,http://opendatacommunities.org/id/metropolitan-district-council/walsall,WC83-488,31/08/2017,Adult Social Care,BESCOT LODGE RESIDENTIAL CARE HOME,14/08/2017,"1,793.58",73373-RESIDENTIAL & NURSING CARE PLACEMENTS,OP COMMISSIONING,Third Party Payments,Revenue
Walsall Council,http://opendatacommunities.org/id/metropolitan-district-council/walsall,WC83-489,31/08/2017,Adult Social Care,BESCOT LODGE RESIDENTIAL CARE HOME,29/08/2017,"1,833.43",73373-RESIDENTIAL & NURSING CARE PLACEMENTS,OP COMMISSIONING,Third Party Payments,Revenue
Walsall Council,http://opendatacommunities.org/id/metropolitan-district-council/walsall,WC83-490,31/08/2017,Adult Social Care,BESCOT LODGE RESIDENTIAL CARE HOME,14/08/2017,"1,992.86",73373-RESIDENTIAL & NURSING CARE PLACEMENTS,OP COMMISSIONING,Third Party Payments,Revenue
Walsall Council,http://opendatacommunities.org/id/metropolitan-district-council/walsall,WC83-491,31/08/2017,Adult Social Care,BESCOT LODGE RESIDENTIAL CARE HOME,14/08/2017,"1,992.86",73373-RESIDENTIAL & NURSING CARE PLACEMENTS,OP COMMISSIONING,Third Party Payments,Revenue
Walsall Council,http://opendatacommunities.org/id/metropolitan-district-council/walsall,WC83-492,31/08/2017,Adult Social Care,BESCOT LODGE RESIDENTIAL CARE HOME,21/08/2017,"1,992.86",73373-RESIDENTIAL & NURSING CARE PLACEMENTS,OP COMMISSIONING,Third Party Payments,Revenue
Walsall Council,http://opendatacommunities.org/id/metropolitan-district-council/walsall,WC83-493,31/08/2017,Economy & Environment,BESCOT STADIUM SUNDAY MARKET LTD,01/08/2017,"2,800.00",73025-PROFESSIONAL SERVICES-PRIV CONTRACTOR & OTHER AGENCIES,WILLENHALL MARKET,Third Party Payments,Revenue
Walsall Council,http://opendatacommunities.org/id/metropolitan-district-council/walsall,WC83-494,31/08/2017,Economy & Environment,BESCOT STADIUM SUNDAY MARKET LTD,14/08/2017,"3,500.00",73025-PROFESSIONAL SERVICES-PRIV CONTRACTOR & OTHER AGENCIES,WILLENHALL MARKET,Third Party Payments,Revenue
Walsall Council,http://opendatacommunities.org/id/metropolitan-district-council/walsall,WC83-495,31/08/2017,Adult Social Care,REDACTED,07/08/2017,949.52,76422-DIRECT PAYMENTS TO SOCIAL SERVICES CLIENTS,MH COMMISSIONING,Transfer Payments,Revenue
Walsall Council,http://opendatacommunities.org/id/metropolitan-district-council/walsall,WC83-496,31/08/2017,Adult Social Care,REDACTED,07/08/2017,"2,767.84",76422-DIRECT PAYMENTS TO SOCIAL SERVICES CLIENTS,OP COMMISSIONING,Transfer Payments,Revenue
Walsall Council,http://opendatacommunities.org/id/metropolitan-district-council/walsall,WC83-497,31/08/2017,Economy & Environment,BIBLIOGRAPHIC DATA SERVICES LTD,17/08/2017,"2,875.00",63000-PROFESSIONAL FEES AND SERVICES,NETWORK SUPPORT,Supplies & Services,Revenue
Walsall Council,http://opendatacommunities.org/id/metropolitan-district-council/walsall,WC83-498,31/08/2017,Childrens,BID CENTRE FOR DEAF PEOPLE,03/08/2017,270,63000-PROFESSIONAL FEES AND SERVICES,SAFEGUARDING & FAMILY SUPPORT,Supplies & Services,Revenue
Walsall Council,http://opendatacommunities.org/id/metropolitan-district-council/walsall,WC83-499,31/08/2017,Childrens,BID CENTRE FOR DEAF PEOPLE,03/08/2017,270,63000-PROFESSIONAL FEES AND SERVICES,SAFEGUARDING & FAMILY SUPPORT,Supplies & Services,Revenue
Walsall Council,http://opendatacommunities.org/id/metropolitan-district-council/walsall,WC83-500,31/08/2017,Childrens,BID CENTRE FOR DEAF PEOPLE,03/08/2017,276.3,63000-PROFESSIONAL FEES AND SERVICES,SAFEGUARDING & FAMILY SUPPORT,Supplies & Services,Revenue
Walsall Council,http://opendatacommunities.org/id/metropolitan-district-council/walsall,WC83-501,31/08/2017,Childrens,REDACTED,07/08/2017,487.72,76422-DIRECT PAYMENTS TO SOCIAL SERVICES CLIENTS,FAMILY SUPPORT - DIRECT PAYMENTS,Transfer Payments,Revenue
Walsall Council,http://opendatacommunities.org/id/metropolitan-district-council/walsall,WC83-502,31/08/2017,Childrens,REDACTED,07/08/2017,572,76422-DIRECT PAYMENTS TO SOCIAL SERVICES CLIENTS,FAMILY SUPPORT - DIRECT PAYMENTS,Transfer Payments,Revenue
Walsall Council,http://opendatacommunities.org/id/metropolitan-district-council/walsall,WC83-503,31/08/2017,Economy & Environment,BILLY ROSS WHOLESALE,04/08/2017,254.4,60500-GENERAL MATERIALS,LEATHER MUSEUM SHOP STOCK,Supplies & Services,Revenue
Walsall Council,http://opendatacommunities.org/id/metropolitan-district-council/walsall,WC83-504,31/08/2017,Economy & Environment,BIOGAS TECHNOLOGY LIMITED,17/08/2017,347,60008-MAINTENANCE-FURNITURE & EQUIPMENT,POLLUTION DIVISION,Supplies & Services,Revenue
Walsall Council,http://opendatacommunities.org/id/metropolitan-district-council/walsall,WC83-505,31/08/2017,Economy & Environment,BIOGAS TECHNOLOGY LIMITED,29/08/2017,347,60008-MAINTENANCE-FURNITURE & EQUIPMENT,POLLUTION DIVISION,Supplies & Services,Revenue
Walsall Council,http://opendatacommunities.org/id/metropolitan-district-council/walsall,WC83-506,31/08/2017,Childrens,BIRMINGHAM CITY COUNCIL,01/08/2017,"1,224.00",52000-WITH DRIVER-HIRE OF VEHICLES,SCHOOL TRANSPORT,Transport,Revenue
Walsall Council,http://opendatacommunities.org/id/metropolitan-district-council/walsall,WC83-507,31/08/2017,Childrens,BIRMINGHAM CITY COUNCIL,14/08/2017,"1,956.16",74037-INDEPENDENT FOSTER CARE-OTH AGENCY PROVISION,EXTERNAL FOSTER CARE PROVISION,Third Party Payments,Revenue
Walsall Council,http://opendatacommunities.org/id/metropolitan-district-council/walsall,WC83-508,31/08/2017,Economy & Environment,BIRMINGHAM CITY COUNCIL,16/08/2017,"3,795.82",71000-PAYMENTS FOR SERVICES FROM OTHER LOCAL AUTHORITIES,PLANNING POLICY,Third Party Payments,Revenue
Walsall Council,http://opendatacommunities.org/id/metropolitan-district-council/walsall,WC83-509,31/08/2017,Economy & Environment,BIRMINGHAM CITY COUNCIL,16/08/2017,"7,591.63",71000-PAYMENTS FOR SERVICES FROM OTHER LOCAL AUTHORITIES,ROAD SAFETY & SUSTAINABLE TRAVEL,Third Party Payments,Revenue
Walsall Council,http://opendatacommunities.org/id/metropolitan-district-council/walsall,WC83-510,31/08/2017,Adult Social Care,BLACK COUNTRY PARTNERSHIP NHS,08/08/2017,"-16,769.00",73375-IN PATIENT BEDS,LD COMMISSIONING,Third Party Payments,Revenue
Walsall Council,http://opendatacommunities.org/id/metropolitan-district-council/walsall,WC83-511,31/08/2017,Adult Social Care,BLACK COUNTRY PARTNERSHIP NHS,16/08/2017,"-11,939.00",73375-IN PATIENT BEDS,LD COMMISSIONING,Third Party Payments,Revenue
Walsall Council,http://opendatacommunities.org/id/metropolitan-district-council/walsall,WC83-512,31/08/2017,Adult Social Care,BLACK COUNTRY PARTNERSHIP NHS,16/08/2017,"11,939.00",73375-IN PATIENT BEDS,LD COMMISSIONING,Third Party Payments,Revenue
Walsall Council,http://opendatacommunities.org/id/metropolitan-district-council/walsall,WC83-513,31/08/2017,Adult Social Care,BLACK COUNTRY PARTNERSHIP NHS,08/08/2017,"16,769.00",73375-IN PATIENT BEDS,LD COMMISSIONING,Third Party Payments,Revenue
Walsall Council,http://opendatacommunities.org/id/metropolitan-district-council/walsall,WC83-514,31/08/2017,Economy & Environment,BLACK COUNTRY TRAINING LTD T/A BRITISH HGV TRAINING GROUP,09/08/2017,300,30030-EXTERNAL TRAINING,STREET CLEANSING,Employees,Revenue
Walsall Council,http://opendatacommunities.org/id/metropolitan-district-council/walsall,WC83-515,31/08/2017,Economy & Environment,BLACK COUNTRY TRAINING LTD T/A BRITISH HGV TRAINING GROUP,14/08/2017,610,30030-EXTERNAL TRAINING,GROUNDS,Employees,Revenue
Walsall Council,http://opendatacommunities.org/id/metropolitan-district-council/walsall,WC83-516,31/08/2017,Childrens,BLACK COUNTRY WOMENS AID,09/08/2017,270,30000-INTERNAL TRAINING,WORKFORCE DEVELOPMENT,Employees,Revenue
Walsall Council,http://opendatacommunities.org/id/metropolitan-district-council/walsall,WC83-517,31/08/2017,Childrens,BLACK COUNTRY WOMENS AID,18/08/2017,"22,904.25",63000-PROFESSIONAL FEES AND SERVICES,TOXIC TRIO,Supplies & Services,Revenue
Walsall Council,http://opendatacommunities.org/id/metropolitan-district-council/walsall,WC83-518,31/08/2017,Childrens,BLAKENALL HEATH JMI SCHOOL,16/08/2017,"59,880.00",77302-ISB-SCHOOL STANDARDS GRANT,BLAKENALL HEATH JUNIOR SCHOOL,Transfer Payments,Revenue
Walsall Council,http://opendatacommunities.org/id/metropolitan-district-council/walsall,WC83-519,31/08/2017,Childrens,BLAKENALL HEATH JMI SCHOOL,01/08/2017,"97,351.61",77300-ISB-FORMULA ALLOCATION,BLAKENALL HEATH JUNIOR SCHOOL,Transfer Payments,Revenue
Walsall Council,http://opendatacommunities.org/id/metropolitan-district-council/walsall,WC83-520,31/08/2017,Childrens,BLOXWICH ACADEMY,03/08/2017,"1,560.00",66505-OTHER-GRANTS TO OTHER ORGS,EARLY YEARS - 3 YR OLDS,Third Party Payments,Revenue
Walsall Council,http://opendatacommunities.org/id/metropolitan-district-council/walsall,WC83-521,31/08/2017,Change and Governance,BLOXWICH COMMUNITY PARTNERSHIP.,01/08/2017,435,52102-HIRE OF PLANT,SERVICES & SKILLS,Transport,Revenue
Walsall Council,http://opendatacommunities.org/id/metropolitan-district-council/walsall,WC83-522,31/08/2017,Childrens,BLOXWICH COMMUNITY PARTNERSHIP.,11/08/2017,"20,643.54",66500-GRANTS TO OTHER ORGS,TARGETED YOUTH WORK - COMMISSIONED,Third Party Payments,Revenue
Walsall Council,http://opendatacommunities.org/id/metropolitan-district-council/walsall,WC83-523,31/08/2017,Economy & Environment,BME UNITED LTD,16/08/2017,"3,196.00",63253-PAYMENT TO CONTRACTOR,SMOKING CESSATION,Third Party Payments,Revenue
Walsall Council,http://opendatacommunities.org/id/metropolitan-district-council/walsall,WC83-524,31/08/2017,Economy & Environment,BME UNITED LTD,02/08/2017,"3,790.00",63000-PROFESSIONAL FEES AND SERVICES,SMOKING CESSATION,Supplies & Services,Revenue
Walsall Council,http://opendatacommunities.org/id/metropolitan-district-council/walsall,WC83-525,31/08/2017,Economy & Environment,BOLINDA UK LTD,07/08/2017,307.89,60501-LIBRARY BOOKS,LIBRARY STOCK AND PERFORMANCE,Supplies & Services,Revenue
Walsall Council,http://opendatacommunities.org/id/metropolitan-district-council/walsall,WC83-526,31/08/2017,Economy & Environment,BOLINDA UK LTD,21/08/2017,870.91,60501-LIBRARY BOOKS,LIBRARY STOCK AND PERFORMANCE,Supplies & Services,Revenue
Walsall Council,http://opendatacommunities.org/id/metropolitan-district-council/walsall,WC83-527,31/08/2017,Change and Governance,BOLLMOR LTD,07/08/2017,"1,457.50",62001-STATIONERY & GENERAL SUPPLIES-OFFICE EXP,ELECTORAL ADMINISTRATION,Supplies & Services,Revenue
Walsall Council,http://opendatacommunities.org/id/metropolitan-district-council/walsall,WC83-528,31/08/2017,Economy & Environment,BONHAMS 1793 LIMITED,25/08/2017,800,63000-PROFESSIONAL FEES AND SERVICES,NAG - GARMAN RYAN/PERMANENT COLLECTION,Supplies & Services,Revenue
Walsall Council,http://opendatacommunities.org/id/metropolitan-district-council/walsall,WC83-529,31/08/2017,Economy & Environment,BOOKS ASIA,07/08/2017,372.37,60501-LIBRARY BOOKS,LIBRARY STOCK AND PERFORMANCE,Supplies & Services,Revenue
Walsall Council,http://opendatacommunities.org/id/metropolitan-district-council/walsall,WC83-530,31/08/2017,Childrens,BOOSTERS OUT OF SCHOOL CLUB,09/08/2017,524.5,63120-CRECHE FACILITIES-SERVICES-FEES,LOOKED AFTER CHILDRENS SOCIAL WORK TEAM,Supplies & Services,Revenue
Walsall Council,http://opendatacommunities.org/id/metropolitan-district-council/walsall,WC83-531,31/08/2017,Childrens,BOULTON TRAVEL LIMITED,10/08/2017,300,52000-WITH DRIVER-HIRE OF VEHICLES,SCHOOL TRANSPORT,Transport,Revenue
Walsall Council,http://opendatacommunities.org/id/metropolitan-district-council/walsall,WC83-532,31/08/2017,Childrens,BOULTON TRAVEL LIMITED,10/08/2017,"1,000.00",52000-WITH DRIVER-HIRE OF VEHICLES,SCHOOL TRANSPORT,Transport,Revenue
Walsall Council,http://opendatacommunities.org/id/metropolitan-district-council/walsall,WC83-533,31/08/2017,Childrens,BOULTON TRAVEL LIMITED,10/08/2017,"1,695.00",52000-WITH DRIVER-HIRE OF VEHICLES,SCHOOL TRANSPORT,Transport,Revenue
Walsall Council,http://opendatacommunities.org/id/metropolitan-district-council/walsall,WC83-534,31/08/2017,Childrens,BOULTON TRAVEL LIMITED,10/08/2017,"2,159.00",52000-WITH DRIVER-HIRE OF VEHICLES,SCHOOL TRANSPORT,Transport,Revenue
Walsall Council,http://opendatacommunities.org/id/metropolitan-district-council/walsall,WC83-535,31/08/2017,Adult Social Care,BOWDEN DERRA PARK,02/08/2017,"10,502.76",73373-RESIDENTIAL & NURSING CARE PLACEMENTS,LD COMMISSIONING,Third Party Payments,Revenue
Walsall Council,http://opendatacommunities.org/id/metropolitan-district-council/walsall,WC83-536,31/08/2017,Change and Governance,BPP PROFESSIONAL EDUCATION,21/08/2017,"1,278.99",30030-EXTERNAL TRAINING,FINANCE,Employees,Revenue
Walsall Council,http://opendatacommunities.org/id/metropolitan-district-council/walsall,WC83-537,31/08/2017,Economy & Environment,BRADVALE LTD T/A INSPIRE HEALTHCARE SERVICES,14/08/2017,223.95,60008-MAINTENANCE-FURNITURE & EQUIPMENT,OAK PARK,Supplies & Services,Revenue
Walsall Council,http://opendatacommunities.org/id/metropolitan-district-council/walsall,WC83-538,31/08/2017,Economy & Environment,BRADVALE LTD T/A INSPIRE HEALTHCARE SERVICES,11/08/2017,288.88,60008-MAINTENANCE-FURNITURE & EQUIPMENT,WALSALL GALA CENTRE,Supplies & Services,Revenue
Walsall Council,http://opendatacommunities.org/id/metropolitan-district-council/walsall,WC83-539,31/08/2017,Economy & Environment,BRADVALE LTD T/A INSPIRE HEALTHCARE SERVICES,18/08/2017,378.2,60500-GENERAL MATERIALS,ARBORETUM VISITOR CENTRE,Supplies & Services,Revenue
Walsall Council,http://opendatacommunities.org/id/metropolitan-district-council/walsall,WC83-540,31/08/2017,Economy & Environment,BRADVALE LTD T/A INSPIRE HEALTHCARE SERVICES,01/08/2017,392.23,60008-MAINTENANCE-FURNITURE & EQUIPMENT,OAK PARK,Supplies & Services,Revenue
Walsall Council,http://opendatacommunities.org/id/metropolitan-district-council/walsall,WC83-541,31/08/2017,Economy & Environment,BRADVALE LTD T/A INSPIRE HEALTHCARE SERVICES,14/08/2017,583.2,60500-GENERAL MATERIALS,ARBORETUM VISITOR CENTRE,Supplies & Services,Revenue
Walsall Council,http://opendatacommunities.org/id/metropolitan-district-council/walsall,WC83-542,31/08/2017,Economy & Environment,BRADVALE LTD T/A INSPIRE HEALTHCARE SERVICES,18/08/2017,583.2,60500-GENERAL MATERIALS,ARBORETUM VISITOR CENTRE,Supplies & Services,Revenue
Walsall Council,http://opendatacommunities.org/id/metropolitan-district-council/walsall,WC83-543,31/08/2017,Economy & Environment,BRADVALE LTD T/A INSPIRE HEALTHCARE SERVICES,17/08/2017,"1,827.95",73025-PROFESSIONAL SERVICES-PRIV CONTRACTOR & OTHER AGENCIES,DEPOT,Third Party Payments,Revenue
Walsall Council,http://opendatacommunities.org/id/metropolitan-district-council/walsall,WC83-544,31/08/2017,Adult Social Care,BRAMBLES RESIDENTIAL CARE HOME,14/08/2017,"2,134.58",73373-RESIDENTIAL & NURSING CARE PLACEMENTS,MH COMMISSIONING,Third Party Payments,Revenue
Walsall Council,http://opendatacommunities.org/id/metropolitan-district-council/walsall,WC83-545,31/08/2017,Childrens,BRANAS ISAF PERSONAL DEVELOPMENT CENTRE LTD,14/08/2017,"18,000.00",74036-EXTERNAL RESIDENTIAL CARE-OTH AGENCY PROVISION,INDEPENDENT RESIDENTIAL HOMES,Third Party Payments,Revenue
Walsall Council,http://opendatacommunities.org/id/metropolitan-district-council/walsall,WC83-546,31/08/2017,Childrens,BRELMAYNE LTD,03/08/2017,"29,936.00",01006-SITE WORKS MAIN CONTRACTORS,CFR 1137 BEACON PRIMARY EXTENSION,Capital,Capital
Walsall Council,http://opendatacommunities.org/id/metropolitan-district-council/walsall,WC83-547,31/08/2017,Adult Social Care,REDACTED,07/08/2017,440,76422-DIRECT PAYMENTS TO SOCIAL SERVICES CLIENTS,LD COMMISSIONING,Transfer Payments,Revenue
Walsall Council,http://opendatacommunities.org/id/metropolitan-district-council/walsall,WC83-548,31/08/2017,Adult Social Care,REDACTED,07/08/2017,"1,163.52",76422-DIRECT PAYMENTS TO SOCIAL SERVICES CLIENTS,OP COMMISSIONING,Transfer Payments,Revenue
Walsall Council,http://opendatacommunities.org/id/metropolitan-district-council/walsall,WC83-549,31/08/2017,Childrens,REDACTED,14/08/2017,9.24,60006-NEW-FURNITURE & EQUIPMENT,INTERNAL FOSTER CARE PROVISION,Supplies & Services,Revenue
Walsall Council,http://opendatacommunities.org/id/metropolitan-district-council/walsall,WC83-550,31/08/2017,Childrens,REDACTED,14/08/2017,545.35,74506-TRAVEL-FOSTER CARERS,INTERNAL FOSTER CARE PROVISION,Transfer Payments,Revenue
Walsall Council,http://opendatacommunities.org/id/metropolitan-district-council/walsall,WC83-551,31/08/2017,Childrens,REDACTED,14/08/2017,810.32,74501-MAINTENANCE ALLOWANCE-FOSTER CARERS,INTERNAL FOSTER CARE PROVISION,Transfer Payments,Revenue
Walsall Council,http://opendatacommunities.org/id/metropolitan-district-council/walsall,WC83-552,31/08/2017,Childrens,REDACTED,14/08/2017,810.32,74501-MAINTENANCE ALLOWANCE-FOSTER CARERS,INTERNAL FOSTER CARE PROVISION,Transfer Payments,Revenue
Walsall Council,http://opendatacommunities.org/id/metropolitan-district-council/walsall,WC83-553,31/08/2017,Childrens,REDACTED,14/08/2017,"1,436.08",74508-INTERNAL FOSTER CARERS-CARER FEES,INTERNAL FOSTER CARE PROVISION,Transfer Payments,Revenue
Walsall Council,http://opendatacommunities.org/id/metropolitan-district-council/walsall,WC83-554,31/08/2017,Economy & Environment,BRENNTAG UK LIMITED,02/08/2017,387.5,60500-GENERAL MATERIALS,BLOXWICH LEISURE CENTRE,Supplies & Services,Revenue
Walsall Council,http://opendatacommunities.org/id/metropolitan-district-council/walsall,WC83-555,31/08/2017,Economy & Environment,BRENNTAG UK LIMITED,07/08/2017,387.5,60503-CHEMICALS & SCIENTIFIC MATS-MATERIALS,OAK PARK,Supplies & Services,Revenue
Walsall Council,http://opendatacommunities.org/id/metropolitan-district-council/walsall,WC83-556,31/08/2017,Economy & Environment,BRENNTAG UK LIMITED,14/08/2017,387.5,60503-CHEMICALS & SCIENTIFIC MATS-MATERIALS,OAK PARK,Supplies & Services,Revenue
Walsall Council,http://opendatacommunities.org/id/metropolitan-district-council/walsall,WC83-557,31/08/2017,Adult Social Care,REDACTED,22/08/2017,"1,337.64",73374-SUPPORTED & OTHER ACCOMMODATION,LD COMMISSIONING,Third Party Payments,Revenue
Walsall Council,http://opendatacommunities.org/id/metropolitan-district-council/walsall,WC83-558,31/08/2017,Adult Social Care,REDACTED,22/08/2017,"1,597.60",73374-SUPPORTED & OTHER ACCOMMODATION,LD COMMISSIONING,Third Party Payments,Revenue
Walsall Council,http://opendatacommunities.org/id/metropolitan-district-council/walsall,WC83-559,31/08/2017,Adult Social Care,REDACTED,07/08/2017,"1,726.40",76422-DIRECT PAYMENTS TO SOCIAL SERVICES CLIENTS,OP COMMISSIONING,Transfer Payments,Revenue
Walsall Council,http://opendatacommunities.org/id/metropolitan-district-council/walsall,WC83-560,31/08/2017,Adult Social Care,REDACTED,07/08/2017,738,76422-DIRECT PAYMENTS TO SOCIAL SERVICES CLIENTS,OP COMMISSIONING,Transfer Payments,Revenue
Walsall Council,http://opendatacommunities.org/id/metropolitan-district-council/walsall,WC83-561,31/08/2017,Adult Social Care,BRIDGEWOOD HEALTH CARE LTD,29/08/2017,"1,378.43",73373-RESIDENTIAL & NURSING CARE PLACEMENTS,PD COMMISSIONING,Third Party Payments,Revenue
Walsall Council,http://opendatacommunities.org/id/metropolitan-district-council/walsall,WC83-562,31/08/2017,Adult Social Care,BRIDGEWOOD HEALTH CARE LTD,21/08/2017,"2,363.03",73373-RESIDENTIAL & NURSING CARE PLACEMENTS,PD COMMISSIONING,Third Party Payments,Revenue
Walsall Council,http://opendatacommunities.org/id/metropolitan-district-council/walsall,WC83-563,31/08/2017,Adult Social Care,BRIDGEWOOD HEALTH CARE LTD,21/08/2017,"3,150.69",73373-RESIDENTIAL & NURSING CARE PLACEMENTS,PD COMMISSIONING,Third Party Payments,Revenue
Walsall Council,http://opendatacommunities.org/id/metropolitan-district-council/walsall,WC83-564,31/08/2017,Adult Social Care,BRIDGEWOOD HEALTH CARE LTD,21/08/2017,"5,513.72",73373-RESIDENTIAL & NURSING CARE PLACEMENTS,PD COMMISSIONING,Third Party Payments,Revenue
Walsall Council,http://opendatacommunities.org/id/metropolitan-district-council/walsall,WC83-565,31/08/2017,Adult Social Care,BRIDGEWOOD HEALTH CARE LTD,21/08/2017,"5,513.72",73373-RESIDENTIAL & NURSING CARE PLACEMENTS,PD COMMISSIONING,Third Party Payments,Revenue
Walsall Council,http://opendatacommunities.org/id/metropolitan-district-council/walsall,WC83-566,31/08/2017,Adult Social Care,BRIDGEWOOD HEALTH CARE LTD,21/08/2017,"5,513.72",73373-RESIDENTIAL & NURSING CARE PLACEMENTS,PD COMMISSIONING,Third Party Payments,Revenue
Walsall Council,http://opendatacommunities.org/id/metropolitan-district-council/walsall,WC83-567,31/08/2017,Adult Social Care,BRIDGEWOOD HEALTH CARE LTD,21/08/2017,"5,513.72",73373-RESIDENTIAL & NURSING CARE PLACEMENTS,PD COMMISSIONING,Third Party Payments,Revenue
Walsall Council,http://opendatacommunities.org/id/metropolitan-district-council/walsall,WC83-568,31/08/2017,Change and Governance,BRISTOL OILSKIN & OVERALL CO,04/08/2017,696.6,60006-NEW-FURNITURE & EQUIPMENT,SCHOOL CROSSING PATROL ADMIN,Supplies & Services,Revenue
Walsall Council,http://opendatacommunities.org/id/metropolitan-district-council/walsall,WC83-569,31/08/2017,Change and Governance,BRISTOW & SUTOR,24/08/2017,313.95,73014-LEGAL FEES-PRIV CONTRACTOR FEES,REVENUES,Third Party Payments,Revenue
Walsall Council,http://opendatacommunities.org/id/metropolitan-district-council/walsall,WC83-570,31/08/2017,Change and Governance,BRISTOW & SUTOR,23/08/2017,419.16,73014-LEGAL FEES-PRIV CONTRACTOR FEES,REVENUES,Third Party Payments,Revenue
Walsall Council,http://opendatacommunities.org/id/metropolitan-district-council/walsall,WC83-571,31/08/2017,Economy & Environment,BRITANNIA APPRENTICESHIPS LTD,15/08/2017,"1,500.00",66500-GRANTS TO OTHER ORGS,RES-WALSALL WORKS,Third Party Payments,Revenue
Walsall Council,http://opendatacommunities.org/id/metropolitan-district-council/walsall,WC83-572,31/08/2017,Economy & Environment,BRITANNIA APPRENTICESHIPS LTD,22/08/2017,"3,673.80",63000-PROFESSIONAL FEES AND SERVICES,YEI ESF FUNDING,Supplies & Services,Revenue
Walsall Council,http://opendatacommunities.org/id/metropolitan-district-council/walsall,WC83-573,31/08/2017,Economy & Environment,BRITANNIA APPRENTICESHIPS LTD,22/08/2017,"3,673.86",63000-PROFESSIONAL FEES AND SERVICES,YEI (IMPACT) PROGRAMME,Supplies & Services,Revenue
Walsall Council,http://opendatacommunities.org/id/metropolitan-district-council/walsall,WC83-574,31/08/2017,Change and Governance,BRITISH TELECOMMUNICATIONS LTD,09/08/2017,712,63603-COST OF CALLS-TELEPHONES,PROCESSING,Supplies & Services,Revenue
Walsall Council,http://opendatacommunities.org/id/metropolitan-district-council/walsall,WC83-575,31/08/2017,Economy & Environment,BRITISH TELECOMMUNICATIONS LTD,01/08/2017,"299,951.96",01002-PROJECT FEES,CFR 1228 A461 NATIONAL PRODUCTIVITY INVESTMENT FUND (NPIF),Capital,Capital
Walsall Council,http://opendatacommunities.org/id/metropolitan-district-council/walsall,WC83-576,31/08/2017,Childrens,BROADLAND GROUP LTD,17/08/2017,880,01006-SITE WORKS MAIN CONTRACTORS,CFR 1193 VARIOUS - KITCHEN VENTILATION UPGRADES,Capital,Capital
Walsall Council,http://opendatacommunities.org/id/metropolitan-district-council/walsall,WC83-577,31/08/2017,Adult Social Care,BROADREACH HOUSE,21/08/2017,908.57,73373-RESIDENTIAL & NURSING CARE PLACEMENTS,SUBSTANCE MISUSE,Third Party Payments,Revenue
Walsall Council,http://opendatacommunities.org/id/metropolitan-district-council/walsall,WC83-578,31/08/2017,Economy & Environment,BROADREACH HOUSE,29/08/2017,"4,170.00",63253-PAYMENT TO CONTRACTOR,ALCOHOL RESIDENTIAL DETOX,Third Party Payments,Revenue
Walsall Council,http://opendatacommunities.org/id/metropolitan-district-council/walsall,WC83-579,31/08/2017,Adult Social Care,BROADWAY HALLS CARE HOME,11/08/2017,"1,157.14",73373-RESIDENTIAL & NURSING CARE PLACEMENTS,OP COMMISSIONING,Third Party Payments,Revenue
Walsall Council,http://opendatacommunities.org/id/metropolitan-district-council/walsall,WC83-580,31/08/2017,Adult Social Care,BROADWAY HALLS CARE HOME,11/08/2017,"1,928.57",73373-RESIDENTIAL & NURSING CARE PLACEMENTS,OP COMMISSIONING,Third Party Payments,Revenue
Walsall Council,http://opendatacommunities.org/id/metropolitan-district-council/walsall,WC83-581,31/08/2017,Adult Social Care,BROADWAY HALLS CARE HOME,11/08/2017,"1,992.86",73373-RESIDENTIAL & NURSING CARE PLACEMENTS,OP COMMISSIONING,Third Party Payments,Revenue
Walsall Council,http://opendatacommunities.org/id/metropolitan-district-council/walsall,WC83-582,31/08/2017,Adult Social Care,BROADWAY HALLS CARE HOME,14/08/2017,"1,992.86",73373-RESIDENTIAL & NURSING CARE PLACEMENTS,OP COMMISSIONING,Third Party Payments,Revenue
Walsall Council,http://opendatacommunities.org/id/metropolitan-district-council/walsall,WC83-583,31/08/2017,Economy & Environment,BROWNHILLS ASPHALT & TARMAC LIMITED,15/08/2017,425,60006-NEW-FURNITURE & EQUIPMENT,HWRC,Supplies & Services,Revenue
Walsall Council,http://opendatacommunities.org/id/metropolitan-district-council/walsall,WC83-584,31/08/2017,Economy & Environment,BROWNHILLS ASPHALT & TARMAC LIMITED,01/08/2017,"1,442.00",60006-NEW-FURNITURE & EQUIPMENT,INFRASTRUCTURE MAINTENANCE,Supplies & Services,Revenue
Walsall Council,http://opendatacommunities.org/id/metropolitan-district-council/walsall,WC83-585,31/08/2017,Childrens,BROWNHILLS ASPHALT & TARMAC LIMITED,25/08/2017,"1,960.00",01006-SITE WORKS MAIN CONTRACTORS,CFR 1193 SALISBURY PRIMARY - CORRIDOR FLOOR REPLACEMENT,Capital,Capital
Walsall Council,http://opendatacommunities.org/id/metropolitan-district-council/walsall,WC83-586,31/08/2017,Childrens,BROWNHILLS ASPHALT & TARMAC LIMITED,04/08/2017,"2,450.00",01006-SITE WORKS MAIN CONTRACTORS,CFR 1193 SALISBURY PRIMARY - CORRIDOR FLOOR REPLACEMENT,Capital,Capital
Walsall Council,http://opendatacommunities.org/id/metropolitan-district-council/walsall,WC83-587,31/08/2017,Childrens,BROWNHILLS ASPHALT & TARMAC LIMITED,10/08/2017,"2,484.00",01006-SITE WORKS MAIN CONTRACTORS,CFR 1193 SALISBURY PRIMARY - CORRIDOR FLOOR REPLACEMENT,Capital,Capital
Walsall Council,http://opendatacommunities.org/id/metropolitan-district-council/walsall,WC83-588,31/08/2017,Economy & Environment,BROWNHILLS ASPHALT & TARMAC LIMITED,10/08/2017,"3,125.00","40000-REPAIRS,ALTERATIONS & MAINTENANCE-PREM",RETAINED HOUSING-HIGHWAYS,Premises,Revenue
Walsall Council,http://opendatacommunities.org/id/metropolitan-district-council/walsall,WC83-589,31/08/2017,Childrens,BROWNHILLS ASPHALT & TARMAC LIMITED,04/08/2017,"4,820.00",01006-SITE WORKS MAIN CONTRACTORS,CFR 1193 SALISBURY PRIMARY - CORRIDOR FLOOR REPLACEMENT,Capital,Capital
Walsall Council,http://opendatacommunities.org/id/metropolitan-district-council/walsall,WC83-590,31/08/2017,Childrens,BROWNHILLS ASPHALT & TARMAC LIMITED,30/08/2017,"19,720.00",01006-SITE WORKS MAIN CONTRACTORS,CFR 1193 LINDENS PRIMARY ROOFING & ASPHALT WORKS - FINAL STAGE,Capital,Capital
Walsall Council,http://opendatacommunities.org/id/metropolitan-district-council/walsall,WC83-591,31/08/2017,Childrens,BROWNHILLS ASPHALT & TARMAC LIMITED,04/08/2017,"20,000.00",01006-SITE WORKS MAIN CONTRACTORS,CFR 1193 LINDENS PRIMARY ROOFING & ASPHALT WORKS - FINAL STAGE,Capital,Capital
Walsall Council,http://opendatacommunities.org/id/metropolitan-district-council/walsall,WC83-592,31/08/2017,Childrens,BROWNHILLS ASPHALT & TARMAC LIMITED,10/08/2017,"20,000.00",01006-SITE WORKS MAIN CONTRACTORS,CFR 1193 LINDENS PRIMARY ROOFING & ASPHALT WORKS - FINAL STAGE,Capital,Capital
Walsall Council,http://opendatacommunities.org/id/metropolitan-district-council/walsall,WC83-593,31/08/2017,Childrens,BROWNHILLS ASPHALT & TARMAC LIMITED,30/08/2017,"21,758.00",01006-SITE WORKS MAIN CONTRACTORS,CFR 1193 SALISBURY PRIMARY - CORRIDOR FLOOR REPLACEMENT,Capital,Capital
Walsall Council,http://opendatacommunities.org/id/metropolitan-district-council/walsall,WC83-594,31/08/2017,Adult Social Care,REDACTED,07/08/2017,"1,530.00",76422-DIRECT PAYMENTS TO SOCIAL SERVICES CLIENTS,LD COMMISSIONING,Transfer Payments,Revenue
Walsall Council,http://opendatacommunities.org/id/metropolitan-district-council/walsall,WC83-595,31/08/2017,Change and Governance,REDACTED,16/08/2017,300,"40000-REPAIRS,ALTERATIONS & MAINTENANCE-PREM",WALSALL TOWN HALL,Premises,Revenue
Walsall Council,http://opendatacommunities.org/id/metropolitan-district-council/walsall,WC83-596,31/08/2017,Change and Governance,REDACTED,02/08/2017,400,"40000-REPAIRS,ALTERATIONS & MAINTENANCE-PREM",WALSALL TOWN HALL,Premises,Revenue
Walsall Council,http://opendatacommunities.org/id/metropolitan-district-council/walsall,WC83-597,31/08/2017,Economy & Environment,REDACTED,01/08/2017,"2,081.25",73025-PROFESSIONAL SERVICES-PRIV CONTRACTOR & OTHER AGENCIES,BLOXWICH LIBRARY,Third Party Payments,Revenue
Walsall Council,http://opendatacommunities.org/id/metropolitan-district-council/walsall,WC83-598,31/08/2017,Childrens,REDACTED,14/08/2017,"18,768.00",74036-EXTERNAL RESIDENTIAL CARE-OTH AGENCY PROVISION,INDEPENDENT RESIDENTIAL HOMES,Third Party Payments,Revenue
Walsall Council,http://opendatacommunities.org/id/metropolitan-district-council/walsall,WC83-599,31/08/2017,Childrens,BT PLC,24/08/2017,403.25,63603-COST OF CALLS-TELEPHONES,LOCALITY FAMILY SUPPORT-WEST,Supplies & Services,Revenue
Walsall Council,http://opendatacommunities.org/id/metropolitan-district-council/walsall,WC83-600,31/08/2017,Change and Governance,BT PLC,11/08/2017,"1,268.35",63601-COSTS (NOT INTERNAL RECHARGES)-TELEPHONES,RECHARGEABLE EQUIPMENT,Supplies & Services,Revenue
Walsall Council,http://opendatacommunities.org/id/metropolitan-district-council/walsall,WC83-601,31/08/2017,Change and Governance,BT PLC,03/08/2017,"1,413.05",63800-COMPUTER EQUIPMENT AND SUPPLIES,RECHARGEABLE EQUIPMENT,Supplies & Services,Revenue
Walsall Council,http://opendatacommunities.org/id/metropolitan-district-council/walsall,WC83-602,31/08/2017,Economy & Environment,BT PLC,14/08/2017,"9,222.00",63601-COSTS (NOT INTERNAL RECHARGES)-TELEPHONES,TRAFFIC CONTROL,Supplies & Services,Revenue
Walsall Council,http://opendatacommunities.org/id/metropolitan-district-council/walsall,WC83-603,31/08/2017,Change and Governance,BUDDI LIMITED,17/08/2017,"5,400.00",60008-MAINTENANCE-FURNITURE & EQUIPMENT,PCC PROBATION (BUDDI GPS),Supplies & Services,Revenue
Walsall Council,http://opendatacommunities.org/id/metropolitan-district-council/walsall,WC83-604,31/08/2017,Childrens,BUMBLE BEEZZZ DAY NURSERY,30/08/2017,600,63120-CRECHE FACILITIES-SERVICES-FEES,ADOPTION TEAM,Supplies & Services,Revenue
Walsall Council,http://opendatacommunities.org/id/metropolitan-district-council/walsall,WC83-605,31/08/2017,Adult Social Care,BUNZIL HEALTHCARE T/A CARESHOP,02/08/2017,-801.38,60539-CLEANING MATERIALS,REABLEMENT TEAM - HOLLY BANK,Supplies & Services,Revenue
Walsall Council,http://opendatacommunities.org/id/metropolitan-district-council/walsall,WC83-606,31/08/2017,Adult Social Care,BUNZIL HEALTHCARE T/A CARESHOP,09/08/2017,-801.38,60539-CLEANING MATERIALS,REABLEMENT TEAM - HOLLY BANK,Supplies & Services,Revenue
Walsall Council,http://opendatacommunities.org/id/metropolitan-district-council/walsall,WC83-607,31/08/2017,Adult Social Care,BUNZIL HEALTHCARE T/A CARESHOP,17/08/2017,482.85,60539-CLEANING MATERIALS,COMMUNITY INTERMEDIATE CARE,Supplies & Services,Revenue
Walsall Council,http://opendatacommunities.org/id/metropolitan-district-council/walsall,WC83-608,31/08/2017,Adult Social Care,BUNZIL HEALTHCARE T/A CARESHOP,03/08/2017,487.14,60539-CLEANING MATERIALS,REABLEMENT TEAM - HOLLY BANK,Supplies & Services,Revenue
Walsall Council,http://opendatacommunities.org/id/metropolitan-district-council/walsall,WC83-609,31/08/2017,Adult Social Care,BUNZIL HEALTHCARE T/A CARESHOP,01/08/2017,801.38,60539-CLEANING MATERIALS,REABLEMENT TEAM - HOLLY BANK,Supplies & Services,Revenue
Walsall Council,http://opendatacommunities.org/id/metropolitan-district-council/walsall,WC83-610,31/08/2017,Adult Social Care,BUNZIL HEALTHCARE T/A CARESHOP,17/08/2017,801.38,60539-CLEANING MATERIALS,REABLEMENT TEAM - HOLLY BANK,Supplies & Services,Revenue
Walsall Council,http://opendatacommunities.org/id/metropolitan-district-council/walsall,WC83-611,31/08/2017,Adult Social Care,BUNZIL HEALTHCARE T/A CARESHOP,08/08/2017,823.16,60539-CLEANING MATERIALS,REABLEMENT TEAM - HOLLY BANK,Supplies & Services,Revenue
Walsall Council,http://opendatacommunities.org/id/metropolitan-district-council/walsall,WC83-612,31/08/2017,Adult Social Care,BUPA CARE HOMES (CFHCARE) LTD,08/08/2017,858.84,73373-RESIDENTIAL & NURSING CARE PLACEMENTS,OP COMMISSIONING,Third Party Payments,Revenue
Walsall Council,http://opendatacommunities.org/id/metropolitan-district-council/walsall,WC83-613,31/08/2017,Adult Social Care,BUPA CARE HOMES (CFHCARE) LTD,08/08/2017,"1,849.80",73373-RESIDENTIAL & NURSING CARE PLACEMENTS,OP COMMISSIONING,Third Party Payments,Revenue
Walsall Council,http://opendatacommunities.org/id/metropolitan-district-council/walsall,WC83-614,31/08/2017,Adult Social Care,BUPA CARE HOMES (CFHCARE) LTD,08/08/2017,"1,849.80",73373-RESIDENTIAL & NURSING CARE PLACEMENTS,OP COMMISSIONING,Third Party Payments,Revenue
Walsall Council,http://opendatacommunities.org/id/metropolitan-district-council/walsall,WC83-615,31/08/2017,Adult Social Care,BUPA CARE HOMES (CFHCARE) LTD,08/08/2017,"1,849.80",73373-RESIDENTIAL & NURSING CARE PLACEMENTS,OP COMMISSIONING,Third Party Payments,Revenue
Walsall Council,http://opendatacommunities.org/id/metropolitan-district-council/walsall,WC83-616,31/08/2017,Adult Social Care,BUPA CARE HOMES (CFHCARE) LTD,08/08/2017,"1,849.80",73373-RESIDENTIAL & NURSING CARE PLACEMENTS,OP COMMISSIONING,Third Party Payments,Revenue
Walsall Council,http://opendatacommunities.org/id/metropolitan-district-council/walsall,WC83-617,31/08/2017,Adult Social Care,BUPA CARE HOMES (CFHCARE) LTD,14/08/2017,"1,849.80",73373-RESIDENTIAL & NURSING CARE PLACEMENTS,OP COMMISSIONING,Third Party Payments,Revenue
Walsall Council,http://opendatacommunities.org/id/metropolitan-district-council/walsall,WC83-618,31/08/2017,Adult Social Care,BUPA CARE HOMES (CFHCARE) LTD,14/08/2017,"2,001.24",73373-RESIDENTIAL & NURSING CARE PLACEMENTS,OP COMMISSIONING,Third Party Payments,Revenue
Walsall Council,http://opendatacommunities.org/id/metropolitan-district-council/walsall,WC83-619,31/08/2017,Adult Social Care,BUPA CARE HOMES (CFHCARE) LTD,14/08/2017,"3,380.20",73373-RESIDENTIAL & NURSING CARE PLACEMENTS,OP COMMISSIONING,Third Party Payments,Revenue
Walsall Council,http://opendatacommunities.org/id/metropolitan-district-council/walsall,WC83-620,31/08/2017,Adult Social Care,BUPA NURSING HOMES-ANVILLE CT,14/08/2017,"3,321.43",73373-RESIDENTIAL & NURSING CARE PLACEMENTS,MH COMMISSIONING,Third Party Payments,Revenue
Walsall Council,http://opendatacommunities.org/id/metropolitan-district-council/walsall,WC83-621,31/08/2017,Adult Social Care,BUSH HOME LTD,14/08/2017,900,73373-RESIDENTIAL & NURSING CARE PLACEMENTS,OP COMMISSIONING,Third Party Payments,Revenue
Walsall Council,http://opendatacommunities.org/id/metropolitan-district-council/walsall,WC83-622,31/08/2017,Adult Social Care,BUSH HOME LTD,08/08/2017,"1,414.29",73373-RESIDENTIAL & NURSING CARE PLACEMENTS,OP COMMISSIONING,Third Party Payments,Revenue
Walsall Council,http://opendatacommunities.org/id/metropolitan-district-council/walsall,WC83-623,31/08/2017,Adult Social Care,BUSH HOME LTD,02/08/2017,"1,620.00",73373-RESIDENTIAL & NURSING CARE PLACEMENTS,OP COMMISSIONING,Third Party Payments,Revenue
Walsall Council,http://opendatacommunities.org/id/metropolitan-district-council/walsall,WC83-624,31/08/2017,Adult Social Care,BUSH HOME LTD,02/08/2017,"1,620.00",73373-RESIDENTIAL & NURSING CARE PLACEMENTS,OP COMMISSIONING,Third Party Payments,Revenue
Walsall Council,http://opendatacommunities.org/id/metropolitan-district-council/walsall,WC83-625,31/08/2017,Adult Social Care,BUSH HOME LTD,02/08/2017,"1,620.00",73373-RESIDENTIAL & NURSING CARE PLACEMENTS,OP COMMISSIONING,Third Party Payments,Revenue
Walsall Council,http://opendatacommunities.org/id/metropolitan-district-council/walsall,WC83-626,31/08/2017,Adult Social Care,BUSH HOME LTD,08/08/2017,"1,620.00",73373-RESIDENTIAL & NURSING CARE PLACEMENTS,OP COMMISSIONING,Third Party Payments,Revenue
Walsall Council,http://opendatacommunities.org/id/metropolitan-district-council/walsall,WC83-627,31/08/2017,Adult Social Care,BUSH HOME LTD,08/08/2017,"1,620.00",73373-RESIDENTIAL & NURSING CARE PLACEMENTS,OP COMMISSIONING,Third Party Payments,Revenue
Walsall Council,http://opendatacommunities.org/id/metropolitan-district-council/walsall,WC83-628,31/08/2017,Adult Social Care,BUSH HOME LTD,08/08/2017,"1,620.00",73373-RESIDENTIAL & NURSING CARE PLACEMENTS,OP COMMISSIONING,Third Party Payments,Revenue
Walsall Council,http://opendatacommunities.org/id/metropolitan-district-council/walsall,WC83-629,31/08/2017,Adult Social Care,BUSH HOME LTD,08/08/2017,"1,620.00",73373-RESIDENTIAL & NURSING CARE PLACEMENTS,OP COMMISSIONING,Third Party Payments,Revenue
Walsall Council,http://opendatacommunities.org/id/metropolitan-district-council/walsall,WC83-630,31/08/2017,Adult Social Care,BUSH HOME LTD,08/08/2017,"1,620.00",73373-RESIDENTIAL & NURSING CARE PLACEMENTS,OP COMMISSIONING,Third Party Payments,Revenue
Walsall Council,http://opendatacommunities.org/id/metropolitan-district-council/walsall,WC83-631,31/08/2017,Adult Social Care,BUSH HOME LTD,02/08/2017,"1,800.00",73373-RESIDENTIAL & NURSING CARE PLACEMENTS,OP COMMISSIONING,Third Party Payments,Revenue
Walsall Council,http://opendatacommunities.org/id/metropolitan-district-council/walsall,WC83-632,31/08/2017,Adult Social Care,BUSH HOME LTD,02/08/2017,"1,800.00",73373-RESIDENTIAL & NURSING CARE PLACEMENTS,OP COMMISSIONING,Third Party Payments,Revenue
Walsall Council,http://opendatacommunities.org/id/metropolitan-district-council/walsall,WC83-633,31/08/2017,Adult Social Care,BUSH HOME LTD,02/08/2017,"1,800.00",73373-RESIDENTIAL & NURSING CARE PLACEMENTS,OP COMMISSIONING,Third Party Payments,Revenue
Walsall Council,http://opendatacommunities.org/id/metropolitan-district-council/walsall,WC83-634,31/08/2017,Adult Social Care,BUSH HOME LTD,02/08/2017,"1,800.00",73373-RESIDENTIAL & NURSING CARE PLACEMENTS,OP COMMISSIONING,Third Party Payments,Revenue
Walsall Council,http://opendatacommunities.org/id/metropolitan-district-council/walsall,WC83-635,31/08/2017,Adult Social Care,BUSH HOME LTD,02/08/2017,"1,800.00",73373-RESIDENTIAL & NURSING CARE PLACEMENTS,OP COMMISSIONING,Third Party Payments,Revenue
Walsall Council,http://opendatacommunities.org/id/metropolitan-district-council/walsall,WC83-636,31/08/2017,Adult Social Care,BUSH HOME LTD,08/08/2017,"1,800.00",73373-RESIDENTIAL & NURSING CARE PLACEMENTS,OP COMMISSIONING,Third Party Payments,Revenue
Walsall Council,http://opendatacommunities.org/id/metropolitan-district-council/walsall,WC83-637,31/08/2017,Adult Social Care,BUSH HOME LTD,08/08/2017,"1,800.34",73373-RESIDENTIAL & NURSING CARE PLACEMENTS,MH COMMISSIONING,Third Party Payments,Revenue
Walsall Council,http://opendatacommunities.org/id/metropolitan-district-council/walsall,WC83-638,31/08/2017,Adult Social Care,BUSH HOME LTD,29/08/2017,"3,962.38",73373-RESIDENTIAL & NURSING CARE PLACEMENTS,PD COMMISSIONING,Third Party Payments,Revenue
Walsall Council,http://opendatacommunities.org/id/metropolitan-district-council/walsall,WC83-639,31/08/2017,Change and Governance,BUSINESS FORUMS INTERNATIONAL LTD,11/08/2017,395,30030-EXTERNAL TRAINING,BUSINESS IMPROVEMENT SERVICE,Employees,Revenue
Walsall Council,http://opendatacommunities.org/id/metropolitan-district-council/walsall,WC83-640,31/08/2017,Childrens,BY THE BRIDGE,14/08/2017,"2,846.20",74037-INDEPENDENT FOSTER CARE-OTH AGENCY PROVISION,EXTERNAL FOSTER CARE PROVISION,Third Party Payments,Revenue
Walsall Council,http://opendatacommunities.org/id/metropolitan-district-council/walsall,WC83-641,31/08/2017,Childrens,BY THE BRIDGE,14/08/2017,"2,976.00",74037-INDEPENDENT FOSTER CARE-OTH AGENCY PROVISION,EXTERNAL FOSTER CARE PROVISION,Third Party Payments,Revenue
Walsall Council,http://opendatacommunities.org/id/metropolitan-district-council/walsall,WC83-642,31/08/2017,Adult Social Care,C & V ORCHARD MANOR LTD,02/08/2017,"1,620.00",73373-RESIDENTIAL & NURSING CARE PLACEMENTS,LD COMMISSIONING,Third Party Payments,Revenue
Walsall Council,http://opendatacommunities.org/id/metropolitan-district-council/walsall,WC83-643,31/08/2017,Adult Social Care,C & V ORCHARD MANOR LTD,02/08/2017,"1,620.00",73373-RESIDENTIAL & NURSING CARE PLACEMENTS,OP COMMISSIONING,Third Party Payments,Revenue
Walsall Council,http://opendatacommunities.org/id/metropolitan-district-council/walsall,WC83-644,31/08/2017,Adult Social Care,C & V ORCHARD MANOR LTD,02/08/2017,"1,620.00",73373-RESIDENTIAL & NURSING CARE PLACEMENTS,OP COMMISSIONING,Third Party Payments,Revenue
Walsall Council,http://opendatacommunities.org/id/metropolitan-district-council/walsall,WC83-645,31/08/2017,Adult Social Care,C & V ORCHARD MANOR LTD,02/08/2017,"1,620.00",73373-RESIDENTIAL & NURSING CARE PLACEMENTS,MH COMMISSIONING,Third Party Payments,Revenue
Walsall Council,http://opendatacommunities.org/id/metropolitan-district-council/walsall,WC83-646,31/08/2017,Adult Social Care,C & V ORCHARD MANOR LTD,02/08/2017,"1,620.00",73373-RESIDENTIAL & NURSING CARE PLACEMENTS,MH COMMISSIONING,Third Party Payments,Revenue
Walsall Council,http://opendatacommunities.org/id/metropolitan-district-council/walsall,WC83-647,31/08/2017,Adult Social Care,C & V ORCHARD MANOR LTD,02/08/2017,"1,620.00",73373-RESIDENTIAL & NURSING CARE PLACEMENTS,MH COMMISSIONING,Third Party Payments,Revenue
Walsall Council,http://opendatacommunities.org/id/metropolitan-district-council/walsall,WC83-648,31/08/2017,Adult Social Care,C & V ORCHARD MANOR LTD,02/08/2017,"1,800.00",73373-RESIDENTIAL & NURSING CARE PLACEMENTS,OP COMMISSIONING,Third Party Payments,Revenue
Walsall Council,http://opendatacommunities.org/id/metropolitan-district-council/walsall,WC83-649,31/08/2017,Adult Social Care,C & V ORCHARD MANOR LTD,02/08/2017,"1,800.00",73373-RESIDENTIAL & NURSING CARE PLACEMENTS,OP COMMISSIONING,Third Party Payments,Revenue
Walsall Council,http://opendatacommunities.org/id/metropolitan-district-council/walsall,WC83-650,31/08/2017,Adult Social Care,C & V ORCHARD MANOR LTD,02/08/2017,"1,800.00",73373-RESIDENTIAL & NURSING CARE PLACEMENTS,MH COMMISSIONING,Third Party Payments,Revenue
Walsall Council,http://opendatacommunities.org/id/metropolitan-district-council/walsall,WC83-651,31/08/2017,Adult Social Care,C & V ORCHARD MANOR LTD,02/08/2017,"1,800.00",73373-RESIDENTIAL & NURSING CARE PLACEMENTS,MH COMMISSIONING,Third Party Payments,Revenue
Walsall Council,http://opendatacommunities.org/id/metropolitan-district-council/walsall,WC83-652,31/08/2017,Adult Social Care,C & V ORCHARD MANOR LTD,02/08/2017,"1,800.00",73373-RESIDENTIAL & NURSING CARE PLACEMENTS,OP COMMISSIONING,Third Party Payments,Revenue
Walsall Council,http://opendatacommunities.org/id/metropolitan-district-council/walsall,WC83-653,31/08/2017,Adult Social Care,C & V ORCHARD MANOR LTD,02/08/2017,"1,800.00",73373-RESIDENTIAL & NURSING CARE PLACEMENTS,OP COMMISSIONING,Third Party Payments,Revenue
Walsall Council,http://opendatacommunities.org/id/metropolitan-district-council/walsall,WC83-654,31/08/2017,Adult Social Care,C & V ORCHARD MANOR LTD,02/08/2017,"1,800.00",73373-RESIDENTIAL & NURSING CARE PLACEMENTS,OP COMMISSIONING,Third Party Payments,Revenue
Walsall Council,http://opendatacommunities.org/id/metropolitan-district-council/walsall,WC83-655,31/08/2017,Adult Social Care,C & V ORCHARD MANOR LTD,02/08/2017,"1,800.00",73373-RESIDENTIAL & NURSING CARE PLACEMENTS,OP COMMISSIONING,Third Party Payments,Revenue
Walsall Council,http://opendatacommunities.org/id/metropolitan-district-council/walsall,WC83-656,31/08/2017,Adult Social Care,C & V ORCHARD RESIDENTIAL LTD,02/08/2017,"1,800.00",73373-RESIDENTIAL & NURSING CARE PLACEMENTS,OP COMMISSIONING,Third Party Payments,Revenue
Walsall Council,http://opendatacommunities.org/id/metropolitan-district-council/walsall,WC83-657,31/08/2017,Economy & Environment,C ART ART TRANSPORT LTD,14/08/2017,373,73032-TRANSPORTATION-PRIV CONTRACTOR FEES,NAG - TEMPORARY EXHIBITIONS,Third Party Payments,Revenue
Walsall Council,http://opendatacommunities.org/id/metropolitan-district-council/walsall,WC83-658,31/08/2017,Economy & Environment,C ART ART TRANSPORT LTD,07/08/2017,395,73032-TRANSPORTATION-PRIV CONTRACTOR FEES,NAG - TEMPORARY EXHIBITIONS,Third Party Payments,Revenue
Walsall Council,http://opendatacommunities.org/id/metropolitan-district-council/walsall,WC83-659,31/08/2017,Economy & Environment,C ART ART TRANSPORT LTD,25/08/2017,"1,321.00",73032-TRANSPORTATION-PRIV CONTRACTOR FEES,NAG - TEMPORARY EXHIBITIONS,Third Party Payments,Revenue
Walsall Council,http://opendatacommunities.org/id/metropolitan-district-council/walsall,WC83-660,31/08/2017,Childrens,REDACTED,14/08/2017,9.24,60006-NEW-FURNITURE & EQUIPMENT,INTERNAL FOSTER CARE PROVISION,Supplies & Services,Revenue
Walsall Council,http://opendatacommunities.org/id/metropolitan-district-council/walsall,WC83-661,31/08/2017,Childrens,REDACTED,14/08/2017,142.8,74506-TRAVEL-FOSTER CARERS,INTERNAL FOSTER CARE PROVISION,Transfer Payments,Revenue
Walsall Council,http://opendatacommunities.org/id/metropolitan-district-council/walsall,WC83-662,31/08/2017,Childrens,REDACTED,14/08/2017,175,74505-SCHOOL UNIFORM/INITIAL TRAINING ALLOWANCE-FOSTER CARERS,INTERNAL FOSTER CARE PROVISION,Transfer Payments,Revenue
Walsall Council,http://opendatacommunities.org/id/metropolitan-district-council/walsall,WC83-663,31/08/2017,Childrens,REDACTED,14/08/2017,810.32,74501-MAINTENANCE ALLOWANCE-FOSTER CARERS,INTERNAL FOSTER CARE PROVISION,Transfer Payments,Revenue
Walsall Council,http://opendatacommunities.org/id/metropolitan-district-council/walsall,WC83-664,31/08/2017,Childrens,REDACTED,14/08/2017,810.32,74501-MAINTENANCE ALLOWANCE-FOSTER CARERS,INTERNAL FOSTER CARE PROVISION,Transfer Payments,Revenue
Walsall Council,http://opendatacommunities.org/id/metropolitan-district-council/walsall,WC83-665,31/08/2017,Childrens,REDACTED,14/08/2017,810.32,74501-MAINTENANCE ALLOWANCE-FOSTER CARERS,INTERNAL FOSTER CARE PROVISION,Transfer Payments,Revenue
Walsall Council,http://opendatacommunities.org/id/metropolitan-district-council/walsall,WC83-666,31/08/2017,Childrens,REDACTED,14/08/2017,810.32,74501-MAINTENANCE ALLOWANCE-FOSTER CARERS,INTERNAL FOSTER CARE PROVISION,Transfer Payments,Revenue
Walsall Council,http://opendatacommunities.org/id/metropolitan-district-council/walsall,WC83-667,31/08/2017,Childrens,REDACTED,14/08/2017,985.76,74501-MAINTENANCE ALLOWANCE-FOSTER CARERS,INTERNAL FOSTER CARE PROVISION,Transfer Payments,Revenue
Walsall Council,http://opendatacommunities.org/id/metropolitan-district-council/walsall,WC83-668,31/08/2017,Childrens,REDACTED,14/08/2017,985.76,74501-MAINTENANCE ALLOWANCE-FOSTER CARERS,INTERNAL FOSTER CARE PROVISION,Transfer Payments,Revenue
Walsall Council,http://opendatacommunities.org/id/metropolitan-district-council/walsall,WC83-669,31/08/2017,Childrens,REDACTED,14/08/2017,"4,308.40",74508-INTERNAL FOSTER CARERS-CARER FEES,INTERNAL FOSTER CARE PROVISION,Transfer Payments,Revenue
Walsall Council,http://opendatacommunities.org/id/metropolitan-district-council/walsall,WC83-670,31/08/2017,Childrens,REDACTED,14/08/2017,9.24,60006-NEW-FURNITURE & EQUIPMENT,INTERNAL FOSTER CARE PROVISION,Supplies & Services,Revenue
Walsall Council,http://opendatacommunities.org/id/metropolitan-district-council/walsall,WC83-671,31/08/2017,Childrens,REDACTED,14/08/2017,810.32,74501-MAINTENANCE ALLOWANCE-FOSTER CARERS,INTERNAL FOSTER CARE PROVISION,Transfer Payments,Revenue
Walsall Council,http://opendatacommunities.org/id/metropolitan-district-council/walsall,WC83-672,31/08/2017,Childrens,REDACTED,14/08/2017,810.32,74501-MAINTENANCE ALLOWANCE-FOSTER CARERS,INTERNAL FOSTER CARE PROVISION,Transfer Payments,Revenue
Walsall Council,http://opendatacommunities.org/id/metropolitan-district-council/walsall,WC83-673,31/08/2017,Childrens,REDACTED,14/08/2017,"1,436.08",74508-INTERNAL FOSTER CARERS-CARER FEES,INTERNAL FOSTER CARE PROVISION,Transfer Payments,Revenue
Walsall Council,http://opendatacommunities.org/id/metropolitan-district-council/walsall,WC83-674,31/08/2017,Economy & Environment,C P DAVIDSON & SONS LTD,24/08/2017,-456.74,60500-GENERAL MATERIALS,FLEET,Supplies & Services,Revenue
Walsall Council,http://opendatacommunities.org/id/metropolitan-district-council/walsall,WC83-675,31/08/2017,Economy & Environment,C P DAVIDSON & SONS LTD,01/08/2017,225.66,73025-PROFESSIONAL SERVICES-PRIV CONTRACTOR & OTHER AGENCIES,FLEET,Third Party Payments,Revenue
Walsall Council,http://opendatacommunities.org/id/metropolitan-district-council/walsall,WC83-676,31/08/2017,Economy & Environment,C P DAVIDSON & SONS LTD,01/08/2017,456.74,60500-GENERAL MATERIALS,FLEET,Supplies & Services,Revenue
Walsall Council,http://opendatacommunities.org/id/metropolitan-district-council/walsall,WC83-677,31/08/2017,Economy & Environment,C P DAVIDSON & SONS LTD,01/08/2017,506.54,60514-MATERIALS TO STORES,FLEET PARTS STOCK ACCOUNT,Supplies & Services,Revenue
Walsall Council,http://opendatacommunities.org/id/metropolitan-district-council/walsall,WC83-678,31/08/2017,Childrens,REDACTED,01/08/2017,81.37,74503-BIRTHDAY ALLOWANCE-FOSTER CARERS,FAMILY & FRIENDS FOSTER CARE PROVISION,Transfer Payments,Revenue
Walsall Council,http://opendatacommunities.org/id/metropolitan-district-council/walsall,WC83-679,31/08/2017,Childrens,REDACTED,01/08/2017,81.37,74503-BIRTHDAY ALLOWANCE-FOSTER CARERS,FAMILY & FRIENDS FOSTER CARE PROVISION,Transfer Payments,Revenue
Walsall Council,http://opendatacommunities.org/id/metropolitan-district-council/walsall,WC83-680,31/08/2017,Childrens,REDACTED,01/08/2017,571.44,74501-MAINTENANCE ALLOWANCE-FOSTER CARERS,FAMILY & FRIENDS FOSTER CARE PROVISION,Transfer Payments,Revenue
Walsall Council,http://opendatacommunities.org/id/metropolitan-district-council/walsall,WC83-681,31/08/2017,Childrens,REDACTED,29/08/2017,636.72,74501-MAINTENANCE ALLOWANCE-FOSTER CARERS,FAMILY & FRIENDS FOSTER CARE PROVISION,Transfer Payments,Revenue
Walsall Council,http://opendatacommunities.org/id/metropolitan-district-council/walsall,WC83-682,31/08/2017,Childrens,REDACTED,01/08/2017,650.92,74501-MAINTENANCE ALLOWANCE-FOSTER CARERS,FAMILY & FRIENDS FOSTER CARE PROVISION,Transfer Payments,Revenue
Walsall Council,http://opendatacommunities.org/id/metropolitan-district-council/walsall,WC83-683,31/08/2017,Childrens,REDACTED,29/08/2017,650.92,74501-MAINTENANCE ALLOWANCE-FOSTER CARERS,FAMILY & FRIENDS FOSTER CARE PROVISION,Transfer Payments,Revenue
Walsall Council,http://opendatacommunities.org/id/metropolitan-district-council/walsall,WC83-684,31/08/2017,Economy & Environment,CADENT GAS LTD,30/08/2017,"19,894.00",01002-PROJECT FEES,CFR 1228 A461 NATIONAL PRODUCTIVITY INVESTMENT FUND (NPIF),Capital,Capital
Walsall Council,http://opendatacommunities.org/id/metropolitan-district-council/walsall,WC83-685,31/08/2017,Adult Social Care,CALDENE  REST HOME,21/08/2017,"1,656.00",73373-RESIDENTIAL & NURSING CARE PLACEMENTS,OP COMMISSIONING,Third Party Payments,Revenue
Walsall Council,http://opendatacommunities.org/id/metropolitan-district-council/walsall,WC83-686,31/08/2017,Adult Social Care,CALDMORE AREA HOUSING ASS LTD,11/08/2017,274.54,73374-SUPPORTED & OTHER ACCOMMODATION,MH COMMISSIONING,Third Party Payments,Revenue
Walsall Council,http://opendatacommunities.org/id/metropolitan-district-council/walsall,WC83-687,31/08/2017,Adult Social Care,CALDMORE AREA HOUSING ASS LTD,11/08/2017,275.54,73374-SUPPORTED & OTHER ACCOMMODATION,MH COMMISSIONING,Third Party Payments,Revenue
Walsall Council,http://opendatacommunities.org/id/metropolitan-district-council/walsall,WC83-688,31/08/2017,Adult Social Care,CALDMORE AREA HOUSING ASS LTD,11/08/2017,296.8,73374-SUPPORTED & OTHER ACCOMMODATION,MH COMMISSIONING,Third Party Payments,Revenue
Walsall Council,http://opendatacommunities.org/id/metropolitan-district-council/walsall,WC83-689,31/08/2017,Adult Social Care,CALDMORE AREA HOUSING ASS LTD,11/08/2017,793.36,73374-SUPPORTED & OTHER ACCOMMODATION,MH COMMISSIONING,Third Party Payments,Revenue
Walsall Council,http://opendatacommunities.org/id/metropolitan-district-council/walsall,WC83-690,31/08/2017,Adult Social Care,CALDMORE AREA HOUSING ASS LTD,11/08/2017,793.36,73374-SUPPORTED & OTHER ACCOMMODATION,MH COMMISSIONING,Third Party Payments,Revenue
Walsall Council,http://opendatacommunities.org/id/metropolitan-district-council/walsall,WC83-691,31/08/2017,Adult Social Care,CALDMORE AREA HOUSING ASS LTD,11/08/2017,793.36,73374-SUPPORTED & OTHER ACCOMMODATION,MH COMMISSIONING,Third Party Payments,Revenue
Walsall Council,http://opendatacommunities.org/id/metropolitan-district-council/walsall,WC83-692,31/08/2017,Adult Social Care,CALDMORE AREA HOUSING ASS LTD,29/08/2017,814.19,73373-RESIDENTIAL & NURSING CARE PLACEMENTS,MH COMMISSIONING,Third Party Payments,Revenue
Walsall Council,http://opendatacommunities.org/id/metropolitan-district-council/walsall,WC83-693,31/08/2017,Adult Social Care,CALDMORE AREA HOUSING ASS LTD,11/08/2017,953.92,73374-SUPPORTED & OTHER ACCOMMODATION,MH COMMISSIONING,Third Party Payments,Revenue
Walsall Council,http://opendatacommunities.org/id/metropolitan-district-council/walsall,WC83-694,31/08/2017,Adult Social Care,CALDMORE AREA HOUSING ASS LTD,25/08/2017,"1,227.84",73374-SUPPORTED & OTHER ACCOMMODATION,MH COMMISSIONING,Third Party Payments,Revenue
Walsall Council,http://opendatacommunities.org/id/metropolitan-district-council/walsall,WC83-695,31/08/2017,Adult Social Care,CALDMORE AREA HOUSING ASS LTD,25/08/2017,"1,227.85",73374-SUPPORTED & OTHER ACCOMMODATION,MH COMMISSIONING,Third Party Payments,Revenue
Walsall Council,http://opendatacommunities.org/id/metropolitan-district-council/walsall,WC83-696,31/08/2017,Adult Social Care,CALDMORE AREA HOUSING ASS LTD,25/08/2017,"1,227.85",73374-SUPPORTED & OTHER ACCOMMODATION,MH COMMISSIONING,Third Party Payments,Revenue
Walsall Council,http://opendatacommunities.org/id/metropolitan-district-council/walsall,WC83-697,31/08/2017,Adult Social Care,CALDMORE AREA HOUSING ASS LTD,25/08/2017,"1,412.01",73374-SUPPORTED & OTHER ACCOMMODATION,MH COMMISSIONING,Third Party Payments,Revenue
Walsall Council,http://opendatacommunities.org/id/metropolitan-district-council/walsall,WC83-698,31/08/2017,Adult Social Care,CALDMORE AREA HOUSING ASS LTD,29/08/2017,"2,533.04",73373-RESIDENTIAL & NURSING CARE PLACEMENTS,MH COMMISSIONING,Third Party Payments,Revenue
Walsall Council,http://opendatacommunities.org/id/metropolitan-district-council/walsall,WC83-699,31/08/2017,Adult Social Care,CALDMORE AREA HOUSING ASS LTD,29/08/2017,"2,533.04",73373-RESIDENTIAL & NURSING CARE PLACEMENTS,MH COMMISSIONING,Third Party Payments,Revenue
Walsall Council,http://opendatacommunities.org/id/metropolitan-district-council/walsall,WC83-700,31/08/2017,Adult Social Care,CALDMORE AREA HOUSING ASS LTD,29/08/2017,"2,533.04",73373-RESIDENTIAL & NURSING CARE PLACEMENTS,MH COMMISSIONING,Third Party Payments,Revenue
Walsall Council,http://opendatacommunities.org/id/metropolitan-district-council/walsall,WC83-701,31/08/2017,Adult Social Care,CALDMORE AREA HOUSING ASS LTD,29/08/2017,"2,533.04",73373-RESIDENTIAL & NURSING CARE PLACEMENTS,MH COMMISSIONING,Third Party Payments,Revenue
Walsall Council,http://opendatacommunities.org/id/metropolitan-district-council/walsall,WC83-702,31/08/2017,Adult Social Care,CALDMORE AREA HOUSING ASS LTD,29/08/2017,"2,533.04",73373-RESIDENTIAL & NURSING CARE PLACEMENTS,MH COMMISSIONING,Third Party Payments,Revenue
Walsall Council,http://opendatacommunities.org/id/metropolitan-district-council/walsall,WC83-703,31/08/2017,Adult Social Care,CALDMORE AREA HOUSING ASS LTD,29/08/2017,"2,533.04",73373-RESIDENTIAL & NURSING CARE PLACEMENTS,MH COMMISSIONING,Third Party Payments,Revenue
Walsall Council,http://opendatacommunities.org/id/metropolitan-district-council/walsall,WC83-704,31/08/2017,Adult Social Care,CALDMORE AREA HOUSING ASS LTD,29/08/2017,"2,533.04",73373-RESIDENTIAL & NURSING CARE PLACEMENTS,MH COMMISSIONING,Third Party Payments,Revenue
Walsall Council,http://opendatacommunities.org/id/metropolitan-district-council/walsall,WC83-705,31/08/2017,Childrens,CALDMORE PRIMARY ACADEMY,03/08/2017,"3,120.00",66505-OTHER-GRANTS TO OTHER ORGS,EARLY YEARS - 3 YR OLDS,Third Party Payments,Revenue
Walsall Council,http://opendatacommunities.org/id/metropolitan-district-council/walsall,WC83-706,31/08/2017,Childrens,REDACTED,01/08/2017,375.88,74510-RESIDENTS ORDERS,ADOPTION ALLOWANCES,Third Party Payments,Revenue
Walsall Council,http://opendatacommunities.org/id/metropolitan-district-council/walsall,WC83-707,31/08/2017,Childrens,REDACTED,29/08/2017,375.88,74510-RESIDENTS ORDERS,ADOPTION ALLOWANCES,Third Party Payments,Revenue
Walsall Council,http://opendatacommunities.org/id/metropolitan-district-council/walsall,WC83-708,31/08/2017,Adult Social Care,REDACTED,07/08/2017,"1,170.20",76422-DIRECT PAYMENTS TO SOCIAL SERVICES CLIENTS,LD COMMISSIONING,Transfer Payments,Revenue
Walsall Council,http://opendatacommunities.org/id/metropolitan-district-council/walsall,WC83-709,31/08/2017,Childrens,CAMBIAN CHILDCARE LIMITED,14/08/2017,957.14,74036-EXTERNAL RESIDENTIAL CARE-OTH AGENCY PROVISION,INDEPENDENT RESIDENTIAL HOMES,Third Party Payments,Revenue
Walsall Council,http://opendatacommunities.org/id/metropolitan-district-council/walsall,WC83-710,31/08/2017,Childrens,CAMBIAN CHILDCARE LIMITED,14/08/2017,"13,400.00",74036-EXTERNAL RESIDENTIAL CARE-OTH AGENCY PROVISION,INDEPENDENT RESIDENTIAL HOMES,Third Party Payments,Revenue
Walsall Council,http://opendatacommunities.org/id/metropolitan-district-council/walsall,WC83-711,31/08/2017,Childrens,CAMBIAN CHILDCARE LIMITED,14/08/2017,"26,742.86",74036-EXTERNAL RESIDENTIAL CARE-OTH AGENCY PROVISION,INDEPENDENT RESIDENTIAL HOMES,Third Party Payments,Revenue
Walsall Council,http://opendatacommunities.org/id/metropolitan-district-council/walsall,WC83-712,31/08/2017,Economy & Environment,CAMERA ONE LIMITED,17/08/2017,500,60500-GENERAL MATERIALS,INFRASTRUCTURE MAINTENANCE,Supplies & Services,Revenue
Walsall Council,http://opendatacommunities.org/id/metropolitan-district-council/walsall,WC83-713,31/08/2017,Childrens,CAMPION SCHOOL,07/08/2017,400,63000-PROFESSIONAL FEES AND SERVICES,VIRTUAL SCHOOL CENTRAL PUPIL PREMIUM,Supplies & Services,Revenue
Walsall Council,http://opendatacommunities.org/id/metropolitan-district-council/walsall,WC83-714,31/08/2017,Childrens,CAPSTONE FOSTER CARE (SOUTH EAST) LIMITED,14/08/2017,"2,855.68",74037-INDEPENDENT FOSTER CARE-OTH AGENCY PROVISION,EXTERNAL FOSTER CARE PROVISION,Third Party Payments,Revenue
Walsall Council,http://opendatacommunities.org/id/metropolitan-district-council/walsall,WC83-715,31/08/2017,Childrens,CAPSTONE FOSTER CARE (SOUTH EAST) LIMITED,14/08/2017,"3,005.64",74037-INDEPENDENT FOSTER CARE-OTH AGENCY PROVISION,EXTERNAL FOSTER CARE PROVISION,Third Party Payments,Revenue
Walsall Council,http://opendatacommunities.org/id/metropolitan-district-council/walsall,WC83-716,31/08/2017,Childrens,CAPSTONE FOSTER CARE (SOUTH EAST) LIMITED,14/08/2017,"3,194.04",74037-INDEPENDENT FOSTER CARE-OTH AGENCY PROVISION,EXTERNAL FOSTER CARE PROVISION,Third Party Payments,Revenue
Walsall Council,http://opendatacommunities.org/id/metropolitan-district-council/walsall,WC83-717,31/08/2017,Childrens,CAPSTONE FOSTER CARE (SOUTH EAST) LIMITED,14/08/2017,"3,194.04",74037-INDEPENDENT FOSTER CARE-OTH AGENCY PROVISION,EXTERNAL FOSTER CARE PROVISION,Third Party Payments,Revenue
Walsall Council,http://opendatacommunities.org/id/metropolitan-district-council/walsall,WC83-718,31/08/2017,Childrens,CAPSTONE FOSTER CARE (SOUTH EAST) LIMITED,14/08/2017,"3,260.04",74037-INDEPENDENT FOSTER CARE-OTH AGENCY PROVISION,EXTERNAL FOSTER CARE PROVISION,Third Party Payments,Revenue
Walsall Council,http://opendatacommunities.org/id/metropolitan-district-council/walsall,WC83-719,31/08/2017,Adult Social Care,CARE 2 U LIMITED,16/08/2017,"30,932.58",73372-DOMICILIARY CARE,OP COMMISSIONING,Third Party Payments,Revenue
Walsall Council,http://opendatacommunities.org/id/metropolitan-district-council/walsall,WC83-720,31/08/2017,Childrens,CARE 4 CHILDREN RESIDENTIAL SERVICES LTD,14/08/2017,"7,000.00",74037-INDEPENDENT FOSTER CARE-OTH AGENCY PROVISION,EXTERNAL FOSTER CARE PROVISION,Third Party Payments,Revenue
Walsall Council,http://opendatacommunities.org/id/metropolitan-district-council/walsall,WC83-721,31/08/2017,Adult Social Care,CARE AVENUES LTD,16/08/2017,"11,330.00",73372-DOMICILIARY CARE,OP COMMISSIONING,Third Party Payments,Revenue
Walsall Council,http://opendatacommunities.org/id/metropolitan-district-council/walsall,WC83-722,31/08/2017,Adult Social Care,CARE FIRST MANAGEMENT SERVICES LTD,18/08/2017,780,73374-SUPPORTED & OTHER ACCOMMODATION,LD COMMISSIONING,Third Party Payments,Revenue
Walsall Council,http://opendatacommunities.org/id/metropolitan-district-council/walsall,WC83-723,31/08/2017,Childrens,CARE FOR ME HOUSING AND SUPPORT,04/08/2017,"2,600.00",76010-ACCOMMODATION AND RELATED COSTS-ASSISTANCE TO S/S CLIENTS,TRANSITION AND LEAVING CARE,Transfer Payments,Revenue
Walsall Council,http://opendatacommunities.org/id/metropolitan-district-council/walsall,WC83-724,31/08/2017,Childrens,CARE LEAVERS,10/08/2017,813.5,64002-OTHER EXPENSES-EXPENSES,TRANSITION AND LEAVING CARE,Supplies & Services,Revenue
Walsall Council,http://opendatacommunities.org/id/metropolitan-district-council/walsall,WC83-725,31/08/2017,Childrens,CARE LEAVERS,10/08/2017,"1,725.06",76010-ACCOMMODATION AND RELATED COSTS-ASSISTANCE TO S/S CLIENTS,TRANSITION AND LEAVING CARE,Transfer Payments,Revenue
Walsall Council,http://opendatacommunities.org/id/metropolitan-district-council/walsall,WC83-726,31/08/2017,Childrens,CARE LEAVERS,10/08/2017,"5,995.19",74500-CARE LEAVERS MTCE PAYMENTS,TRANSITION AND LEAVING CARE,Third Party Payments,Revenue
Walsall Council,http://opendatacommunities.org/id/metropolitan-district-council/walsall,WC83-727,31/08/2017,Childrens,CARE LEAVERS,10/08/2017,"7,426.44",76400-RESIDENTS PERSONAL EXPENSES-ALLOWANCES TO S/S CLIENTS,TRANSITION AND LEAVING CARE,Transfer Payments,Revenue
Walsall Council,http://opendatacommunities.org/id/metropolitan-district-council/walsall,WC83-728,31/08/2017,Childrens,CARE TODAY CHILDRENS SERVICES,14/08/2017,"12,732.00",74036-EXTERNAL RESIDENTIAL CARE-OTH AGENCY PROVISION,INDEPENDENT RESIDENTIAL HOMES,Third Party Payments,Revenue
Walsall Council,http://opendatacommunities.org/id/metropolitan-district-council/walsall,WC83-729,31/08/2017,Childrens,CARE XY LIMITED,21/08/2017,744,63000-PROFESSIONAL FEES AND SERVICES,DIRECTLY COMMISSIONED NURSING SERVICES,Supplies & Services,Revenue
Walsall Council,http://opendatacommunities.org/id/metropolitan-district-council/walsall,WC83-730,31/08/2017,Childrens,CARE XY LIMITED,11/08/2017,"1,371.75",63000-PROFESSIONAL FEES AND SERVICES,DIRECTLY COMMISSIONED NURSING SERVICES,Supplies & Services,Revenue
Walsall Council,http://opendatacommunities.org/id/metropolitan-district-council/walsall,WC83-731,31/08/2017,Childrens,CARE XY LIMITED,14/08/2017,"2,096.37",63000-PROFESSIONAL FEES AND SERVICES,DIRECTLY COMMISSIONED NURSING SERVICES,Supplies & Services,Revenue
Walsall Council,http://opendatacommunities.org/id/metropolitan-district-council/walsall,WC83-732,31/08/2017,Adult Social Care,CARE XY LIMITED,01/08/2017,"2,379.00",73025-PROFESSIONAL SERVICES-PRIV CONTRACTOR & OTHER AGENCIES,COMMUNITY INTERMEDIATE CARE,Third Party Payments,Revenue
Walsall Council,http://opendatacommunities.org/id/metropolitan-district-council/walsall,WC83-733,31/08/2017,Adult Social Care,CARE XY LIMITED,11/08/2017,"2,804.75",73025-PROFESSIONAL SERVICES-PRIV CONTRACTOR & OTHER AGENCIES,COMMUNITY INTERMEDIATE CARE,Third Party Payments,Revenue
Walsall Council,http://opendatacommunities.org/id/metropolitan-district-council/walsall,WC83-734,31/08/2017,Adult Social Care,CARE XY LIMITED,11/08/2017,"3,380.00",73025-PROFESSIONAL SERVICES-PRIV CONTRACTOR & OTHER AGENCIES,COMMUNITY INTERMEDIATE CARE,Third Party Payments,Revenue
Walsall Council,http://opendatacommunities.org/id/metropolitan-district-council/walsall,WC83-735,31/08/2017,Adult Social Care,CARE XY LIMITED,03/08/2017,"3,926.00",73025-PROFESSIONAL SERVICES-PRIV CONTRACTOR & OTHER AGENCIES,COMMUNITY INTERMEDIATE CARE,Third Party Payments,Revenue
Walsall Council,http://opendatacommunities.org/id/metropolitan-district-council/walsall,WC83-736,31/08/2017,Childrens,CARE XY LIMITED,01/08/2017,"5,611.00",63000-PROFESSIONAL FEES AND SERVICES,DIRECTLY COMMISSIONED NURSING SERVICES,Supplies & Services,Revenue
Walsall Council,http://opendatacommunities.org/id/metropolitan-district-council/walsall,WC83-737,31/08/2017,Childrens,CARE XY LIMITED,21/08/2017,"7,006.00",63000-PROFESSIONAL FEES AND SERVICES,DIRECTLY COMMISSIONED NURSING SERVICES,Supplies & Services,Revenue
Walsall Council,http://opendatacommunities.org/id/metropolitan-district-council/walsall,WC83-738,31/08/2017,Childrens,CAREFIRST SERVICES LIMITED,18/08/2017,810.03,76010-ACCOMMODATION AND RELATED COSTS-ASSISTANCE TO S/S CLIENTS,TRANSITION AND LEAVING CARE,Transfer Payments,Revenue
Walsall Council,http://opendatacommunities.org/id/metropolitan-district-council/walsall,WC83-739,31/08/2017,Adult Social Care,CARETECH COMMUNITY SERVICE,01/08/2017,"4,293.51",73374-SUPPORTED & OTHER ACCOMMODATION,LD COMMISSIONING,Third Party Payments,Revenue
Walsall Council,http://opendatacommunities.org/id/metropolitan-district-council/walsall,WC83-740,31/08/2017,Adult Social Care,CARETECH COMMUNITY SERVICE,01/08/2017,"4,436.63",73374-SUPPORTED & OTHER ACCOMMODATION,LD COMMISSIONING,Third Party Payments,Revenue
Walsall Council,http://opendatacommunities.org/id/metropolitan-district-council/walsall,WC83-741,31/08/2017,Adult Social Care,CAREVIEW SERVICES LTD,02/08/2017,"6,802.82",73373-RESIDENTIAL & NURSING CARE PLACEMENTS,LD COMMISSIONING,Third Party Payments,Revenue
Walsall Council,http://opendatacommunities.org/id/metropolitan-district-council/walsall,WC83-742,31/08/2017,Adult Social Care,CAREVIEW SERVICES LTD,14/08/2017,"6,802.82",73373-RESIDENTIAL & NURSING CARE PLACEMENTS,LD COMMISSIONING,Third Party Payments,Revenue
Walsall Council,http://opendatacommunities.org/id/metropolitan-district-council/walsall,WC83-743,31/08/2017,Adult Social Care,CARING CARE LIMITED,18/08/2017,260,73025-PROFESSIONAL SERVICES-PRIV CONTRACTOR & OTHER AGENCIES,ACM MANAGEMENT TEAM,Third Party Payments,Revenue
Walsall Council,http://opendatacommunities.org/id/metropolitan-district-council/walsall,WC83-744,31/08/2017,Adult Social Care,CARING CARE LIMITED,18/08/2017,286,73025-PROFESSIONAL SERVICES-PRIV CONTRACTOR & OTHER AGENCIES,ACM MANAGEMENT TEAM,Third Party Payments,Revenue
Walsall Council,http://opendatacommunities.org/id/metropolitan-district-council/walsall,WC83-745,31/08/2017,Adult Social Care,CARING CARE LIMITED,09/08/2017,338,73025-PROFESSIONAL SERVICES-PRIV CONTRACTOR & OTHER AGENCIES,COMMUNITY INTERMEDIATE CARE,Third Party Payments,Revenue
Walsall Council,http://opendatacommunities.org/id/metropolitan-district-council/walsall,WC83-746,31/08/2017,Adult Social Care,CARING CARE LIMITED,16/08/2017,344.5,73025-PROFESSIONAL SERVICES-PRIV CONTRACTOR & OTHER AGENCIES,COMMUNITY INTERMEDIATE CARE,Third Party Payments,Revenue
Walsall Council,http://opendatacommunities.org/id/metropolitan-district-council/walsall,WC83-747,31/08/2017,Adult Social Care,CARING CARE LIMITED,23/08/2017,377,73025-PROFESSIONAL SERVICES-PRIV CONTRACTOR & OTHER AGENCIES,ACM MANAGEMENT TEAM,Third Party Payments,Revenue
Walsall Council,http://opendatacommunities.org/id/metropolitan-district-council/walsall,WC83-748,31/08/2017,Adult Social Care,CARING CARE LIMITED,14/08/2017,416,73025-PROFESSIONAL SERVICES-PRIV CONTRACTOR & OTHER AGENCIES,COMMUNITY INTERMEDIATE CARE,Third Party Payments,Revenue
Walsall Council,http://opendatacommunities.org/id/metropolitan-district-council/walsall,WC83-749,31/08/2017,Adult Social Care,CARING CARE LIMITED,18/08/2017,455,73025-PROFESSIONAL SERVICES-PRIV CONTRACTOR & OTHER AGENCIES,ACM MANAGEMENT TEAM,Third Party Payments,Revenue
Walsall Council,http://opendatacommunities.org/id/metropolitan-district-council/walsall,WC83-750,31/08/2017,Adult Social Care,CARING CARE LIMITED,14/08/2017,487.5,73025-PROFESSIONAL SERVICES-PRIV CONTRACTOR & OTHER AGENCIES,COMMUNITY INTERMEDIATE CARE,Third Party Payments,Revenue
Walsall Council,http://opendatacommunities.org/id/metropolitan-district-council/walsall,WC83-751,31/08/2017,Adult Social Care,CARING CARE LIMITED,16/08/2017,510.25,73025-PROFESSIONAL SERVICES-PRIV CONTRACTOR & OTHER AGENCIES,COMMUNITY INTERMEDIATE CARE,Third Party Payments,Revenue
Walsall Council,http://opendatacommunities.org/id/metropolitan-district-council/walsall,WC83-752,31/08/2017,Adult Social Care,CARING CARE LIMITED,16/08/2017,559,73025-PROFESSIONAL SERVICES-PRIV CONTRACTOR & OTHER AGENCIES,COMMUNITY INTERMEDIATE CARE,Third Party Payments,Revenue
Walsall Council,http://opendatacommunities.org/id/metropolitan-district-council/walsall,WC83-753,31/08/2017,Adult Social Care,CARING CARE LIMITED,14/08/2017,585,73025-PROFESSIONAL SERVICES-PRIV CONTRACTOR & OTHER AGENCIES,COMMUNITY INTERMEDIATE CARE,Third Party Payments,Revenue
Walsall Council,http://opendatacommunities.org/id/metropolitan-district-council/walsall,WC83-754,31/08/2017,Adult Social Care,CARING CARE LIMITED,16/08/2017,611,73025-PROFESSIONAL SERVICES-PRIV CONTRACTOR & OTHER AGENCIES,COMMUNITY INTERMEDIATE CARE,Third Party Payments,Revenue
Walsall Council,http://opendatacommunities.org/id/metropolitan-district-council/walsall,WC83-755,31/08/2017,Adult Social Care,CARING CARE LIMITED,16/08/2017,685.75,73025-PROFESSIONAL SERVICES-PRIV CONTRACTOR & OTHER AGENCIES,COMMUNITY INTERMEDIATE CARE,Third Party Payments,Revenue
Walsall Council,http://opendatacommunities.org/id/metropolitan-district-council/walsall,WC83-756,31/08/2017,Adult Social Care,CARING CARE LIMITED,14/08/2017,702,73025-PROFESSIONAL SERVICES-PRIV CONTRACTOR & OTHER AGENCIES,COMMUNITY INTERMEDIATE CARE,Third Party Payments,Revenue
Walsall Council,http://opendatacommunities.org/id/metropolitan-district-council/walsall,WC83-757,31/08/2017,Adult Social Care,CARING CARE LIMITED,09/08/2017,721.5,73025-PROFESSIONAL SERVICES-PRIV CONTRACTOR & OTHER AGENCIES,COMMUNITY INTERMEDIATE CARE,Third Party Payments,Revenue
Walsall Council,http://opendatacommunities.org/id/metropolitan-district-council/walsall,WC83-758,31/08/2017,Adult Social Care,CARING CARE LIMITED,14/08/2017,728,73025-PROFESSIONAL SERVICES-PRIV CONTRACTOR & OTHER AGENCIES,COMMUNITY INTERMEDIATE CARE,Third Party Payments,Revenue
Walsall Council,http://opendatacommunities.org/id/metropolitan-district-council/walsall,WC83-759,31/08/2017,Adult Social Care,CARING CARE LIMITED,16/08/2017,737.75,73025-PROFESSIONAL SERVICES-PRIV CONTRACTOR & OTHER AGENCIES,COMMUNITY INTERMEDIATE CARE,Third Party Payments,Revenue
Walsall Council,http://opendatacommunities.org/id/metropolitan-district-council/walsall,WC83-760,31/08/2017,Adult Social Care,CARING CARE LIMITED,14/08/2017,819,73025-PROFESSIONAL SERVICES-PRIV CONTRACTOR & OTHER AGENCIES,COMMUNITY INTERMEDIATE CARE,Third Party Payments,Revenue
Walsall Council,http://opendatacommunities.org/id/metropolitan-district-council/walsall,WC83-761,31/08/2017,Adult Social Care,CARING CARE LIMITED,14/08/2017,877.5,73025-PROFESSIONAL SERVICES-PRIV CONTRACTOR & OTHER AGENCIES,COMMUNITY INTERMEDIATE CARE,Third Party Payments,Revenue
Walsall Council,http://opendatacommunities.org/id/metropolitan-district-council/walsall,WC83-762,31/08/2017,Adult Social Care,CARING CARE LIMITED,14/08/2017,877.5,73025-PROFESSIONAL SERVICES-PRIV CONTRACTOR & OTHER AGENCIES,COMMUNITY INTERMEDIATE CARE,Third Party Payments,Revenue
Walsall Council,http://opendatacommunities.org/id/metropolitan-district-council/walsall,WC83-763,31/08/2017,Adult Social Care,CARING CARE LIMITED,16/08/2017,"1,189.50",73025-PROFESSIONAL SERVICES-PRIV CONTRACTOR & OTHER AGENCIES,COMMUNITY INTERMEDIATE CARE,Third Party Payments,Revenue
Walsall Council,http://opendatacommunities.org/id/metropolitan-district-council/walsall,WC83-764,31/08/2017,Adult Social Care,CARING CARE LIMITED,16/08/2017,"1,495.00",73025-PROFESSIONAL SERVICES-PRIV CONTRACTOR & OTHER AGENCIES,COMMUNITY INTERMEDIATE CARE,Third Party Payments,Revenue
Walsall Council,http://opendatacommunities.org/id/metropolitan-district-council/walsall,WC83-765,31/08/2017,Adult Social Care,CARING CARE LIMITED,17/08/2017,"1,495.00",73025-PROFESSIONAL SERVICES-PRIV CONTRACTOR & OTHER AGENCIES,ACM MANAGEMENT TEAM,Third Party Payments,Revenue
Walsall Council,http://opendatacommunities.org/id/metropolitan-district-council/walsall,WC83-766,31/08/2017,Adult Social Care,CARING CARE LIMITED,16/08/2017,"1,560.00",73025-PROFESSIONAL SERVICES-PRIV CONTRACTOR & OTHER AGENCIES,COMMUNITY INTERMEDIATE CARE,Third Party Payments,Revenue
Walsall Council,http://opendatacommunities.org/id/metropolitan-district-council/walsall,WC83-767,31/08/2017,Adult Social Care,CARING CARE LIMITED,14/08/2017,"1,599.00",73025-PROFESSIONAL SERVICES-PRIV CONTRACTOR & OTHER AGENCIES,COMMUNITY INTERMEDIATE CARE,Third Party Payments,Revenue
Walsall Council,http://opendatacommunities.org/id/metropolitan-district-council/walsall,WC83-768,31/08/2017,Adult Social Care,CARING CARE LIMITED,17/08/2017,"1,625.00",73025-PROFESSIONAL SERVICES-PRIV CONTRACTOR & OTHER AGENCIES,COMMUNITY INTERMEDIATE CARE,Third Party Payments,Revenue
Walsall Council,http://opendatacommunities.org/id/metropolitan-district-council/walsall,WC83-769,31/08/2017,Adult Social Care,CARING CARE LIMITED,18/08/2017,"3,471.00",73025-PROFESSIONAL SERVICES-PRIV CONTRACTOR & OTHER AGENCIES,ACM MANAGEMENT TEAM,Third Party Payments,Revenue
Walsall Council,http://opendatacommunities.org/id/metropolitan-district-council/walsall,WC83-770,31/08/2017,Adult Social Care,CARING CARE LIMITED,16/08/2017,"67,884.66",73372-DOMICILIARY CARE,OP COMMISSIONING,Third Party Payments,Revenue
Walsall Council,http://opendatacommunities.org/id/metropolitan-district-council/walsall,WC83-771,31/08/2017,Adult Social Care,CARING HANDS LIMITED,16/08/2017,"38,357.20",73372-DOMICILIARY CARE,OP COMMISSIONING,Third Party Payments,Revenue
Walsall Council,http://opendatacommunities.org/id/metropolitan-district-council/walsall,WC83-772,31/08/2017,Adult Social Care,REDACTED,07/08/2017,"1,327.04",76422-DIRECT PAYMENTS TO SOCIAL SERVICES CLIENTS,PD COMMISSIONING,Transfer Payments,Revenue
Walsall Council,http://opendatacommunities.org/id/metropolitan-district-council/walsall,WC83-773,31/08/2017,Adult Social Care,REDACTED,07/08/2017,450,76422-DIRECT PAYMENTS TO SOCIAL SERVICES CLIENTS,PD COMMISSIONING,Transfer Payments,Revenue
Walsall Council,http://opendatacommunities.org/id/metropolitan-district-council/walsall,WC83-774,31/08/2017,Adult Social Care,REDACTED,04/08/2017,"1,637.40",73374-SUPPORTED & OTHER ACCOMMODATION,LD COMMISSIONING,Third Party Payments,Revenue
Walsall Council,http://opendatacommunities.org/id/metropolitan-district-council/walsall,WC83-775,31/08/2017,Adult Social Care,REDACTED,23/08/2017,"1,637.40",73374-SUPPORTED & OTHER ACCOMMODATION,LD COMMISSIONING,Third Party Payments,Revenue
Walsall Council,http://opendatacommunities.org/id/metropolitan-district-council/walsall,WC83-776,31/08/2017,Adult Social Care,REDACTED,23/08/2017,"1,637.40",73374-SUPPORTED & OTHER ACCOMMODATION,LD COMMISSIONING,Third Party Payments,Revenue
Walsall Council,http://opendatacommunities.org/id/metropolitan-district-council/walsall,WC83-777,31/08/2017,Childrens,REDACTED,14/08/2017,9.24,60006-NEW-FURNITURE & EQUIPMENT,INTERNAL FOSTER CARE PROVISION,Supplies & Services,Revenue
Walsall Council,http://opendatacommunities.org/id/metropolitan-district-council/walsall,WC83-778,31/08/2017,Childrens,REDACTED,14/08/2017,473,74510-RESIDENTS ORDERS,ADOPTION ALLOWANCES,Third Party Payments,Revenue
